Body,Body Name,Date,Transaction Number,Invoice Number,Amount,Supplier Name,Supplier ID ,VAT Registration Number ,Expense Area,Expense Type,Expense Code,Purchase Order
http://statistics.data.gov.uk/id/local-authority/29UP,Tonbridge & Malling Borough Council,9/1/2021,0011043090/3,11043090, 924.00,Venn Group Ltd,00914300,,Temporary Staff,Legal Sals&Overheads,D01ARDR0011300,
http://statistics.data.gov.uk/id/local-authority/29UP,Tonbridge & Malling Borough Council,9/1/2021,0011043091/3,11043091, 2745.00,Cornerstones Barristers,01359100,,Legal Fees,Legal Sals&Overheads,D01ARDR0044002,
http://statistics.data.gov.uk/id/local-authority/29UP,Tonbridge & Malling Borough Council,9/1/2021,0011043092/3,11043092, 231.48,Key Craft,01148600,,Purchases,TIC Stock Account,K18AX000001002,
http://statistics.data.gov.uk/id/local-authority/29UP,Tonbridge & Malling Borough Council,9/1/2021,0011043093/3,11043093, 1393.00,TMS Protection Ltd,01744300,,Re-opening High Streets,Eco Dev & Reg Gen Bus Support,D52TDCV1948076,
http://statistics.data.gov.uk/id/local-authority/29UP,Tonbridge & Malling Borough Council,9/1/2021,0011043094/3,11043094, 67.00,Viridor Waste Management Ltd,00682900,,Trade Refuse Charges,Cleaning & Security,D21FD000044008,
http://statistics.data.gov.uk/id/local-authority/29UP,Tonbridge & Malling Borough Council,9/1/2021,0011043095/3,11043095, 40.20,Viridor Waste Management Ltd,00682900,,Trade Refuse Charges,Cleaning & Security,D21FD000044008,
http://statistics.data.gov.uk/id/local-authority/29UP,Tonbridge & Malling Borough Council,9/1/2021,0011043096/3,11043096, 9.29,Viridor Waste Management Ltd,00682900,,Trade Refuse Charges,Cleaning & Security,D21FD000044008,
http://statistics.data.gov.uk/id/local-authority/29UP,Tonbridge & Malling Borough Council,9/1/2021,0011043097/3,11043097, 137.87,Viridor Waste Management Ltd,00682900,,Trade Refuse Charges,Cleaning & Security,D21FD000044008,
http://statistics.data.gov.uk/id/local-authority/29UP,Tonbridge & Malling Borough Council,9/1/2021,0011043098/3,11043098, 9.29,Viridor Waste Management Ltd,00682900,,Trade Refuse Charges,Cleaning & Security,D21FD000044008,
http://statistics.data.gov.uk/id/local-authority/29UP,Tonbridge & Malling Borough Council,9/1/2021,0011043099/3,11043099, 241.20,Viridor Waste Management Ltd,00682900,,Trade Refuse Charges,Cleaning & Security,D21FD000044008,
http://statistics.data.gov.uk/id/local-authority/29UP,Tonbridge & Malling Borough Council,9/1/2021,0011043100/3,11043100, 48.72,Viridor Waste Management Ltd,00682900,,Trade Refuse Charges,Cleaning & Security,D21FD000044008,
http://statistics.data.gov.uk/id/local-authority/29UP,Tonbridge & Malling Borough Council,9/1/2021,0011043101/3,11043101, 325.00,Driven to perfection,01541000,,Mayors Transport Allowance,Mayoral & Other Member Support,D29LX000034111,
http://statistics.data.gov.uk/id/local-authority/29UP,Tonbridge & Malling Borough Council,9/1/2021,0011043102/3,11043102, 1177.86,Royal Mail,00086200,,Purchases,Mailsort Stock Account,K37BR000001002,
http://statistics.data.gov.uk/id/local-authority/29UP,Tonbridge & Malling Borough Council,9/1/2021,0011043103/1,11043103, 60.00,Maidstone Borough Council,01453900,,Hospitality,Mayoral & Other Member Support,D29LX000048003,
http://statistics.data.gov.uk/id/local-authority/29UP,Tonbridge & Malling Borough Council,9/1/2021,0011043104/3,11043104, 184.18,Chubb Fire & Security Ltd,00115400,174605362,BRREP Servicing-IntruderAlarm,Tonbridge Swimming Pool,M15HBP20001939,
http://statistics.data.gov.uk/id/local-authority/29UP,Tonbridge & Malling Borough Council,9/1/2021,0011043108/3,11043108, 27.87,Viridor Waste Management Ltd,00682900,,Trade Refuse Charges,Cleaning & Security,D21FD000044008,
http://statistics.data.gov.uk/id/local-authority/29UP,Tonbridge & Malling Borough Council,9/1/2021,0011043111/3,11043111, 335.00,Viridor Waste Management Ltd,00682900,,Trade Refuse Charges,Cleaning & Security,D21FD000044008,
http://statistics.data.gov.uk/id/local-authority/29UP,Tonbridge & Malling Borough Council,9/1/2021,0011043112/1,11043112, 35.00,Sevenoaks District Council,01252500,,Hospitality,Mayoral & Other Member Support,D29LX000048003,
http://statistics.data.gov.uk/id/local-authority/29UP,Tonbridge & Malling Borough Council,9/1/2021,0011043113/3,11043113, 370.00,Premier Group Recycling Ltd,01365300,,Confidential Waste,Cleaning & Security,D21FD000044009,
http://statistics.data.gov.uk/id/local-authority/29UP,Tonbridge & Malling Borough Council,9/1/2021,0011043114/3,11043114, 140.00,G C Industrial Heating Services,00578100,,BRREP Response - General,Tonbridge Castle / CAB,M15KFP50001997,
http://statistics.data.gov.uk/id/local-authority/29UP,Tonbridge & Malling Borough Council,9/1/2021,0012008080/3,12008080, 11.05,Daisy Communications,01068100,,Telephones - General,Leybourne Lakes Country Park,B22LK000045010,
http://statistics.data.gov.uk/id/local-authority/29UP,Tonbridge & Malling Borough Council,9/1/2021,0012008080/4,12008080, 4.78,Daisy Communications,01068100,,Telephones - Rentals,General Admin Telephones,D24GT000045005,
http://statistics.data.gov.uk/id/local-authority/29UP,Tonbridge & Malling Borough Council,9/1/2021,0012008080/5,12008080, 252.90,Daisy Communications,01068100,,Telephones - Call Costs,General Admin Telephones,D24GT000045006,
http://statistics.data.gov.uk/id/local-authority/29UP,Tonbridge & Malling Borough Council,9/1/2021,0012008080/6,12008080, 84.88,Daisy Communications,01068100,,Leased Lines & Modems,Information Technology,D27KD000045011,
http://statistics.data.gov.uk/id/local-authority/29UP,Tonbridge & Malling Borough Council,9/1/2021,0012008080/7,12008080, 65.88,Daisy Communications,01068100,,Maintenance - General,Security Services Management,E09GA000040135,
http://statistics.data.gov.uk/id/local-authority/29UP,Tonbridge & Malling Borough Council,9/1/2021,0012008082/3,12008082, 386.00,iHub UK Limited,01287000,,Telephones - Rentals,General Admin Telephones,D24GT000045005,
http://statistics.data.gov.uk/id/local-authority/29UP,Tonbridge & Malling Borough Council,9/1/2021,0012008082/4,12008082, 167.00,iHub UK Limited,01287000,,Telephones - Call Costs,General Admin Telephones,D24GT000045006,
http://statistics.data.gov.uk/id/local-authority/29UP,Tonbridge & Malling Borough Council,9/1/2021,0012008083/3,12008083, 1373.60,KH Recruitment Ltd,01738900,,Salaries & On Costs,Information Technology,D27KD000015100,
http://statistics.data.gov.uk/id/local-authority/29UP,Tonbridge & Malling Borough Council,9/1/2021,0012008084/3,12008084, 646.99,KCS,00054200,,Leasing Charges,Multi Function Devices,D22GB000044038,
http://statistics.data.gov.uk/id/local-authority/29UP,Tonbridge & Malling Borough Council,9/1/2021,0012008086/3,12008086, 127.83,KCS,00054200,,Leasing Charges,Multi Function Devices,D22GB000044038,
http://statistics.data.gov.uk/id/local-authority/29UP,Tonbridge & Malling Borough Council,9/1/2021,0012008087/3,12008087, 6.69,KCS,00054200,,Copy Charges,Multi Function Devices,D22GB000040125,
http://statistics.data.gov.uk/id/local-authority/29UP,Tonbridge & Malling Borough Council,9/1/2021,0012008087/4,12008087, 105.51,KCS,00054200,,Leasing Charges,Multi Function Devices,D22GB000044038,
http://statistics.data.gov.uk/id/local-authority/29UP,Tonbridge & Malling Borough Council,9/1/2021,0012008088/3,12008088, 22.11,KCS,00054200,,Copy Charges,Multi Function Devices,D22GB000040125,
http://statistics.data.gov.uk/id/local-authority/29UP,Tonbridge & Malling Borough Council,9/1/2021,0012008088/4,12008088, 130.63,KCS,00054200,,Leasing Charges,Multi Function Devices,D22GB000044038,
http://statistics.data.gov.uk/id/local-authority/29UP,Tonbridge & Malling Borough Council,9/1/2021,0012008089/3,12008089, 35.65,KCS,00054200,,Copy Charges,Multi Function Devices,D22GB000040125,
http://statistics.data.gov.uk/id/local-authority/29UP,Tonbridge & Malling Borough Council,9/1/2021,0012008089/4,12008089, 130.63,KCS,00054200,,Leasing Charges,Multi Function Devices,D22GB000044038,
http://statistics.data.gov.uk/id/local-authority/29UP,Tonbridge & Malling Borough Council,9/1/2021,0012008090/3,12008090, 33.57,KCS,00054200,,Copy Charges,Multi Function Devices,D22GB000040125,
http://statistics.data.gov.uk/id/local-authority/29UP,Tonbridge & Malling Borough Council,9/1/2021,0012008090/4,12008090, 130.63,KCS,00054200,,Leasing Charges,Multi Function Devices,D22GB000044038,
http://statistics.data.gov.uk/id/local-authority/29UP,Tonbridge & Malling Borough Council,9/1/2021,0012008091/3,12008091, 15.98,KCS,00054200,,Copy Charges,Multi Function Devices,D22GB000040125,
http://statistics.data.gov.uk/id/local-authority/29UP,Tonbridge & Malling Borough Council,9/1/2021,0012008091/4,12008091, 122.61,KCS,00054200,,Leasing Charges,Multi Function Devices,D22GB000044038,
http://statistics.data.gov.uk/id/local-authority/29UP,Tonbridge & Malling Borough Council,9/1/2021,0012008092/3,12008092, 90.59,KCS,00054200,,Copy Charges,Multi Function Devices,D22GB000040125,
http://statistics.data.gov.uk/id/local-authority/29UP,Tonbridge & Malling Borough Council,9/1/2021,0012008092/4,12008092, 122.61,KCS,00054200,,Leasing Charges,Multi Function Devices,D22GB000044038,
http://statistics.data.gov.uk/id/local-authority/29UP,Tonbridge & Malling Borough Council,9/1/2021,0012008093/3,12008093, 101.24,KCS,00054200,,Copy Charges,Multi Function Devices,D22GB000040125,
http://statistics.data.gov.uk/id/local-authority/29UP,Tonbridge & Malling Borough Council,9/1/2021,0012008093/4,12008093, 122.61,KCS,00054200,,Leasing Charges,Multi Function Devices,D22GB000044038,
http://statistics.data.gov.uk/id/local-authority/29UP,Tonbridge & Malling Borough Council,9/1/2021,0012008094/3,12008094, 44.00,KCS,00054200,,Copy Charges,Multi Function Devices,D22GB000040125,
http://statistics.data.gov.uk/id/local-authority/29UP,Tonbridge & Malling Borough Council,9/1/2021,0012008094/4,12008094, 122.61,KCS,00054200,,Leasing Charges,Multi Function Devices,D22GB000044038,
http://statistics.data.gov.uk/id/local-authority/29UP,Tonbridge & Malling Borough Council,9/1/2021,0012008095/3,12008095, 43.71,KCS,00054200,,Copy Charges,Multi Function Devices,D22GB000040125,
http://statistics.data.gov.uk/id/local-authority/29UP,Tonbridge & Malling Borough Council,9/1/2021,0012008095/4,12008095, 130.63,KCS,00054200,,Leasing Charges,Multi Function Devices,D22GB000044038,
http://statistics.data.gov.uk/id/local-authority/29UP,Tonbridge & Malling Borough Council,9/1/2021,0012008096/3,12008096, 1.12,KCS,00054200,,Copy Charges,Multi Function Devices,D22GB000040125,
http://statistics.data.gov.uk/id/local-authority/29UP,Tonbridge & Malling Borough Council,9/1/2021,0012008096/4,12008096, 82.58,KCS,00054200,,Leasing Charges,Multi Function Devices,D22GB000044038,
http://statistics.data.gov.uk/id/local-authority/29UP,Tonbridge & Malling Borough Council,9/1/2021,0012008097/3,12008097, 7.38,KCS,00054200,,Copy Charges,Multi Function Devices,D22GB000040125,
http://statistics.data.gov.uk/id/local-authority/29UP,Tonbridge & Malling Borough Council,9/1/2021,0012008097/4,12008097, 91.95,KCS,00054200,,Leasing Charges,Multi Function Devices,D22GB000044038,
http://statistics.data.gov.uk/id/local-authority/29UP,Tonbridge & Malling Borough Council,9/1/2021,0012008098/3,12008098, 27.67,KCS,00054200,,Copy Charges,Multi Function Devices,D22GB000040125,
http://statistics.data.gov.uk/id/local-authority/29UP,Tonbridge & Malling Borough Council,9/1/2021,0012008098/4,12008098, 122.61,KCS,00054200,,Leasing Charges,Multi Function Devices,D22GB000044038,
http://statistics.data.gov.uk/id/local-authority/29UP,Tonbridge & Malling Borough Council,9/1/2021,0012008099/1,12008099, 1323.00,Kingsfield Computer Products Ltd,00942800,,Purchases,Information Technology,D27KD000040101,410032015
http://statistics.data.gov.uk/id/local-authority/29UP,Tonbridge & Malling Borough Council,9/1/2021,0012008100/3,12008100, 12178.64,Phoenix Software Ltd,00077400,755349015,Software Hire & Support,Information Technology,D27KD000044059,
http://statistics.data.gov.uk/id/local-authority/29UP,Tonbridge & Malling Borough Council,9/1/2021,0012008101/1,12008101, 67.68,Park Place Technologies Ltd,01809800,336276491,Maintenance - Ancillary Equip,Information Technology,D27KD000040137,410032016
http://statistics.data.gov.uk/id/local-authority/29UP,Tonbridge & Malling Borough Council,9/1/2021,0012008101/10,12008101, 90.72,Park Place Technologies Ltd,01809800,336276491,Maintenance - Ancillary Equip,Information Technology,D27KD000040137,410032016
http://statistics.data.gov.uk/id/local-authority/29UP,Tonbridge & Malling Borough Council,9/1/2021,0012008101/11,12008101, 90.72,Park Place Technologies Ltd,01809800,336276491,Maintenance - Ancillary Equip,Information Technology,D27KD000040137,410032016
http://statistics.data.gov.uk/id/local-authority/29UP,Tonbridge & Malling Borough Council,9/1/2021,0012008101/12,12008101, 90.72,Park Place Technologies Ltd,01809800,336276491,Maintenance - Ancillary Equip,Information Technology,D27KD000040137,410032016
http://statistics.data.gov.uk/id/local-authority/29UP,Tonbridge & Malling Borough Council,9/1/2021,0012008101/13,12008101, 90.72,Park Place Technologies Ltd,01809800,336276491,Maintenance - Ancillary Equip,Information Technology,D27KD000040137,410032016
http://statistics.data.gov.uk/id/local-authority/29UP,Tonbridge & Malling Borough Council,9/1/2021,0012008101/14,12008101, 90.72,Park Place Technologies Ltd,01809800,336276491,Maintenance - Ancillary Equip,Information Technology,D27KD000040137,410032016
http://statistics.data.gov.uk/id/local-authority/29UP,Tonbridge & Malling Borough Council,9/1/2021,0012008101/15,12008101, 90.72,Park Place Technologies Ltd,01809800,336276491,Maintenance - Ancillary Equip,Information Technology,D27KD000040137,410032016
http://statistics.data.gov.uk/id/local-authority/29UP,Tonbridge & Malling Borough Council,9/1/2021,0012008101/16,12008101, 90.72,Park Place Technologies Ltd,01809800,336276491,Maintenance - Ancillary Equip,Information Technology,D27KD000040137,410032016
http://statistics.data.gov.uk/id/local-authority/29UP,Tonbridge & Malling Borough Council,9/1/2021,0012008101/17,12008101, 90.72,Park Place Technologies Ltd,01809800,336276491,Maintenance - Ancillary Equip,Information Technology,D27KD000040137,410032016
http://statistics.data.gov.uk/id/local-authority/29UP,Tonbridge & Malling Borough Council,9/1/2021,0012008101/18,12008101, 90.72,Park Place Technologies Ltd,01809800,336276491,Maintenance - Ancillary Equip,Information Technology,D27KD000040137,410032016
http://statistics.data.gov.uk/id/local-authority/29UP,Tonbridge & Malling Borough Council,9/1/2021,0012008101/19,12008101, 90.72,Park Place Technologies Ltd,01809800,336276491,Maintenance - Ancillary Equip,Information Technology,D27KD000040137,410032016
http://statistics.data.gov.uk/id/local-authority/29UP,Tonbridge & Malling Borough Council,9/1/2021,0012008101/2,12008101, 90.72,Park Place Technologies Ltd,01809800,336276491,Maintenance - Ancillary Equip,Information Technology,D27KD000040137,410032016
http://statistics.data.gov.uk/id/local-authority/29UP,Tonbridge & Malling Borough Council,9/1/2021,0012008101/20,12008101, 90.72,Park Place Technologies Ltd,01809800,336276491,Maintenance - Ancillary Equip,Information Technology,D27KD000040137,410032016
http://statistics.data.gov.uk/id/local-authority/29UP,Tonbridge & Malling Borough Council,9/1/2021,0012008101/21,12008101, 90.72,Park Place Technologies Ltd,01809800,336276491,Maintenance - Ancillary Equip,Information Technology,D27KD000040137,410032016
http://statistics.data.gov.uk/id/local-authority/29UP,Tonbridge & Malling Borough Council,9/1/2021,0012008101/22,12008101, 90.72,Park Place Technologies Ltd,01809800,336276491,Maintenance - Ancillary Equip,Information Technology,D27KD000040137,410032016
http://statistics.data.gov.uk/id/local-authority/29UP,Tonbridge & Malling Borough Council,9/1/2021,0012008101/23,12008101, 90.72,Park Place Technologies Ltd,01809800,336276491,Maintenance - Ancillary Equip,Information Technology,D27KD000040137,410032016
http://statistics.data.gov.uk/id/local-authority/29UP,Tonbridge & Malling Borough Council,9/1/2021,0012008101/24,12008101, 90.72,Park Place Technologies Ltd,01809800,336276491,Maintenance - Ancillary Equip,Information Technology,D27KD000040137,410032016
http://statistics.data.gov.uk/id/local-authority/29UP,Tonbridge & Malling Borough Council,9/1/2021,0012008101/25,12008101, 90.72,Park Place Technologies Ltd,01809800,336276491,Maintenance - Ancillary Equip,Information Technology,D27KD000040137,410032016
http://statistics.data.gov.uk/id/local-authority/29UP,Tonbridge & Malling Borough Council,9/1/2021,0012008101/26,12008101, 67.68,Park Place Technologies Ltd,01809800,336276491,Maintenance - Ancillary Equip,Information Technology,D27KD000040137,410032016
http://statistics.data.gov.uk/id/local-authority/29UP,Tonbridge & Malling Borough Council,9/1/2021,0012008101/27,12008101, 67.68,Park Place Technologies Ltd,01809800,336276491,Maintenance - Ancillary Equip,Information Technology,D27KD000040137,410032016
http://statistics.data.gov.uk/id/local-authority/29UP,Tonbridge & Malling Borough Council,9/1/2021,0012008101/28,12008101, 384.12,Park Place Technologies Ltd,01809800,336276491,Maintenance - Ancillary Equip,Information Technology,D27KD000040137,410032016
http://statistics.data.gov.uk/id/local-authority/29UP,Tonbridge & Malling Borough Council,9/1/2021,0012008101/29,12008101, 384.12,Park Place Technologies Ltd,01809800,336276491,Maintenance - Ancillary Equip,Information Technology,D27KD000040137,410032016
http://statistics.data.gov.uk/id/local-authority/29UP,Tonbridge & Malling Borough Council,9/1/2021,0012008101/3,12008101, 90.72,Park Place Technologies Ltd,01809800,336276491,Maintenance - Ancillary Equip,Information Technology,D27KD000040137,410032016
http://statistics.data.gov.uk/id/local-authority/29UP,Tonbridge & Malling Borough Council,9/1/2021,0012008101/30,12008101, 51.84,Park Place Technologies Ltd,01809800,336276491,Maintenance - Ancillary Equip,Information Technology,D27KD000040137,410032016
http://statistics.data.gov.uk/id/local-authority/29UP,Tonbridge & Malling Borough Council,9/1/2021,0012008101/31,12008101, 414.84,Park Place Technologies Ltd,01809800,336276491,Maintenance - Ancillary Equip,Information Technology,D27KD000040137,410032016
http://statistics.data.gov.uk/id/local-authority/29UP,Tonbridge & Malling Borough Council,9/1/2021,0012008101/4,12008101, 90.72,Park Place Technologies Ltd,01809800,336276491,Maintenance - Ancillary Equip,Information Technology,D27KD000040137,410032016
http://statistics.data.gov.uk/id/local-authority/29UP,Tonbridge & Malling Borough Council,9/1/2021,0012008101/5,12008101, 90.72,Park Place Technologies Ltd,01809800,336276491,Maintenance - Ancillary Equip,Information Technology,D27KD000040137,410032016
http://statistics.data.gov.uk/id/local-authority/29UP,Tonbridge & Malling Borough Council,9/1/2021,0012008101/6,12008101, 51.84,Park Place Technologies Ltd,01809800,336276491,Maintenance - Ancillary Equip,Information Technology,D27KD000040137,410032016
http://statistics.data.gov.uk/id/local-authority/29UP,Tonbridge & Malling Borough Council,9/1/2021,0012008101/7,12008101, 51.84,Park Place Technologies Ltd,01809800,336276491,Maintenance - Ancillary Equip,Information Technology,D27KD000040137,410032016
http://statistics.data.gov.uk/id/local-authority/29UP,Tonbridge & Malling Borough Council,9/1/2021,0012008101/8,12008101, 51.84,Park Place Technologies Ltd,01809800,336276491,Maintenance - Ancillary Equip,Information Technology,D27KD000040137,410032016
http://statistics.data.gov.uk/id/local-authority/29UP,Tonbridge & Malling Borough Council,9/1/2021,0012008101/9,12008101, 51.84,Park Place Technologies Ltd,01809800,336276491,Maintenance - Ancillary Equip,Information Technology,D27KD000040137,410032016
http://statistics.data.gov.uk/id/local-authority/29UP,Tonbridge & Malling Borough Council,9/1/2021,0012008102/1,12008102, 27.00,Kingsfield Computer Products Ltd,00942800,,Purchases,Information Technology,D27KD000040101,410032015
http://statistics.data.gov.uk/id/local-authority/29UP,Tonbridge & Malling Borough Council,9/1/2021,0012008103/3,12008103, 1373.60,KH Recruitment Ltd,01738900,,Salaries & On Costs,Information Technology,D27KD000015100,
http://statistics.data.gov.uk/id/local-authority/29UP,Tonbridge & Malling Borough Council,9/1/2021,0012008104/3,12008104, 5827.38,Capita Secure Information Solutions Ltd,00817100,,Software Hire & Support,Information Technology,D27KD000044059,
http://statistics.data.gov.uk/id/local-authority/29UP,Tonbridge & Malling Borough Council,9/1/2021,0012008105/3,12008105, 1049.39,Capita Secure Information Solutions Ltd,00817100,,Software Hire & Support,Information Technology,D27KD000044059,
http://statistics.data.gov.uk/id/local-authority/29UP,Tonbridge & Malling Borough Council,9/1/2021,0012008106/1,12008106, 465.00,Idox Software Ltd,00962400,,Software Hire & Support,Information Technology,D27KD000044059,410031913
http://statistics.data.gov.uk/id/local-authority/29UP,Tonbridge & Malling Borough Council,9/1/2021,0012008106/2,12008106, 2850.00,Idox Software Ltd,00962400,,Software Hire & Support,Information Technology,D27KD000044059,410031913
http://statistics.data.gov.uk/id/local-authority/29UP,Tonbridge & Malling Borough Council,9/1/2021,0012008107/1,12008107, 1124.75,Kingsfield Computer Products Ltd,00942800,,Purchases,Information Technology,D27KD000040101,410032029
http://statistics.data.gov.uk/id/local-authority/29UP,Tonbridge & Malling Borough Council,9/1/2021,0012008108/1,12008108, 337.32,Phoenix Software Ltd,00077400,755349015,Software Hire & Support,Information Technology,D27KD000044059,410032027
http://statistics.data.gov.uk/id/local-authority/29UP,Tonbridge & Malling Borough Council,9/1/2021,0021037406/3,21037406, 5270.45,Tunbridge Wells Borough Council,00844600,,Other Expenses,Refuse Collection,H20SA000048010,
http://statistics.data.gov.uk/id/local-authority/29UP,Tonbridge & Malling Borough Council,9/1/2021,0021037407/1,21037407, 550.00,Arnold & Court Ltd,01411300,,Maintenance of Grounds,Sports Grounds,B13ET000020402,210056263
http://statistics.data.gov.uk/id/local-authority/29UP,Tonbridge & Malling Borough Council,9/1/2021,0021037408/1,21037408, 355.76,Landscape Services Ltd,00057600,,Grounds Maintenance Contract,Cemetery,B26MP000050103,
http://statistics.data.gov.uk/id/local-authority/29UP,Tonbridge & Malling Borough Council,9/1/2021,0021037409/1,21037409, 450.00,Green Oak Services,01635000,,Health & Safety - Trees,Countryside/Woodland Mgt,B22LG000044045,210056385
http://statistics.data.gov.uk/id/local-authority/29UP,Tonbridge & Malling Borough Council,9/1/2021,0021037410/3,21037410, 92.00,Toilets+ Ltd,01039000,,Maintenance of Grounds,Leybourne Lakes Country Park,B22LK000020402,
http://statistics.data.gov.uk/id/local-authority/29UP,Tonbridge & Malling Borough Council,9/1/2021,0021037411/1,21037411, 150.00,Trevor May Contractors Ltd,00856100,,Maintenance of Grounds,Open Spaces & Amenity Areas,B22LE000020402,210056323
http://statistics.data.gov.uk/id/local-authority/29UP,Tonbridge & Malling Borough Council,9/1/2021,0021037412/3,21037412, 16.67,REDACTED PERSONAL DATA,01065500,,Maintenance of Grounds,Haysden Country Park,B22LC000020402,
http://statistics.data.gov.uk/id/local-authority/29UP,Tonbridge & Malling Borough Council,9/1/2021,0021037413/1,21037413, 432.00,TMS Protection Ltd,01744300,,Gates / Security,Leybourne Lakes Country Park,B22LK000044017,210056302
http://statistics.data.gov.uk/id/local-authority/29UP,Tonbridge & Malling Borough Council,9/1/2021,0021037414/1,21037414, 20341.80,Landscape Services Ltd,00057600,,Grounds Maintenance Contract,Sports Grounds,B13ET000050103,
http://statistics.data.gov.uk/id/local-authority/29UP,Tonbridge & Malling Borough Council,9/1/2021,0021037414/10,21037414, 149.11,Landscape Services Ltd,00057600,,Grounds Maintenance Contract,Churchyards St Stephens,B28MY000050103,
http://statistics.data.gov.uk/id/local-authority/29UP,Tonbridge & Malling Borough Council,9/1/2021,0021037414/11,21037414, 164.81,Landscape Services Ltd,00057600,,Grounds Maintenance Contract,Grounds,D21FF000050103,
http://statistics.data.gov.uk/id/local-authority/29UP,Tonbridge & Malling Borough Council,9/1/2021,0021037414/12,21037414, 312.58,Landscape Services Ltd,00057600,,Maintenance of Grounds,Parking Off-Street,E10HA000020402,
http://statistics.data.gov.uk/id/local-authority/29UP,Tonbridge & Malling Borough Council,9/1/2021,0021037414/13,21037414, 980.27,Landscape Services Ltd,00057600,,Maintenance of Grounds,Parking Off-Street,E10HAE00120402,
http://statistics.data.gov.uk/id/local-authority/29UP,Tonbridge & Malling Borough Council,9/1/2021,0021037414/14,21037414, 93.08,Landscape Services Ltd,00057600,,Maintenance of Grounds,Parking Off-Street,E10HAE00220402,
http://statistics.data.gov.uk/id/local-authority/29UP,Tonbridge & Malling Borough Council,9/1/2021,0021037414/15,21037414, 84.41,Landscape Services Ltd,00057600,,Maintenance of Grounds,Parking Off-Street,E10HAE00320402,
http://statistics.data.gov.uk/id/local-authority/29UP,Tonbridge & Malling Borough Council,9/1/2021,0021037414/16,21037414, 21.05,Landscape Services Ltd,00057600,,Maintenance of Grounds,Parking Off-Street,E10HAE00420402,
http://statistics.data.gov.uk/id/local-authority/29UP,Tonbridge & Malling Borough Council,9/1/2021,0021037414/17,21037414, 0.54,Landscape Services Ltd,00057600,,Maintenance of Grounds,Parking Off-Street,E10HAE00520402,
http://statistics.data.gov.uk/id/local-authority/29UP,Tonbridge & Malling Borough Council,9/1/2021,0021037414/18,21037414, 58.93,Landscape Services Ltd,00057600,,Maintenance of Grounds,Parking Off-Street,E10HAE00620402,
http://statistics.data.gov.uk/id/local-authority/29UP,Tonbridge & Malling Borough Council,9/1/2021,0021037414/19,21037414, 137.58,Landscape Services Ltd,00057600,,Maintenance of Grounds,Parking Off-Street,E10HAE01020402,
http://statistics.data.gov.uk/id/local-authority/29UP,Tonbridge & Malling Borough Council,9/1/2021,0021037414/2,21037414, 7076.24,Landscape Services Ltd,00057600,,Grounds Maintenance Contract,Tonbridge Castle Grounds,B22LB000050103,
http://statistics.data.gov.uk/id/local-authority/29UP,Tonbridge & Malling Borough Council,9/1/2021,0021037414/20,21037414, 3.05,Landscape Services Ltd,00057600,,Maintenance of Grounds,Parking Off-Street,E10HAE01220402,
http://statistics.data.gov.uk/id/local-authority/29UP,Tonbridge & Malling Borough Council,9/1/2021,0021037414/21,21037414, 6.73,Landscape Services Ltd,00057600,,Maintenance of Grounds,Parking Off-Street,E10HAE01320402,
http://statistics.data.gov.uk/id/local-authority/29UP,Tonbridge & Malling Borough Council,9/1/2021,0021037414/22,21037414, 27.99,Landscape Services Ltd,00057600,,Maintenance of Grounds,Parking Off-Street,E10HAE01520402,
http://statistics.data.gov.uk/id/local-authority/29UP,Tonbridge & Malling Borough Council,9/1/2021,0021037414/23,21037414, 54.69,Landscape Services Ltd,00057600,,Maintenance of Grounds,Parking Off-Street,E10HAE01620402,
http://statistics.data.gov.uk/id/local-authority/29UP,Tonbridge & Malling Borough Council,9/1/2021,0021037414/24,21037414, 13.65,Landscape Services Ltd,00057600,,Maintenance of Grounds,Parking Off-Street,E10HAE02120402,
http://statistics.data.gov.uk/id/local-authority/29UP,Tonbridge & Malling Borough Council,9/1/2021,0021037414/25,21037414, 21.74,Landscape Services Ltd,00057600,,Maintenance of Grounds,Parking Off-Street,E10HAE02320402,
http://statistics.data.gov.uk/id/local-authority/29UP,Tonbridge & Malling Borough Council,9/1/2021,0021037414/26,21037414, 83.33,Landscape Services Ltd,00057600,,Maintenance of Grounds,Parking Off-Street,E10HAE02820402,
http://statistics.data.gov.uk/id/local-authority/29UP,Tonbridge & Malling Borough Council,9/1/2021,0021037414/27,21037414, 22.56,Landscape Services Ltd,00057600,,Maintenance of Grounds,Parking Off-Street,E10HAE04020402,
http://statistics.data.gov.uk/id/local-authority/29UP,Tonbridge & Malling Borough Council,9/1/2021,0021037414/28,21037414, 74.40,Landscape Services Ltd,00057600,,Maintenance of Grounds,Parking Off-Street,E10HAE04520402,
http://statistics.data.gov.uk/id/local-authority/29UP,Tonbridge & Malling Borough Council,9/1/2021,0021037414/3,21037414, 53.86,Landscape Services Ltd,00057600,,Trade Refuse Charges,Haysden Country Park,B22LC000044008,
http://statistics.data.gov.uk/id/local-authority/29UP,Tonbridge & Malling Borough Council,9/1/2021,0021037414/4,21037414, 462.07,Landscape Services Ltd,00057600,,Litter Collection,Haysden Country Park,B22LC000044061,
http://statistics.data.gov.uk/id/local-authority/29UP,Tonbridge & Malling Borough Council,9/1/2021,0021037414/5,21037414, 1600.71,Landscape Services Ltd,00057600,,Grounds Maintenance Contract,Haysden Country Park,B22LC000050103,
http://statistics.data.gov.uk/id/local-authority/29UP,Tonbridge & Malling Borough Council,9/1/2021,0021037414/6,21037414, 554.05,Landscape Services Ltd,00057600,,Grounds Maintenance Contract,Haysden Country Park,B22LC000050103,
http://statistics.data.gov.uk/id/local-authority/29UP,Tonbridge & Malling Borough Council,9/1/2021,0021037414/7,21037414, 11232.13,Landscape Services Ltd,00057600,,Grounds Maintenance Contract,Open Spaces & Amenity Areas,B22LE000050103,
http://statistics.data.gov.uk/id/local-authority/29UP,Tonbridge & Malling Borough Council,9/1/2021,0021037414/8,21037414, 4341.07,Landscape Services Ltd,00057600,,Grounds Maintenance Contract,Cemetery,B26MP000050103,
http://statistics.data.gov.uk/id/local-authority/29UP,Tonbridge & Malling Borough Council,9/1/2021,0021037414/9,21037414, 205.04,Landscape Services Ltd,00057600,,Grounds Maintenance Contract,Churchyards St Peter & St Paul,B28MX000050103,
http://statistics.data.gov.uk/id/local-authority/29UP,Tonbridge & Malling Borough Council,9/1/2021,0022025704/3,22025704, 220.20,Countrystyle Group,00835900,781981681,Plastic Recycling,Dry Recycling,H34SR000054019,
http://statistics.data.gov.uk/id/local-authority/29UP,Tonbridge & Malling Borough Council,9/1/2021,0022025705/3,22025705, 233.00,Countrystyle Group,00835900,781981681,Plastic Recycling,Dry Recycling,H34SR000054019,
http://statistics.data.gov.uk/id/local-authority/29UP,Tonbridge & Malling Borough Council,9/1/2021,0022025706/3,22025706, 763.31,G2 Recruitment Solutions,01786000,,Temporary Staff,Env Hlth & Hsg Sals&Overheads,D01AVDV0711300,
http://statistics.data.gov.uk/id/local-authority/29UP,Tonbridge & Malling Borough Council,9/1/2021,0022025707/3,22025707, 763.31,G2 Recruitment Solutions,01786000,,Temporary Staff,Env Hlth & Hsg Sals&Overheads,D01AVDV0711300,
http://statistics.data.gov.uk/id/local-authority/29UP,Tonbridge & Malling Borough Council,9/1/2021,0022025708/1,22025708, 250.00,TLC-The Ladies Can,01762200,,Professional Fees,Homelessness,C01AA000044001,
http://statistics.data.gov.uk/id/local-authority/29UP,Tonbridge & Malling Borough Council,9/1/2021,0022025709/1,22025709, 175.00,Acoustics Noise & Vibration LTD,01490400,,Air Quality Monitoring,Environmental Protection,H32SN000054016,220003141
http://statistics.data.gov.uk/id/local-authority/29UP,Tonbridge & Malling Borough Council,9/1/2021,0022025709/2,22025709, 19.00,Acoustics Noise & Vibration LTD,01490400,,Air Quality Monitoring,Environmental Protection,H32SN000054016,220003141
http://statistics.data.gov.uk/id/local-authority/29UP,Tonbridge & Malling Borough Council,9/1/2021,0022025710/1,22025710, 355.00,Acoustic Calibration Services Ltd,00775900,,Maintenance - General,Environmental Protection,H32SN000040135,220003139
http://statistics.data.gov.uk/id/local-authority/29UP,Tonbridge & Malling Borough Council,9/1/2021,0022025711/1,22025711, 950.00,Stiles Harold Williams LLP,01721700,,Temporary Accommodation,Homelessness,C01AASYRI44051,
http://statistics.data.gov.uk/id/local-authority/29UP,Tonbridge & Malling Borough Council,9/1/2021,0022025712/3,22025712, 30.17,KCC - L.A.S.E.R Commercial Services ,00184300,,Electricity,Public Conveniences,H22SCH01221002,
http://statistics.data.gov.uk/id/local-authority/29UP,Tonbridge & Malling Borough Council,9/1/2021,0022025713/3,22025713, 618.75,KH Recruitment Ltd,01738900,,Temporary Staff,St Scene & Leis Sals&Overheads,D01AGDG3011300,
http://statistics.data.gov.uk/id/local-authority/29UP,Tonbridge & Malling Borough Council,9/1/2021,0022025714/3,22025714, 225.80,Countrystyle Group,00835900,781981681,Plastic Recycling,Dry Recycling,H34SR000054019,
http://statistics.data.gov.uk/id/local-authority/29UP,Tonbridge & Malling Borough Council,9/1/2021,0022025716/1,22025716, 961.00,Kent Property Services,01722500,,Temporary Accommodation,Homelessness,C01AA000044051,
http://statistics.data.gov.uk/id/local-authority/29UP,Tonbridge & Malling Borough Council,9/1/2021,0022025717/1,22025717, 70.00,Man Van & Sam Removals,01813900,,Homelessness Reduction Initiat,Homelessness,C01AA000048019,
http://statistics.data.gov.uk/id/local-authority/29UP,Tonbridge & Malling Borough Council,9/1/2021,0022025718/1,22025718, 5750.00,Waste Consulting LLP,01530700,737059028,Other Expenses,Refuse Collection,H20SA000048010,220003112
http://statistics.data.gov.uk/id/local-authority/29UP,Tonbridge & Malling Borough Council,9/1/2021,0022025719/3,22025719, 3735.29,Ward Security LTD,01490000,,Dog Warden,Street Scene,H23SD000044100,
http://statistics.data.gov.uk/id/local-authority/29UP,Tonbridge & Malling Borough Council,9/1/2021,0022025720/1,22025720, 21.79,Maidstone Borough Council,01173700,,Temporary Accommodation,Homelessness,C01AA000044051,
http://statistics.data.gov.uk/id/local-authority/29UP,Tonbridge & Malling Borough Council,9/1/2021,0022025721/1,22025721, 27.75,Maidstone Borough Council,01173700,,Temporary Accommodation,Homelessness,C01AA000044051,
http://statistics.data.gov.uk/id/local-authority/29UP,Tonbridge & Malling Borough Council,9/1/2021,0031018126/1,31018126, 93.69,KM Media Group Ltd,00053900,,Advertising General,Parking Off-Street,E10HA000044216,310042681
http://statistics.data.gov.uk/id/local-authority/29UP,Tonbridge & Malling Borough Council,9/1/2021,0031018127/1,31018127, 236.04,Patrol,01189800,,Adjudication & Enforcement Ser,Parking Off-Street,E10HA000044230,310042666
http://statistics.data.gov.uk/id/local-authority/29UP,Tonbridge & Malling Borough Council,9/1/2021,0031018127/2,31018127, 354.06,Patrol,01189800,,Adjudication & Enforcement Ser,Parking On-Street,E10HD000044230,310042666
http://statistics.data.gov.uk/id/local-authority/29UP,Tonbridge & Malling Borough Council,9/1/2021,0031018128/1,31018128, 187.50,Imperial Civil Enforcement Solutions,00057200,,Maintenance - General,Parking Off-Street,E10HA000040135,310042686
http://statistics.data.gov.uk/id/local-authority/29UP,Tonbridge & Malling Borough Council,9/1/2021,0031018128/2,31018128, 187.50,Imperial Civil Enforcement Solutions,00057200,,Maintenance - General,Parking On-Street,E10HD000040135,310042686
http://statistics.data.gov.uk/id/local-authority/29UP,Tonbridge & Malling Borough Council,9/1/2021,0031018131/1,31018131, 1511.40,SKF Contractors Ltd,00092000,,Repair & Mtce of Fixed Plant,Boro Highways & Emergency Oper,E01AA000020501,310042696
http://statistics.data.gov.uk/id/local-authority/29UP,Tonbridge & Malling Borough Council,9/1/2021,0031018132/3,31018132, 407.85,Arnold & Court Ltd,01411300,,Maintenance - General,Security Services Management,E09GA000040135,
http://statistics.data.gov.uk/id/local-authority/29UP,Tonbridge & Malling Borough Council,9/1/2021,0031018132/4,31018132, 57.15,Arnold & Court Ltd,01411300,,Maintenance of Grounds,Parking Off-Street,E10HA000020402,
http://statistics.data.gov.uk/id/local-authority/29UP,Tonbridge & Malling Borough Council,9/1/2021,0031018133/3,31018133, 114.30,Arnold & Court Ltd,01411300,,Maintenance of Grounds,Cemetery,B26MP000020402,
http://statistics.data.gov.uk/id/local-authority/29UP,Tonbridge & Malling Borough Council,9/1/2021,0031018133/4,31018133, 285.70,Arnold & Court Ltd,01411300,,Purchases,Parking On-Street,E10HD000040101,
http://statistics.data.gov.uk/id/local-authority/29UP,Tonbridge & Malling Borough Council,9/1/2021,0031018134/3,31018134, 127.28,Arnold & Court Ltd,01411300,,Repair & Mtce of Fixed Plant,Boro Highways & Emergency Oper,E01AA000020501,
http://statistics.data.gov.uk/id/local-authority/29UP,Tonbridge & Malling Borough Council,9/1/2021,0031018134/4,31018134, 169.14,Arnold & Court Ltd,01411300,,Premises Repairs & Maintenance,Parking Off-Street,E10HAE01020601,
http://statistics.data.gov.uk/id/local-authority/29UP,Tonbridge & Malling Borough Council,9/1/2021,0031018134/5,31018134, 122.30,Arnold & Court Ltd,01411300,,Premises Repairs & Maintenance,Parking Off-Street,E10HAE02720601,
http://statistics.data.gov.uk/id/local-authority/29UP,Tonbridge & Malling Borough Council,9/1/2021,0031018134/6,31018134, 114.28,Arnold & Court Ltd,01411300,,Purchases,Parking On-Street,E10HD000040101,
http://statistics.data.gov.uk/id/local-authority/29UP,Tonbridge & Malling Borough Council,9/1/2021,0031018135/3,31018135, 228.58,Arnold & Court Ltd,01411300,,Premises Repairs & Maintenance,Parking Off-Street,E10HA000020601,
http://statistics.data.gov.uk/id/local-authority/29UP,Tonbridge & Malling Borough Council,9/1/2021,0031018135/4,31018135, 171.42,Arnold & Court Ltd,01411300,,Premises Repairs & Maintenance,Parking Off-Street,E10HAE01020601,
http://statistics.data.gov.uk/id/local-authority/29UP,Tonbridge & Malling Borough Council,9/1/2021,0031018136/3,31018136, 560.00,Arnold & Court Ltd,01411300,,Premises Repairs & Maintenance,Parking Off-Street,E10HAE00220601,
http://statistics.data.gov.uk/id/local-authority/29UP,Tonbridge & Malling Borough Council,9/1/2021,0031018138/1,31018138, 966.00,Barricade LTD,01509500,,Other Expenses,Car Park Imp Rolling Programme,P01AB000009908,310042689
http://statistics.data.gov.uk/id/local-authority/29UP,Tonbridge & Malling Borough Council,9/1/2021,0031018138/2,31018138, 135.00,Barricade LTD,01509500,,Other Expenses,Car Park Imp Rolling Programme,P01AB000009908,310042689
http://statistics.data.gov.uk/id/local-authority/29UP,Tonbridge & Malling Borough Council,9/1/2021,0031018139/1,31018139, 4058.00,HEREF Tonbridge Ltd,01518900,,Pay to Principal - Botany CP,Parking Off-Street,E10HA000044197,
http://statistics.data.gov.uk/id/local-authority/29UP,Tonbridge & Malling Borough Council,9/1/2021,0031018140/1,31018140, 37550.30,HEREF Tonbridge Ltd,01518900,,Pay to Principal - Botany CP,Parking Off-Street,E10HA000044197,
http://statistics.data.gov.uk/id/local-authority/29UP,Tonbridge & Malling Borough Council,9/1/2021,0031018142/3,31018142, 1531.63,CDER Group,01773300,,Adjudication & Enforcement Ser,Parking Off-Street,E10HA000044230,
http://statistics.data.gov.uk/id/local-authority/29UP,Tonbridge & Malling Borough Council,9/1/2021,0032009233/1,32009233, 187.38,KM Media Group Ltd,00053900,,Advertising General,Development Management,A01ABZ99944216,320003322
http://statistics.data.gov.uk/id/local-authority/29UP,Tonbridge & Malling Borough Council,9/1/2021,0032009234/3,32009234, 1250.00,Tunbridge Wells Borough Council,00844600,,Temporary Staff,Planning Sals&Overheads,D01AJDJ0311300,
http://statistics.data.gov.uk/id/local-authority/29UP,Tonbridge & Malling Borough Council,9/1/2021,0032009235/1,32009235, 1320.53,Arcadis Consulting (UK) Limited,01760300,,Professional Fees,Planning Policy,A01AFBORO44001,320003208
http://statistics.data.gov.uk/id/local-authority/29UP,Tonbridge & Malling Borough Council,9/1/2021,0032009236/3,32009236, 1080.00,The Oyster Partnership,01196400,,Temporary Staff,Planning Sals&Overheads,D01AJDJ0111300,
http://statistics.data.gov.uk/id/local-authority/29UP,Tonbridge & Malling Borough Council,9/1/2021,0032009237/1,32009237, 660.00,G2 Recruitment Solutions,01786000,,Temporary Staff,Planning Sals&Overheads,D01AJDJ0111300,320003308
http://statistics.data.gov.uk/id/local-authority/29UP,Tonbridge & Malling Borough Council,9/1/2021,0032009239/1,32009239, 124.92,KM Media Group Ltd,00053900,,Advertising General,Development Management,A01ABZ99944216,320003323
http://statistics.data.gov.uk/id/local-authority/29UP,Tonbridge & Malling Borough Council,9/1/2021,0041033363/3,41033363, 925.00,Morgan Hunt UK Ltd,01086900,,Temporary Staff,Finance Sals&Overheads,D01AFDF1111300,
http://statistics.data.gov.uk/id/local-authority/29UP,Tonbridge & Malling Borough Council,9/1/2021,0041033367/3,41033367, 583.05,Morgan Hunt UK Ltd,01086900,,Temporary Staff,Finance Sals&Overheads,D01AFDF1111300,
http://statistics.data.gov.uk/id/local-authority/29UP,Tonbridge & Malling Borough Council,9/1/2021,0041033368/3,41033368, 280.50,KH Recruitment Ltd,01738900,,Temporary Staff,Finance Sals&Overheads,D01AFDF1111300,
http://statistics.data.gov.uk/id/local-authority/29UP,Tonbridge & Malling Borough Council,9/1/2021,0041033373/3,41033373, 329.53,Rundle & Co Ltd,00087200,,Bailiffs Commission,Local Revenue & NNDR Collect,D41QA000044075,
http://statistics.data.gov.uk/id/local-authority/29UP,Tonbridge & Malling Borough Council,9/1/2021,0041033374/1,41033374, 80.00,WorldPay Ltd,01402000,991280207,Credit Card Commission,Banking Arrangements,D43QK000044082,
http://statistics.data.gov.uk/id/local-authority/29UP,Tonbridge & Malling Borough Council,9/1/2021,0041033374/2,41033374, 74.24,WorldPay Ltd,01402000,991280207,Credit Card Commission,Banking Arrangements,D43QK000044082,
http://statistics.data.gov.uk/id/local-authority/29UP,Tonbridge & Malling Borough Council,9/1/2021,0041033374/3,41033374, 0.48,WorldPay Ltd,01402000,991280207,Credit Card Commission,Banking Arrangements,D43QK000044082,
http://statistics.data.gov.uk/id/local-authority/29UP,Tonbridge & Malling Borough Council,9/1/2021,0041033375/1,41033375, 80.00,WorldPay Ltd,01402000,991280207,Credit Card Commission,Banking Arrangements,D43QK000044082,
http://statistics.data.gov.uk/id/local-authority/29UP,Tonbridge & Malling Borough Council,9/1/2021,0041033375/2,41033375, 101.36,WorldPay Ltd,01402000,991280207,Credit Card Commission,Banking Arrangements,D43QK000044082,
http://statistics.data.gov.uk/id/local-authority/29UP,Tonbridge & Malling Borough Council,9/1/2021,0041033375/3,41033375, 0.48,WorldPay Ltd,01402000,991280207,Credit Card Commission,Banking Arrangements,D43QK000044082,
http://statistics.data.gov.uk/id/local-authority/29UP,Tonbridge & Malling Borough Council,9/1/2021,0041033376/1,41033376, 80.00,WorldPay Ltd,01402000,991280207,Credit Card Commission,Banking Arrangements,D43QK000044082,
http://statistics.data.gov.uk/id/local-authority/29UP,Tonbridge & Malling Borough Council,9/1/2021,0041033376/2,41033376, 161.28,WorldPay Ltd,01402000,991280207,Credit Card Commission,Banking Arrangements,D43QK000044082,
http://statistics.data.gov.uk/id/local-authority/29UP,Tonbridge & Malling Borough Council,9/1/2021,0041033378/1,41033378, 7368.00,Sevenoaks District Council,00089300,,Building Control Partnership,Building Control,A01AD000054023,
http://statistics.data.gov.uk/id/local-authority/29UP,Tonbridge & Malling Borough Council,9/1/2021,0041033378/2,41033378, 45000.00,Sevenoaks District Council,00089300,,Payment re Prev Yrs Cred Acc,Sundry Creditors PHEHS,J80TB000001101,
http://statistics.data.gov.uk/id/local-authority/29UP,Tonbridge & Malling Borough Council,9/1/2021,0041033383/1,41033383, 914.25,Morgan Hunt UK Ltd,01086900,,Temporary Staff,Finance Sals&Overheads,D01AFDF1111300,
http://statistics.data.gov.uk/id/local-authority/29UP,Tonbridge & Malling Borough Council,9/1/2021,0041033384/1,41033384, 925.00,Morgan Hunt UK Ltd,01086900,,Temporary Staff,Finance Sals&Overheads,D01AFDF1111300,
http://statistics.data.gov.uk/id/local-authority/29UP,Tonbridge & Malling Borough Council,9/1/2021,0041033385/1,41033385, 595.73,Morgan Hunt UK Ltd,01086900,,Temporary Staff,Finance Sals&Overheads,D01AFDF1111300,
http://statistics.data.gov.uk/id/local-authority/29UP,Tonbridge & Malling Borough Council,9/1/2021,0041033386/1,41033386, 284.63,KH Recruitment Ltd,01738900,,Temporary Staff,Finance Sals&Overheads,D01AFDF1111300,
http://statistics.data.gov.uk/id/local-authority/29UP,Tonbridge & Malling Borough Council,9/1/2021,0041033388/1,41033388, 279.03,Rundle & Co Ltd,00087200,,Bailiffs Commission,Local Revenue & NNDR Collect,D41QA000044075,
http://statistics.data.gov.uk/id/local-authority/29UP,Tonbridge & Malling Borough Council,9/1/2021,0051008584/1,51008584, 1260.00,St John Ambulance Supplies,01228000,,Ext Fees/Health & Safety,Training,D10DC000013566,510010507
http://statistics.data.gov.uk/id/local-authority/29UP,Tonbridge & Malling Borough Council,9/1/2021,0051008585/1,51008585, 315.00,St John Ambulance Supplies,01228000,,Ext Fees/Health & Safety,Training,D10DC000013566,510010508
http://statistics.data.gov.uk/id/local-authority/29UP,Tonbridge & Malling Borough Council,9/1/2021,0051008586/1,51008586, 315.00,St John Ambulance Supplies,01228000,,Ext Fees/Health & Safety,Training,D10DCDG0413566,510010509
http://statistics.data.gov.uk/id/local-authority/29UP,Tonbridge & Malling Borough Council,9/1/2021,0051008587/1,51008587, 399.00,St John Ambulance Supplies,01228000,,Ext Fees/Health & Safety,Training,D10DCDJ0113566,510010510
http://statistics.data.gov.uk/id/local-authority/29UP,Tonbridge & Malling Borough Council,9/1/2021,0051008588/3,51008588, 200.00,iHASCO LTD,01814100,,Ext Fees/Health & Safety,Training,D10DC000013566,
http://statistics.data.gov.uk/id/local-authority/29UP,Tonbridge & Malling Borough Council,9/2/2021,0041033395/1,41033395, 97.59,Utax UK Ltd,01658500,642302771,Copy Charges,Multi Function Devices,D22GB000040125,
http://statistics.data.gov.uk/id/local-authority/29UP,Tonbridge & Malling Borough Council,9/2/2021,0041033396/1,41033396, 82.40,Utax UK Ltd,01658500,642302771,Copy Charges,Multi Function Devices,D22GB000040125,
http://statistics.data.gov.uk/id/local-authority/29UP,Tonbridge & Malling Borough Council,9/2/2021,0041033397/1,41033397, 275.45,National Westminster Bank Plc,00069400,,Bank Charges,Banking Arrangements,D43QK000044222,
http://statistics.data.gov.uk/id/local-authority/29UP,Tonbridge & Malling Borough Council,9/3/2021,0041033402/1,41033402, 68.00,National Westminster Bank Plc,00069400,,Direct Debit / Bank Charges,Local Revenue & NNDR Collect,D41QA000044079,
http://statistics.data.gov.uk/id/local-authority/29UP,Tonbridge & Malling Borough Council,9/3/2021,0041033403/1,41033403, 20.19,WorldPay Ltd,01402000,991280207,Credit Card Commission,Banking Arrangements,D43QK000044082,
http://statistics.data.gov.uk/id/local-authority/29UP,Tonbridge & Malling Borough Council,9/3/2021,0041033404/1,41033404, 36.00,YESpay International Limited,01068000,991280207,Contract Services,Banking Arrangements,D43QK000044005,
http://statistics.data.gov.uk/id/local-authority/29UP,Tonbridge & Malling Borough Council,9/6/2021,0041033401/10,41033401, 24.00,National Westminster Bank Plc,00894500,,Marketing,Youth Partnerships,B33PGZ99944215,
http://statistics.data.gov.uk/id/local-authority/29UP,Tonbridge & Malling Borough Council,9/6/2021,0041033401/11,41033401, 98.55,National Westminster Bank Plc,00894500,,Community Group Funding,Leisure Planning & Policy,B37SD000047028,
http://statistics.data.gov.uk/id/local-authority/29UP,Tonbridge & Malling Borough Council,9/6/2021,0041033401/12,41033401, 68.65,National Westminster Bank Plc,00894500,,Purchases,Env Hlth & Hsg Sals&Overheads,D01AVDV0740101,
http://statistics.data.gov.uk/id/local-authority/29UP,Tonbridge & Malling Borough Council,9/6/2021,0041033401/15,41033401, 100.00,National Westminster Bank Plc,00894500,,Purchases,Cleaning & Security,D21FD000040101,
http://statistics.data.gov.uk/id/local-authority/29UP,Tonbridge & Malling Borough Council,9/6/2021,0041033401/16,41033401, 259.09,National Westminster Bank Plc,00894500,,Purchases,Cleaning & Security,D21FD000040101,
http://statistics.data.gov.uk/id/local-authority/29UP,Tonbridge & Malling Borough Council,9/6/2021,0041033401/17,41033401, 10.49,National Westminster Bank Plc,00894500,,Purchases,Customer Services,D23CS000040101,
http://statistics.data.gov.uk/id/local-authority/29UP,Tonbridge & Malling Borough Council,9/6/2021,0041033401/18,41033401, 4.93,National Westminster Bank Plc,00894500,,Purchases,Information Technology,D27KD000040101,
http://statistics.data.gov.uk/id/local-authority/29UP,Tonbridge & Malling Borough Council,9/6/2021,0041033401/19,41033401, 18.60,National Westminster Bank Plc,00894500,,Software Hire & Support,Information Technology,D27KD000044059,
http://statistics.data.gov.uk/id/local-authority/29UP,Tonbridge & Malling Borough Council,9/6/2021,0041033401/20,41033401, 59.88,National Westminster Bank Plc,00894500,,Information & Publicity,Information & Publicity,D32MJ000044076,
http://statistics.data.gov.uk/id/local-authority/29UP,Tonbridge & Malling Borough Council,9/6/2021,0041033401/22,41033401, 1314.00,National Westminster Bank Plc,00894500,,Legal Fees,Local Revenue & NNDR Collect,D41QA000044002,
http://statistics.data.gov.uk/id/local-authority/29UP,Tonbridge & Malling Borough Council,9/6/2021,0041033401/23,41033401, 485.80,National Westminster Bank Plc,00894500,,H&CG Fund Council Specific,Eco Dev & Reg Gen Bus Support,D52TD000047027,
http://statistics.data.gov.uk/id/local-authority/29UP,Tonbridge & Malling Borough Council,9/6/2021,0041033401/24,41033401, 105.52,National Westminster Bank Plc,00894500,,Sales,TIC Stock Account,K18AX000002002,
http://statistics.data.gov.uk/id/local-authority/29UP,Tonbridge & Malling Borough Council,9/8/2021,0011043107/1,11043107, 40.00,Ashford Borough Council,00005800,,Hospitality,Mayoral & Other Member Support,D29LX000048003,
http://statistics.data.gov.uk/id/local-authority/29UP,Tonbridge & Malling Borough Council,9/8/2021,0011043115/1,11043115, 1950.00,Raigins,01769400,,Office Security,Cleaning & Security,D21FD000044047,110069072
http://statistics.data.gov.uk/id/local-authority/29UP,Tonbridge & Malling Borough Council,9/8/2021,0011043116/1,11043116, 2109.50,Willow Pumps Ltd,00114100,,BRREP Servicing - Pumping Stn,Ton Sportsgrnd Bldgs / Toilets,M15HCP20001931,110069145
http://statistics.data.gov.uk/id/local-authority/29UP,Tonbridge & Malling Borough Council,9/8/2021,0011043117/1,11043117, 1724.50,Willow Pumps Ltd,00114100,,BRREP Servicing - Pumping Stn,Ton Sportsgrnd Bldgs / Toilets,M15HCP20001931,110069138
http://statistics.data.gov.uk/id/local-authority/29UP,Tonbridge & Malling Borough Council,9/8/2021,0011043118/1,11043118, 1574.00,KCS,00054200,,Purchases,Cleaning & Security,D21FDDD6040101,110069173
http://statistics.data.gov.uk/id/local-authority/29UP,Tonbridge & Malling Borough Council,9/8/2021,0011043119/1,11043119, 1650.00,KH Recruitment Ltd,01738900,,Temporary Staff,Admin & Prop Sals&Overheads,D01AADA1211300,
http://statistics.data.gov.uk/id/local-authority/29UP,Tonbridge & Malling Borough Council,9/8/2021,0011043120/1,11043120, 735.00,Encore Envelopes Ltd,01750600,,Stationery,Electoral Registration,D31MF000043003,
http://statistics.data.gov.uk/id/local-authority/29UP,Tonbridge & Malling Borough Council,9/8/2021,0011043121/1,11043121, 378.00,Venn Group Ltd,00914300,,Temporary Staff,Legal Sals&Overheads,D01ARDR0011300,
http://statistics.data.gov.uk/id/local-authority/29UP,Tonbridge & Malling Borough Council,9/8/2021,0011043122/1,11043122, 1650.00,KH Recruitment Ltd,01738900,,Temporary Staff,Admin & Prop Sals&Overheads,D01AADA1211300,
http://statistics.data.gov.uk/id/local-authority/29UP,Tonbridge & Malling Borough Council,9/8/2021,0011043124/3,11043124, 147.51,Chubb Fire & Security Ltd,00115400,174605362,BRREP Servicing-IntruderAlarm,Larkfield Leisure Centre,M15HDP20001939,
http://statistics.data.gov.uk/id/local-authority/29UP,Tonbridge & Malling Borough Council,9/8/2021,0011043125/3,11043125, 79.00,BML Building Services Ltd,01505000,,BRREP Window/door repairs,PC - General,M15JAP20001919,
http://statistics.data.gov.uk/id/local-authority/29UP,Tonbridge & Malling Borough Council,9/8/2021,0011043126/3,11043126, 37.16,Viridor Waste Management Ltd,00682900,,Trade Refuse Charges,Cleaning & Security,D21FD000044008,
http://statistics.data.gov.uk/id/local-authority/29UP,Tonbridge & Malling Borough Council,9/8/2021,0011043127/1,11043127, 372.45,Scottish Water Business Stream Ltd,01641100,,Sewerage Charges,Buildings,D21FEDD6024003,
http://statistics.data.gov.uk/id/local-authority/29UP,Tonbridge & Malling Borough Council,9/8/2021,0011043128/3,11043128, 278.00,BML Building Services Ltd,01505000,,BRREP Response - General,Tonbridge Castle / CAB,M15KFP50001997,
http://statistics.data.gov.uk/id/local-authority/29UP,Tonbridge & Malling Borough Council,9/8/2021,0011043130/1,11043130, 3588.50,H20 Servicing Limited,00888800,808041553,BRREP Servicing - pool plant,Larkfield Leisure Centre,M15HDP20001910,110069094
http://statistics.data.gov.uk/id/local-authority/29UP,Tonbridge & Malling Borough Council,9/8/2021,0011043131/1,11043131, 4711.64,H20 Servicing Limited,00888800,808041553,BRREP Servicing - pool plant,Tonbridge Swimming Pool,M15HBP20001910,110069094
http://statistics.data.gov.uk/id/local-authority/29UP,Tonbridge & Malling Borough Council,9/8/2021,0011043132/1,11043132, 5833.50,Bevan Brittan LLP,01096600,,Legal Fees,Legal Sals&Overheads,D01ARDR0044002,
http://statistics.data.gov.uk/id/local-authority/29UP,Tonbridge & Malling Borough Council,9/8/2021,0011043133/1,11043133, 550.00,Cornerstones Barristers,01359100,,Other Planning Enq - Legal Cos,Legal Sals&Overheads,D01ARDR0044146,
http://statistics.data.gov.uk/id/local-authority/29UP,Tonbridge & Malling Borough Council,9/8/2021,0011043134/1,11043134, 4872.95,Royal Mail,00086200,,Postages - PPI / Walksort,Electoral Registration,D31MF000045017,
http://statistics.data.gov.uk/id/local-authority/29UP,Tonbridge & Malling Borough Council,9/8/2021,0011043134/2,11043134, 1695.47,Royal Mail,00086200,,Purchases,Mailsort Stock Account,K37BR000001002,
http://statistics.data.gov.uk/id/local-authority/29UP,Tonbridge & Malling Borough Council,9/8/2021,0011043134/3,11043134, 6.40,Royal Mail,00086200,,Purchases,Mailsort Stock Account,K37BR000001002,
http://statistics.data.gov.uk/id/local-authority/29UP,Tonbridge & Malling Borough Council,9/8/2021,0012007986/1,12007986, 127.83,KCS,00054200,,Leasing Charges,Multi Function Devices,D22GB000044038,
http://statistics.data.gov.uk/id/local-authority/29UP,Tonbridge & Malling Borough Council,9/8/2021,0012008109/3,12008109, 13.93,Esendex Limited,01008900,,Leased Lines & Modems,Information Technology,D27KD000045011,
http://statistics.data.gov.uk/id/local-authority/29UP,Tonbridge & Malling Borough Council,9/8/2021,0012008110/3,12008110, 386.00,iHub UK Limited,01287000,,Telephones - Rentals,General Admin Telephones,D24GT000045005,
http://statistics.data.gov.uk/id/local-authority/29UP,Tonbridge & Malling Borough Council,9/8/2021,0012008110/4,12008110, 0.69,iHub UK Limited,01287000,,Telephones - Call Costs,General Admin Telephones,D24GT000045006,
http://statistics.data.gov.uk/id/local-authority/29UP,Tonbridge & Malling Borough Council,9/8/2021,0012008111/3,12008111, 1098.88,KH Recruitment Ltd,01738900,,Salaries & On Costs,Information Technology,D27KD000015100,
http://statistics.data.gov.uk/id/local-authority/29UP,Tonbridge & Malling Borough Council,9/8/2021,0012008112/1,12008112, 7.50,Softcat,01615300,,Delivery Expenses,Information Technology,D27KD000044069,410031997
http://statistics.data.gov.uk/id/local-authority/29UP,Tonbridge & Malling Borough Council,9/8/2021,0012008112/2,12008112, 5283.30,Softcat,01615300,,Initial Furniture & Equipment,Capital Renewals IT,P06FBFB2009906,410031997
http://statistics.data.gov.uk/id/local-authority/29UP,Tonbridge & Malling Borough Council,9/8/2021,0012008113/1,12008113, 11.66,Amazon EU SARL,01738400,,Purchases,Information Technology,D27KD000040101,410032033
http://statistics.data.gov.uk/id/local-authority/29UP,Tonbridge & Malling Borough Council,9/8/2021,0012008113/2,12008113, 4.16,Amazon EU SARL,01738400,,Delivery Expenses,Information Technology,D27KD000044069,410032033
http://statistics.data.gov.uk/id/local-authority/29UP,Tonbridge & Malling Borough Council,9/8/2021,0012008114/1,12008114, 384.00,Insight Direct (UK) Ltd,01092700,,Software Hire & Support,Information Technology,D27KD000044059,410031984
http://statistics.data.gov.uk/id/local-authority/29UP,Tonbridge & Malling Borough Council,9/8/2021,0012008115/1,12008115, 787.10,NTT Cloud Communications,01794600,,Software Hire & Support,Information Technology,D27KD000044059,410031928
http://statistics.data.gov.uk/id/local-authority/29UP,Tonbridge & Malling Borough Council,9/8/2021,0012008116/1,12008116, 402.10,Vanquish Tech,01798700,,Purchases,Information Technology,D27KD000040101,410032035
http://statistics.data.gov.uk/id/local-authority/29UP,Tonbridge & Malling Borough Council,9/8/2021,0012008116/2,12008116, 3234.60,Vanquish Tech,01798700,,Purchases,Information Technology,D27KD000040101,410032035
http://statistics.data.gov.uk/id/local-authority/29UP,Tonbridge & Malling Borough Council,9/8/2021,0012008117/1,12008117, 11.26,Daisy Communications,01068100,,Telephones - General,Leybourne Lakes Country Park,B22LK000045010,
http://statistics.data.gov.uk/id/local-authority/29UP,Tonbridge & Malling Borough Council,9/8/2021,0012008117/2,12008117, 5.46,Daisy Communications,01068100,,Telephones - Rentals,General Admin Telephones,D24GT000045005,
http://statistics.data.gov.uk/id/local-authority/29UP,Tonbridge & Malling Borough Council,9/8/2021,0012008117/3,12008117, 254.61,Daisy Communications,01068100,,Telephones - Call Costs,General Admin Telephones,D24GT000045006,
http://statistics.data.gov.uk/id/local-authority/29UP,Tonbridge & Malling Borough Council,9/8/2021,0012008117/4,12008117, 84.88,Daisy Communications,01068100,,Leased Lines & Modems,Information Technology,D27KD000045011,
http://statistics.data.gov.uk/id/local-authority/29UP,Tonbridge & Malling Borough Council,9/8/2021,0012008117/5,12008117, 65.88,Daisy Communications,01068100,,Maintenance - General,Security Services Management,E09GA000040135,
http://statistics.data.gov.uk/id/local-authority/29UP,Tonbridge & Malling Borough Council,9/8/2021,0021037416/1,21037416, 6.00,G.L. & R.G. Bourne,00737500,,Gates / Security,Haysden Country Park,B22LC000044017,210055850
http://statistics.data.gov.uk/id/local-authority/29UP,Tonbridge & Malling Borough Council,9/8/2021,0021037417/1,21037417, 544.98,G.L. & R.G. Bourne,00737500,,Gates / Security,Haysden Country Park,B22LC000044017,210056214
http://statistics.data.gov.uk/id/local-authority/29UP,Tonbridge & Malling Borough Council,9/8/2021,0021037418/3,21037418, 6.00,G.L. & R.G. Bourne,00737500,,Maintenance of Grounds,Haysden Country Park,B22LC000020402,
http://statistics.data.gov.uk/id/local-authority/29UP,Tonbridge & Malling Borough Council,9/8/2021,0021037419/1,21037419, 35.00,G.L. & R.G. Bourne,00737500,,Maintenance of Grounds,Haysden Country Park,B22LC000020402,210056293
http://statistics.data.gov.uk/id/local-authority/29UP,Tonbridge & Malling Borough Council,9/8/2021,0021037420/1,21037420, 74.71,G.L. & R.G. Bourne,00737500,,Gates / Security,Haysden Country Park,B22LC000044017,210055850
http://statistics.data.gov.uk/id/local-authority/29UP,Tonbridge & Malling Borough Council,9/8/2021,0021037421/3,21037421, 72.71,B&Q/Screwfix Direct,00141300,,Purchases,Leybourne Lakes Country Park,B22LK000040101,
http://statistics.data.gov.uk/id/local-authority/29UP,Tonbridge & Malling Borough Council,9/8/2021,0021037421/4,21037421, 11.00,B&Q/Screwfix Direct,00141300,,Purchases,Leybourne Lakes Country Park,B22LK000040101,
http://statistics.data.gov.uk/id/local-authority/29UP,Tonbridge & Malling Borough Council,9/8/2021,0021037423/3,21037423, 3.24,B&Q/Screwfix Direct,00141300,,Maintenance of Grounds,Haysden Country Park,B22LC000020402,
http://statistics.data.gov.uk/id/local-authority/29UP,Tonbridge & Malling Borough Council,9/8/2021,0021037424/3,21037424, 137.20,Countrystyle Group,00835900,781981681,Trade Refuse Charges,Leybourne Lakes Country Park,B22LK000044008,
http://statistics.data.gov.uk/id/local-authority/29UP,Tonbridge & Malling Borough Council,9/8/2021,0021037425/3,21037425, 30.00,Lawrence Container Hire Ltd,01033800,,Maintenance of Grounds,Leybourne Lakes Country Park,B22LK000020402,
http://statistics.data.gov.uk/id/local-authority/29UP,Tonbridge & Malling Borough Council,9/8/2021,0021037426/1,21037426, 46.00,South East Water Ltd,01330300,,Maintenance of Grounds,Leybourne Lakes Country Park,B22LK000020402,210056372
http://statistics.data.gov.uk/id/local-authority/29UP,Tonbridge & Malling Borough Council,9/8/2021,0021037427/1,21037427, 432.00,TMS Protection Ltd,01744300,,Gates / Security,Leybourne Lakes Country Park,B22LK000044017,210056302
http://statistics.data.gov.uk/id/local-authority/29UP,Tonbridge & Malling Borough Council,9/8/2021,0021037428/1,21037428, 150.00,Trevor May Contractors Ltd,00856100,,Maintenance of Grounds,Sports Grounds,B13ET000020402,210056448
http://statistics.data.gov.uk/id/local-authority/29UP,Tonbridge & Malling Borough Council,9/8/2021,0021037429/1,21037429, 661.50,Prosec General Security Ltd,00810600,,Events Support,Events Development,B41TJ000044041,210056455
http://statistics.data.gov.uk/id/local-authority/29UP,Tonbridge & Malling Borough Council,9/8/2021,0022025695/7,22025695, 811.65,British Gas,01148500,,Electricity,Homelessness,C01AAMAUN21002,
http://statistics.data.gov.uk/id/local-authority/29UP,Tonbridge & Malling Borough Council,9/8/2021,0022025695/8,22025695, 86.22,British Gas,01148500,,Electricity,Homelessness,C01AAMAUN21002,
http://statistics.data.gov.uk/id/local-authority/29UP,Tonbridge & Malling Borough Council,9/8/2021,0022025715/1,22025715, 800.00,Keith Easson Decorators,01813400,,Repairs & Mtce to Buildings,Homelessness,C01AATNHS20101,220003144
http://statistics.data.gov.uk/id/local-authority/29UP,Tonbridge & Malling Borough Council,9/8/2021,0022025722/3,22025722, 618.75,KH Recruitment Ltd,01738900,,Temporary Staff,St Scene & Leis Sals&Overheads,D01AGDG3011300,
http://statistics.data.gov.uk/id/local-authority/29UP,Tonbridge & Malling Borough Council,9/8/2021,0022025723/3,22025723, 22407.00,SPA CAFFE LIMITED,00127100,,Temporary Accommodation,Homelessness,C01AA000044051,
http://statistics.data.gov.uk/id/local-authority/29UP,Tonbridge & Malling Borough Council,9/8/2021,0022025725/1,22025725, 3259.50,1st  Steps Housing Kent,01716100,,Temporary Accommodation,Homelessness,C01AA000044051,
http://statistics.data.gov.uk/id/local-authority/29UP,Tonbridge & Malling Borough Council,9/8/2021,0022025726/1,22025726, 912.02,Acorn Maintenance Services,01036000,,Other Expenses,Disabled Facilities Grant Mand,P03AC000009908,
http://statistics.data.gov.uk/id/local-authority/29UP,Tonbridge & Malling Borough Council,9/8/2021,0022025727/1,22025727, 4939.00,Acorn Maintenance Services,01036000,,Other Expenses,Disabled Facilities Grant Mand,P03AC000009908,
http://statistics.data.gov.uk/id/local-authority/29UP,Tonbridge & Malling Borough Council,9/8/2021,0022025728/1,22025728, 3269.92,Clarion Housing,01776300,,Temporary Accommodation,Homelessness,C01AA000044051,
http://statistics.data.gov.uk/id/local-authority/29UP,Tonbridge & Malling Borough Council,9/8/2021,0022025729/3,22025729, 15.18,EDF Energy Customers plc,01035000,,Electricity,Homelessness,C01AATNHS21002,
http://statistics.data.gov.uk/id/local-authority/29UP,Tonbridge & Malling Borough Council,9/8/2021,0022025730/1,22025730, 9083.00,Kent Accommodation Ltd,01722000,,Temporary Accommodation,Homelessness,C01AA000044051,
http://statistics.data.gov.uk/id/local-authority/29UP,Tonbridge & Malling Borough Council,9/8/2021,0022025731/1,22025731, 12297.00,Less Homeless Ltd,01489300,,Temporary Accommodation,Homelessness,C01AA000044051,
http://statistics.data.gov.uk/id/local-authority/29UP,Tonbridge & Malling Borough Council,9/8/2021,0022025732/3,22025732, 9828.00,Simon Niblett Lettings,00072600,,Temporary Accommodation,Homelessness,C01AA000044051,
http://statistics.data.gov.uk/id/local-authority/29UP,Tonbridge & Malling Borough Council,9/8/2021,0022025733/3,22025733, 3410.00,Simon Niblett Lettings,00072600,,Temporary Accommodation,Homelessness,C01AA000044051,
http://statistics.data.gov.uk/id/local-authority/29UP,Tonbridge & Malling Borough Council,9/8/2021,0022025734/1,22025734, 6248.00,Simply Rented Ltd ,01691400,,Temporary Accommodation,Homelessness,C01AA000044051,
http://statistics.data.gov.uk/id/local-authority/29UP,Tonbridge & Malling Borough Council,9/8/2021,0022025735/1,22025735, 2212.32,The Care Group-Housing & Care Trust,01699600,,Professional Fees,Homelessness,C01AA000044001,
http://statistics.data.gov.uk/id/local-authority/29UP,Tonbridge & Malling Borough Council,9/8/2021,0022025736/1,22025736, 28389.50,Social & Community Care,01768400,,Temporary Accommodation,Homelessness,C01AA000044051,
http://statistics.data.gov.uk/id/local-authority/29UP,Tonbridge & Malling Borough Council,9/8/2021,0022025737/1,22025737, 4727.50,House to Home Lettings Ltd ,01647600,,Temporary Accommodation,Homelessness,C01AA000044051,
http://statistics.data.gov.uk/id/local-authority/29UP,Tonbridge & Malling Borough Council,9/8/2021,0022025738/1,22025738, 67.00,Britains Limited,01743900,,Repairs & Mtce to Buildings,Homelessness,C01AA000020101,220003143
http://statistics.data.gov.uk/id/local-authority/29UP,Tonbridge & Malling Borough Council,9/8/2021,0022025739/3,22025739, 1393.35,Ward Security LTD,01490000,,Dog Warden,Street Scene,H23SD000044100,
http://statistics.data.gov.uk/id/local-authority/29UP,Tonbridge & Malling Borough Council,9/8/2021,0022025740/1,22025740, 16.95,Maidstone Borough Council,01173700,,Council Tax,Homelessness,C01AA000023002,
http://statistics.data.gov.uk/id/local-authority/29UP,Tonbridge & Malling Borough Council,9/8/2021,0022025741/3,22025741, 300.00,Monitor Pest Control Ltd,01476700,,Other Expenses,Pest Control,H24SE000048010,
http://statistics.data.gov.uk/id/local-authority/29UP,Tonbridge & Malling Borough Council,9/8/2021,0022025742/1,22025742, 410.00,Wellden Land Surveys,01410600,,Professional Fees,Boro Drainage & Land Drainage,E20MA000044001,310042644
http://statistics.data.gov.uk/id/local-authority/29UP,Tonbridge & Malling Borough Council,9/8/2021,0022025743/3,22025743, 1607.00,On Site Wheelie Washers,01069700,,Other Expenses,Garden Waste Recycling,H34ST000048010,
http://statistics.data.gov.uk/id/local-authority/29UP,Tonbridge & Malling Borough Council,9/8/2021,0022025744/1,22025744, 2419.34,Peabody South East LTD,01680900,,Other Expenses,Disabled Facilities Grant Mand,P03AC000009908,
http://statistics.data.gov.uk/id/local-authority/29UP,Tonbridge & Malling Borough Council,9/8/2021,0022025745/1,22025745, 1142.00,Willow Tree Home Solutions LTD,01579200,,Other Expenses,Disabled Facilities Grant Mand,P03AC000009908,
http://statistics.data.gov.uk/id/local-authority/29UP,Tonbridge & Malling Borough Council,9/8/2021,0031018143/1,31018143, 258.50,C. S. Mitchell LTD,01704800,,Premises Repairs & Maintenance,Parking Off-Street,E10HAE00120601,310042688
http://statistics.data.gov.uk/id/local-authority/29UP,Tonbridge & Malling Borough Council,9/8/2021,0031018144/3,31018144, 27883.17,Imperial Civil Enforcement Solutions,00057200,,Maintenance - General,Parking On-Street,E10HD000040135,
http://statistics.data.gov.uk/id/local-authority/29UP,Tonbridge & Malling Borough Council,9/8/2021,0031018148/1,31018148, 1202.25,PSR Lighting & Signs Ltd,01265400,,Premises Repairs & Maintenance,Parking Off-Street,E10HA000020601,310042679
http://statistics.data.gov.uk/id/local-authority/29UP,Tonbridge & Malling Borough Council,9/8/2021,0031018148/2,31018148, 1500.00,PSR Lighting & Signs Ltd,01265400,,Premises Repairs & Maintenance,Parking Off-Street,E10HA000020601,310042679
http://statistics.data.gov.uk/id/local-authority/29UP,Tonbridge & Malling Borough Council,9/8/2021,0031018149/3,31018149, 261.09,PSR Lighting & Signs Ltd,01265400,,BRREP Servicing-CarParkLightg,Larkfield Leisure Centre,M15HDP20001944,
http://statistics.data.gov.uk/id/local-authority/29UP,Tonbridge & Malling Borough Council,9/8/2021,0031018149/4,31018149, 52.03,PSR Lighting & Signs Ltd,01265400,,BRREP Car Park mntce,Leis Man Poult Wood Golf Centr,M15HEP20001953,
http://statistics.data.gov.uk/id/local-authority/29UP,Tonbridge & Malling Borough Council,9/8/2021,0031018149/5,31018149, 45.65,PSR Lighting & Signs Ltd,01265400,,BRREP Servicing - ext lighting,Tonbridge Castle / CAB,M15KFP20001941,
http://statistics.data.gov.uk/id/local-authority/29UP,Tonbridge & Malling Borough Council,9/8/2021,0031018150/1,31018150, 675.00,Archway Highway Services Ltd,01398000,,Premises Repairs & Maintenance,Parking On-Street,E10HD000020601,310042713
http://statistics.data.gov.uk/id/local-authority/29UP,Tonbridge & Malling Borough Council,9/8/2021,0031018151/1,31018151, 420.00,Archway Highway Services Ltd,01398000,,Premises Repairs & Maintenance,Parking Off-Street,E10HA000020601,310042687
http://statistics.data.gov.uk/id/local-authority/29UP,Tonbridge & Malling Borough Council,9/8/2021,0031018152/1,31018152, 1305.00,Marston,01485000,,Adjudication & Enforcement Ser,Parking Off-Street,E10HA000044230,
http://statistics.data.gov.uk/id/local-authority/29UP,Tonbridge & Malling Borough Council,9/8/2021,0032009241/1,32009241, 660.00,G2 Recruitment Solutions,01786000,,Temporary Staff,Planning Sals&Overheads,D01AJDJ0111300,320003308
http://statistics.data.gov.uk/id/local-authority/29UP,Tonbridge & Malling Borough Council,9/8/2021,0032009242/1,32009242, 2000.00,DHA Planning Ltd,01553900,,Professional Fees,Planning Policy,A01AF000044001,320003289
http://statistics.data.gov.uk/id/local-authority/29UP,Tonbridge & Malling Borough Council,9/8/2021,0032009243/1,32009243, 114.51,KM Media Group Ltd,00053900,,Advertising General,Development Management,A01ABZ99944216,320003329
http://statistics.data.gov.uk/id/local-authority/29UP,Tonbridge & Malling Borough Council,9/8/2021,0032009244/1,32009244, 93.69,KM Media Group Ltd,00053900,,Advertising General,Development Management,A01ABZ99944216,320003334
http://statistics.data.gov.uk/id/local-authority/29UP,Tonbridge & Malling Borough Council,9/8/2021,0032009245/3,32009245, 1266.65,Tunbridge Wells Borough Council,00844600,,Temporary Staff,Planning Sals&Overheads,D01AJDJ0311300,
http://statistics.data.gov.uk/id/local-authority/29UP,Tonbridge & Malling Borough Council,9/8/2021,0041033399/10,41033399, 0.80,Computershare Voucher Services,01212600,,National Insurance,Env Hlth & Hsg Sals&Overheads,D01AVDV0211191,
http://statistics.data.gov.uk/id/local-authority/29UP,Tonbridge & Malling Borough Council,9/8/2021,0041033399/11,41033399, 243.00,Computershare Voucher Services,01212600,,Childcare Scheme,Env Hlth & Hsg Sals&Overheads,D01AVDV0711136,
http://statistics.data.gov.uk/id/local-authority/29UP,Tonbridge & Malling Borough Council,9/8/2021,0041033399/12,41033399, 9.72,Computershare Voucher Services,01212600,,National Insurance,Env Hlth & Hsg Sals&Overheads,D01AVDV0711191,
http://statistics.data.gov.uk/id/local-authority/29UP,Tonbridge & Malling Borough Council,9/8/2021,0041033399/3,41033399, 20.00,Computershare Voucher Services,01212600,,Childcare Scheme,Finance Sals&Overheads,D01AFDF0911136,
http://statistics.data.gov.uk/id/local-authority/29UP,Tonbridge & Malling Borough Council,9/8/2021,0041033399/4,41033399, 0.80,Computershare Voucher Services,01212600,,National Insurance,Finance Sals&Overheads,D01AFDF0911191,
http://statistics.data.gov.uk/id/local-authority/29UP,Tonbridge & Malling Borough Council,9/8/2021,0041033399/5,41033399, 90.00,Computershare Voucher Services,01212600,,Childcare Scheme,St Scene & Leis Sals&Overheads,D01AGDG0411136,
http://statistics.data.gov.uk/id/local-authority/29UP,Tonbridge & Malling Borough Council,9/8/2021,0041033399/6,41033399, 3.60,Computershare Voucher Services,01212600,,National Insurance,St Scene & Leis Sals&Overheads,D01AGDG0411191,
http://statistics.data.gov.uk/id/local-authority/29UP,Tonbridge & Malling Borough Council,9/8/2021,0041033399/7,41033399, 50.00,Computershare Voucher Services,01212600,,Childcare Scheme,Legal Sals&Overheads,D01ARDR0011136,
http://statistics.data.gov.uk/id/local-authority/29UP,Tonbridge & Malling Borough Council,9/8/2021,0041033399/8,41033399, 2.00,Computershare Voucher Services,01212600,,National Insurance,Legal Sals&Overheads,D01ARDR0011191,
http://statistics.data.gov.uk/id/local-authority/29UP,Tonbridge & Malling Borough Council,9/8/2021,0041033399/9,41033399, 20.00,Computershare Voucher Services,01212600,,Childcare Scheme,Env Hlth & Hsg Sals&Overheads,D01AVDV0211136,
http://statistics.data.gov.uk/id/local-authority/29UP,Tonbridge & Malling Borough Council,9/8/2021,0041033432/3,41033432, 1093.13,Morgan Hunt UK Ltd,01086900,,Temporary Staff,Finance Sals&Overheads,D01AFDF1111300,
http://statistics.data.gov.uk/id/local-authority/29UP,Tonbridge & Malling Borough Council,9/8/2021,0041033434/3,41033434, 570.38,Morgan Hunt UK Ltd,01086900,,Temporary Staff,Finance Sals&Overheads,D01AFDF1111300,
http://statistics.data.gov.uk/id/local-authority/29UP,Tonbridge & Malling Borough Council,9/8/2021,0041033436/1,41033436, 2340.00,DG Consultancy,01617000,,Contract Services,Finance Sals&Overheads,D01AFDF0844005,410032012
http://statistics.data.gov.uk/id/local-authority/29UP,Tonbridge & Malling Borough Council,9/8/2021,0051008589/1,51008589, 325.00,St John Ambulance Supplies,01228000,,Ext Fees/Health & Safety,Training,D10DCDE0213566,510010511
http://statistics.data.gov.uk/id/local-authority/29UP,Tonbridge & Malling Borough Council,9/8/2021,0051008590/1,51008590, 252.00,Maidstone & Tun Wells NHS Trust,00067100,,Occuptional Health Medicals,Health Care,D10DBDE0413311,
http://statistics.data.gov.uk/id/local-authority/29UP,Tonbridge & Malling Borough Council,9/10/2021,0041033447/1,41033447, 15.00,HSBC Bank Plc,01740800,,Bank Charges,Banking Arrangements,D43QK000044222,
http://statistics.data.gov.uk/id/local-authority/29UP,Tonbridge & Malling Borough Council,9/10/2021,0041033448/1,41033448, 15.00,WorldPay ,01568000,,Credit Card Commission,Banking Arrangements,D43QK000044082,
http://statistics.data.gov.uk/id/local-authority/29UP,Tonbridge & Malling Borough Council,9/10/2021,0041033449/1,41033449, 142.70,WorldPay ,01568000,,Credit Card Commission,Banking Arrangements,D43QK000044082,
http://statistics.data.gov.uk/id/local-authority/29UP,Tonbridge & Malling Borough Council,9/15/2021,0011043136/1,11043136, 360.00,Tunbridge Wells Ceilings & Interiors,01208700,,BRREP Response - General,Gibson Building East,M15KGP50001997,110069174
http://statistics.data.gov.uk/id/local-authority/29UP,Tonbridge & Malling Borough Council,9/15/2021,0011043137/1,11043137, 301.00,Willow Pumps Ltd,00114100,,BRREP Servicing - Pumping Stn,Tonbridge Swimming Pool,M15HBP20001931,110069073
http://statistics.data.gov.uk/id/local-authority/29UP,Tonbridge & Malling Borough Council,9/15/2021,0011043137/2,11043137, 100.00,Willow Pumps Ltd,00114100,,BRREP Servicing - Pumping Stn,Ton Sportsgrnd Bldgs / Toilets,M15HCP20001931,110069073
http://statistics.data.gov.uk/id/local-authority/29UP,Tonbridge & Malling Borough Council,9/15/2021,0011043137/3,11043137, 200.00,Willow Pumps Ltd,00114100,,BRREP Servicing - Pumping Stn,Vale Rise Depot,M15LCP20001931,110069073
http://statistics.data.gov.uk/id/local-authority/29UP,Tonbridge & Malling Borough Council,9/15/2021,0011043138/1,11043138, 255.00,Loxton Installations Ltd,01278800,,BRREP Serv Internal Lighting,Larkfield Leisure Centre,M15HDP20001957,110069146
http://statistics.data.gov.uk/id/local-authority/29UP,Tonbridge & Malling Borough Council,9/15/2021,0011043139/1,11043139, 880.00,G C Industrial Heating Services,00578100,,BRREP Response - General,Angel Centre,M15HAP50001997,110069163
http://statistics.data.gov.uk/id/local-authority/29UP,Tonbridge & Malling Borough Council,9/15/2021,0011043140/1,11043140, 6451.72,Broadwater Technologies,01534500,,BRREP Servicing - pool plant,Larkfield Leisure Centre,M15HDP20001910,110068976
http://statistics.data.gov.uk/id/local-authority/29UP,Tonbridge & Malling Borough Council,9/15/2021,0011043141/1,11043141, 56.00,Willow Pumps Ltd,00114100,,BRREP Servicing - Pumping Stn,Tonbridge Swimming Pool,M15HBP20001931,110069172
http://statistics.data.gov.uk/id/local-authority/29UP,Tonbridge & Malling Borough Council,9/15/2021,0011043141/2,11043141, 112.00,Willow Pumps Ltd,00114100,,BRREP Servicing - Pumping Stn,Ton Sportsgrnd Bldgs / Toilets,M15HCP20001931,110069172
http://statistics.data.gov.uk/id/local-authority/29UP,Tonbridge & Malling Borough Council,9/15/2021,0011043141/3,11043141, 112.00,Willow Pumps Ltd,00114100,,BRREP Servicing - Pumping Stn,Vale Rise Depot,M15LCP20001931,110069172
http://statistics.data.gov.uk/id/local-authority/29UP,Tonbridge & Malling Borough Council,9/15/2021,0011043142/1,11043142, 19.11,Oasis Group  - Box-It South East,00966800,931579211,Purchases,Electoral Registration,D31MF000040101,
http://statistics.data.gov.uk/id/local-authority/29UP,Tonbridge & Malling Borough Council,9/15/2021,0011043143/1,11043143, 160.60,Royal Mail,00086200,,Postages - Business Reply,Electoral Registration,D31MF000045003,
http://statistics.data.gov.uk/id/local-authority/29UP,Tonbridge & Malling Borough Council,9/15/2021,0011043143/2,11043143, 34.32,Royal Mail,00086200,,Purchases,Business Reply Stock Account,K14AT000001002,
http://statistics.data.gov.uk/id/local-authority/29UP,Tonbridge & Malling Borough Council,9/15/2021,0011043144/1,11043144, 42.00,Chris Woodward,01812700,,Hospitality,Mayoral & Other Member Support,D29LX000048003,
http://statistics.data.gov.uk/id/local-authority/29UP,Tonbridge & Malling Borough Council,9/15/2021,0011043145/1,11043145, 1081.51,Royal Mail,00086200,,Purchases,Mailsort Stock Account,K37BR000001002,
http://statistics.data.gov.uk/id/local-authority/29UP,Tonbridge & Malling Borough Council,9/15/2021,0011043145/2,11043145, 1.60,Royal Mail,00086200,,Purchases,Mailsort Stock Account,K37BR000001002,
http://statistics.data.gov.uk/id/local-authority/29UP,Tonbridge & Malling Borough Council,9/15/2021,0011043146/1,11043146, 9546.90,Royal Mail,00086200,,Postages - PPI / Walksort,Electoral Registration,D31MF000045017,
http://statistics.data.gov.uk/id/local-authority/29UP,Tonbridge & Malling Borough Council,9/15/2021,0011043146/2,11043146, 4.68,Royal Mail,00086200,,Purchases,Mailsort Stock Account,K37BR000001002,
http://statistics.data.gov.uk/id/local-authority/29UP,Tonbridge & Malling Borough Council,9/15/2021,0011043146/3,11043146, 2362.91,Royal Mail,00086200,,Purchases,Mailsort Stock Account,K37BR000001002,
http://statistics.data.gov.uk/id/local-authority/29UP,Tonbridge & Malling Borough Council,9/15/2021,0011043147/1,11043147, 360.00,Marine And Industrial Pump Services,00062800,,BRREP Servicing - sump pumps,Tonbridge Swimming Pool,M15HBP20001911,
http://statistics.data.gov.uk/id/local-authority/29UP,Tonbridge & Malling Borough Council,9/15/2021,0011043148/1,11043148, 135.00,Triple S Lift Services,01344900,,BRREP Servicing - lifts,Angel Centre,M15HAP20001930,
http://statistics.data.gov.uk/id/local-authority/29UP,Tonbridge & Malling Borough Council,9/15/2021,0011043149/1,11043149, 5000.00,The East Malling Centre,01168000,,Charitable / Voluntary Organis,Grants & Payments to Vol Orgn,D37PACV1947005,
http://statistics.data.gov.uk/id/local-authority/29UP,Tonbridge & Malling Borough Council,9/15/2021,0011043150/3,11043150, 1950.00,TwoFold Limited,00518000,,Maintenance - General,Printing,D22GA000040135,
http://statistics.data.gov.uk/id/local-authority/29UP,Tonbridge & Malling Borough Council,9/15/2021,0011043151/3,11043151, 2900.00,Thomson Snell & Passmore,00101700,,Legal Fees,Legal Sals&Overheads,D01ARDR0044002,
http://statistics.data.gov.uk/id/local-authority/29UP,Tonbridge & Malling Borough Council,9/15/2021,0011043152/3,11043152, 798.00,Venn Group Ltd,00914300,,Temporary Staff,Legal Sals&Overheads,D01ARDR0011300,
http://statistics.data.gov.uk/id/local-authority/29UP,Tonbridge & Malling Borough Council,9/15/2021,0011043153/3,11043153, 377.50,Thomson Snell & Passmore,00101700,,Legal Fees,Legal Sals&Overheads,D01ARDR0044002,
http://statistics.data.gov.uk/id/local-authority/29UP,Tonbridge & Malling Borough Council,9/15/2021,0011043154/3,11043154, 868.00,Thomson Snell & Passmore,00101700,,Legal Fees,Legal Sals&Overheads,D01ARDR0044002,
http://statistics.data.gov.uk/id/local-authority/29UP,Tonbridge & Malling Borough Council,9/15/2021,0011043155/3,11043155, 223.00,Thomson Snell & Passmore,00101700,,Legal Fees,Legal Sals&Overheads,D01ARDR0044002,
http://statistics.data.gov.uk/id/local-authority/29UP,Tonbridge & Malling Borough Council,9/15/2021,0011043156/3,11043156, 620.00,Thomson Snell & Passmore,00101700,,Legal Fees,Legal Sals&Overheads,D01ARDR0044002,
http://statistics.data.gov.uk/id/local-authority/29UP,Tonbridge & Malling Borough Council,9/15/2021,0011043157/3,11043157, 1320.00,KH Recruitment Ltd,01738900,,Temporary Staff,Admin & Prop Sals&Overheads,D01AADA1211300,
http://statistics.data.gov.uk/id/local-authority/29UP,Tonbridge & Malling Borough Council,9/15/2021,0011043158/3,11043158, 355.00,Thomson Snell & Passmore,00101700,,Legal Fees,Legal Sals&Overheads,D01ARDR0044002,
http://statistics.data.gov.uk/id/local-authority/29UP,Tonbridge & Malling Borough Council,9/15/2021,0011043159/3,11043159, 812.00,Thomson Snell & Passmore,00101700,,Legal Fees,Legal Sals&Overheads,D01ARDR0044002,
http://statistics.data.gov.uk/id/local-authority/29UP,Tonbridge & Malling Borough Council,9/15/2021,0011043160/3,11043160, 1045.50,Thomson Snell & Passmore,00101700,,Legal Fees,Legal Sals&Overheads,D01ARDR0044002,
http://statistics.data.gov.uk/id/local-authority/29UP,Tonbridge & Malling Borough Council,9/15/2021,0011043161/3,11043161, 691.50,TMS Protection Ltd,01744300,,Re-opening High Streets,Eco Dev & Reg Gen Bus Support,D52TDCV1948076,
http://statistics.data.gov.uk/id/local-authority/29UP,Tonbridge & Malling Borough Council,9/15/2021,0011043162/1,11043162, 451.00,Disclosure & Barring Service,00865900,,Professional Fees,Licences - Fee Paying,H27SH000044001,
http://statistics.data.gov.uk/id/local-authority/29UP,Tonbridge & Malling Borough Council,9/15/2021,0011043163/3,11043163, 125.00,A One Event Services,01776600,,Re-opening High Streets,Eco Dev & Reg Gen Bus Support,D52TDCV1948076,
http://statistics.data.gov.uk/id/local-authority/29UP,Tonbridge & Malling Borough Council,9/15/2021,0011043165/3,11043165, 1393.00,TMS Protection Ltd,01744300,,Re-opening High Streets,Eco Dev & Reg Gen Bus Support,D52TDCV1948076,
http://statistics.data.gov.uk/id/local-authority/29UP,Tonbridge & Malling Borough Council,9/15/2021,0011043166/3,11043166, 546.00,Venn Group Ltd,00914300,,Temporary Staff,Legal Sals&Overheads,D01ARDR0011300,
http://statistics.data.gov.uk/id/local-authority/29UP,Tonbridge & Malling Borough Council,9/15/2021,0011043167/3,11043167, 428.40,Reach Publishing Services Ltd,01806900,,Re-opening High Streets,Eco Dev & Reg Gen Bus Support,D52TDCV1948076,
http://statistics.data.gov.uk/id/local-authority/29UP,Tonbridge & Malling Borough Council,9/15/2021,0011043168/3,11043168, 1600.10,GSF SANDYLIGHT LTD,01705300,,Temporary Staff,Admin & Prop Sals&Overheads,D01AADA0511300,
http://statistics.data.gov.uk/id/local-authority/29UP,Tonbridge & Malling Borough Council,9/15/2021,0011043170/10,11043170, 295.00,K T Fire Protection Ltd,00057000,,BRREP Emergency light discharg,Gibson Building West,M15KBP30001980,
http://statistics.data.gov.uk/id/local-authority/29UP,Tonbridge & Malling Borough Council,9/15/2021,0011043170/11,11043170, 100.00,K T Fire Protection Ltd,00057000,,BRREP Emergency light discharg,Tonbridge Castle / CAB,M15KFP30001980,
http://statistics.data.gov.uk/id/local-authority/29UP,Tonbridge & Malling Borough Council,9/15/2021,0011043170/12,11043170, 295.00,K T Fire Protection Ltd,00057000,,BRREP Emergency light discharg,Gibson Building East,M15KGP30001980,
http://statistics.data.gov.uk/id/local-authority/29UP,Tonbridge & Malling Borough Council,9/15/2021,0011043170/3,11043170, 590.00,K T Fire Protection Ltd,00057000,,BRREP Emergency light discharg,Angel Centre,M15HAP30001980,
http://statistics.data.gov.uk/id/local-authority/29UP,Tonbridge & Malling Borough Council,9/15/2021,0011043170/4,11043170, 590.00,K T Fire Protection Ltd,00057000,,BRREP Emergency light discharg,Tonbridge Swimming Pool,M15HBP30001980,
http://statistics.data.gov.uk/id/local-authority/29UP,Tonbridge & Malling Borough Council,9/15/2021,0011043170/5,11043170, 690.00,K T Fire Protection Ltd,00057000,,BRREP Emergency light discharg,Larkfield Leisure Centre,M15HDP30001980,
http://statistics.data.gov.uk/id/local-authority/29UP,Tonbridge & Malling Borough Council,9/15/2021,0011043170/6,11043170, 160.00,K T Fire Protection Ltd,00057000,,BRREP Emergency light discharg,Leis Man Poult Wood Golf Centr,M15HEP30001980,
http://statistics.data.gov.uk/id/local-authority/29UP,Tonbridge & Malling Borough Council,9/15/2021,0011043170/7,11043170, 40.00,K T Fire Protection Ltd,00057000,,BRREP Emergency light discharg,Leis Man Poult Wood Golf Centr,M15HEP30001980,
http://statistics.data.gov.uk/id/local-authority/29UP,Tonbridge & Malling Borough Council,9/15/2021,0011043170/8,11043170, 120.00,K T Fire Protection Ltd,00057000,,BRREP Emergency light discharg,Tonbridge Farm Pavillion,M15HGP30001980,
http://statistics.data.gov.uk/id/local-authority/29UP,Tonbridge & Malling Borough Council,9/15/2021,0011043170/9,11043170, 100.00,K T Fire Protection Ltd,00057000,,BRREP Emergency light discharg,Tonbridge Castle Gatehouse,M15HKP30001980,
http://statistics.data.gov.uk/id/local-authority/29UP,Tonbridge & Malling Borough Council,9/15/2021,0011043171/1,11043171, 5425.95,Glaze-Tech Services Ltd,00779500,,BRREP Window/door repairs,Gibson Building East,M15KGP20001919,110069125
http://statistics.data.gov.uk/id/local-authority/29UP,Tonbridge & Malling Borough Council,9/15/2021,0011043172/1,11043172, 79.00,BML Building Services Ltd,01505000,,BRREP Response - General,Tonbridge Castle / CAB,M15KFP50001997,110069181
http://statistics.data.gov.uk/id/local-authority/29UP,Tonbridge & Malling Borough Council,9/15/2021,0011043173/1,11043173, 1600.00,Arnold & Court Ltd,01411300,,Purchases,Cleaning & Security,D21FDDD6040101,110069151
http://statistics.data.gov.uk/id/local-authority/29UP,Tonbridge & Malling Borough Council,9/15/2021,0011043174/1,11043174, 3500.00,Kent County Council,00322500,,Subscriptions,Mayoral & Other Member Support,D29LX000047002,110069171
http://statistics.data.gov.uk/id/local-authority/29UP,Tonbridge & Malling Borough Council,9/15/2021,0011043175/1,11043175, 1324.00,Loxton Installations Ltd,01278800,,BRREP Servicing - ext lighting,Angel Centre,M15HAP20001941,110069168
http://statistics.data.gov.uk/id/local-authority/29UP,Tonbridge & Malling Borough Council,9/15/2021,0011043176/1,11043176, 846.00,Chillmech Limited,00978700,,BRREP Servicing-Air Condition,Tonbridge Swimming Pool,M15HBP20001935,110069178
http://statistics.data.gov.uk/id/local-authority/29UP,Tonbridge & Malling Borough Council,9/15/2021,0011043177/1,11043177, 3183.00,Chillmech Limited,00978700,,BRREP Servicing-Air Condition,Larkfield Leisure Centre,M15HDP20001935,110069178
http://statistics.data.gov.uk/id/local-authority/29UP,Tonbridge & Malling Borough Council,9/15/2021,0011043178/1,11043178, 344.00,Chillmech Limited,00978700,,BRREP Servicing-Air Condition,Leis Man Poult Wood Golf Centr,M15HEP20001935,110069178
http://statistics.data.gov.uk/id/local-authority/29UP,Tonbridge & Malling Borough Council,9/15/2021,0011043179/1,11043179, 2119.00,Chillmech Limited,00978700,,BRREP Servicing-Air Condition,Angel Centre,M15HAP20001935,110069178
http://statistics.data.gov.uk/id/local-authority/29UP,Tonbridge & Malling Borough Council,9/15/2021,0011043180/1,11043180, 275.00,Hadene Engineering Ltd,00041900,,BRREP Gas Soundness Test,Gibson Building West,M15KBP30001994,110069087
http://statistics.data.gov.uk/id/local-authority/29UP,Tonbridge & Malling Borough Council,9/15/2021,0011043180/2,11043180, 275.00,Hadene Engineering Ltd,00041900,,BRREP Gas Soundness Test,Gibson Building East,M15KGP30001994,110069087
http://statistics.data.gov.uk/id/local-authority/29UP,Tonbridge & Malling Borough Council,9/15/2021,0012008118/3,12008118, 1098.88,KH Recruitment Ltd,01738900,,Salaries & On Costs,Information Technology,D27KD000015100,
http://statistics.data.gov.uk/id/local-authority/29UP,Tonbridge & Malling Borough Council,9/15/2021,0021037430/1,21037430, 86.00,Landscape Services Ltd,00057600,,Maintenance of Grounds,Tonbridge Castle Grounds,B22LB000020402,210056426
http://statistics.data.gov.uk/id/local-authority/29UP,Tonbridge & Malling Borough Council,9/15/2021,0021037431/1,21037431, 5875.00,Cowdrey Cricket Club,00899500,,Maintenance of Grounds,Sports Grounds,B13ET000020402,210056458
http://statistics.data.gov.uk/id/local-authority/29UP,Tonbridge & Malling Borough Council,9/15/2021,0021037432/3,21037432, 90.00,Flash Mobile Welding Services Ltd,01189200,,Maintenance of Grounds,Sports Grounds,B13ET000020402,
http://statistics.data.gov.uk/id/local-authority/29UP,Tonbridge & Malling Borough Council,9/15/2021,0021037433/1,21037433, 2080.00,Green Oak Services,01635000,,Maintenance of Play Equipment,Open Spaces & Amenity Areas,B22LE000020503,210056270
http://statistics.data.gov.uk/id/local-authority/29UP,Tonbridge & Malling Borough Council,9/15/2021,0021037434/3,21037434, 8.93,B&Q/Screwfix Direct,00141300,,Protective Clothing,Patrolling,B22LF000042001,
http://statistics.data.gov.uk/id/local-authority/29UP,Tonbridge & Malling Borough Council,9/15/2021,0021037435/1,21037435, 450.00,SWS Countryside & Landscape,01567200,,Health & Safety - Trees,Countryside/Woodland Mgt,B22LG000044045,210056429
http://statistics.data.gov.uk/id/local-authority/29UP,Tonbridge & Malling Borough Council,9/15/2021,0021037437/3,21037437, 400.00,SWS Countryside & Landscape,01567200,,Health & Safety - Trees,Countryside/Woodland Mgt,B22LG000044045,
http://statistics.data.gov.uk/id/local-authority/29UP,Tonbridge & Malling Borough Council,9/15/2021,0021037438/1,21037438, 700.00,SWS Countryside & Landscape,01567200,,Health & Safety - Trees,Countryside/Woodland Mgt,B22LG000044045,210056341
http://statistics.data.gov.uk/id/local-authority/29UP,Tonbridge & Malling Borough Council,9/15/2021,0021037439/1,21037439, 450.00,SWS Countryside & Landscape,01567200,,Health & Safety - Trees,Countryside/Woodland Mgt,B22LG000044045,210056441
http://statistics.data.gov.uk/id/local-authority/29UP,Tonbridge & Malling Borough Council,9/15/2021,0021037440/3,21037440, 350.00,SWS Countryside & Landscape,01567200,,Health & Safety - Trees,Countryside/Woodland Mgt,B22LG000044045,
http://statistics.data.gov.uk/id/local-authority/29UP,Tonbridge & Malling Borough Council,9/15/2021,0021037441/3,21037441, 140.00,SWS Countryside & Landscape,01567200,,Health & Safety - Trees,Countryside/Woodland Mgt,B22LG000044045,
http://statistics.data.gov.uk/id/local-authority/29UP,Tonbridge & Malling Borough Council,9/15/2021,0021037442/3,21037442, 250.00,SWS Countryside & Landscape,01567200,,Health & Safety - Trees,Countryside/Woodland Mgt,B22LG000044045,
http://statistics.data.gov.uk/id/local-authority/29UP,Tonbridge & Malling Borough Council,9/15/2021,0021037443/1,21037443, 432.00,TMS Protection Ltd,01744300,,Gates / Security,Leybourne Lakes Country Park,B22LK000044017,210056302
http://statistics.data.gov.uk/id/local-authority/29UP,Tonbridge & Malling Borough Council,9/15/2021,0021037444/1,21037444, 35.00,Weddle and Co,00714900,,Maintenance of Grounds,Open Spaces & Amenity Areas,B22LE000020402,210056446
http://statistics.data.gov.uk/id/local-authority/29UP,Tonbridge & Malling Borough Council,9/15/2021,0021037445/1,21037445, 615.00,Weddle and Co,00714900,,Re-opening High Streets,Eco Dev & Reg Gen Bus Support,D52TDCV1948076,210056411
http://statistics.data.gov.uk/id/local-authority/29UP,Tonbridge & Malling Borough Council,9/15/2021,0021037446/1,21037446, 215.00,Arnold Tarmac Ltd,01685100,,Maintenance of Grounds,Cemetery,B26MP000020402,210056352
http://statistics.data.gov.uk/id/local-authority/29UP,Tonbridge & Malling Borough Council,9/15/2021,0021037447/1,21037447, 1837.50,Arnold Tarmac Ltd,01685100,,Maintenance of Grounds,Sports Grounds,B13ET000020402,210056380
http://statistics.data.gov.uk/id/local-authority/29UP,Tonbridge & Malling Borough Council,9/15/2021,0021037448/1,21037448, 3017.50,Arnold Tarmac Ltd,01685100,,Maintenance of Grounds,Sports Grounds,B13ET000020402,210056351
http://statistics.data.gov.uk/id/local-authority/29UP,Tonbridge & Malling Borough Council,9/15/2021,0021037449/3,21037449, 740.40,Atlas Facilities Managment Limited ,01075900,,Gates / Security,Leybourne Lakes Country Park,B22LK000044017,
http://statistics.data.gov.uk/id/local-authority/29UP,Tonbridge & Malling Borough Council,9/15/2021,0021037450/3,21037450, 600.00,Atlas Facilities Managment Limited ,01075900,,Gates / Security,Patrolling,B22LF000044017,
http://statistics.data.gov.uk/id/local-authority/29UP,Tonbridge & Malling Borough Council,9/15/2021,0021037452/3,21037452, 200.00,SWS Countryside & Landscape,01567200,,Health & Safety - Trees,Countryside/Woodland Mgt,B22LG000044045,
http://statistics.data.gov.uk/id/local-authority/29UP,Tonbridge & Malling Borough Council,9/15/2021,0021037453/1,21037453, 80.00,SWS Countryside & Landscape,01567200,,Health & Safety - Trees,Countryside/Woodland Mgt,B22LG000044045,210056447
http://statistics.data.gov.uk/id/local-authority/29UP,Tonbridge & Malling Borough Council,9/15/2021,0021037453/2,21037453, 350.00,SWS Countryside & Landscape,01567200,,Health & Safety - Trees,Countryside/Woodland Mgt,B22LG000044045,210056447
http://statistics.data.gov.uk/id/local-authority/29UP,Tonbridge & Malling Borough Council,9/15/2021,0021037453/3,21037453, 300.00,SWS Countryside & Landscape,01567200,,Health & Safety - Trees,Countryside/Woodland Mgt,B22LG000044045,210056447
http://statistics.data.gov.uk/id/local-authority/29UP,Tonbridge & Malling Borough Council,9/15/2021,0021037454/1,21037454, 70.00,Fenland Leisure Products Ltd,01675100,,Maintenance of Play Equipment,Open Spaces & Amenity Areas,B22LE000020503,210056459
http://statistics.data.gov.uk/id/local-authority/29UP,Tonbridge & Malling Borough Council,9/15/2021,0021037455/1,21037455, 500.00,Medway Valley Countryside Partnership,00780000,,Maintenance of Grounds,Countryside/Woodland Mgt,B22LGB40120402,210056267
http://statistics.data.gov.uk/id/local-authority/29UP,Tonbridge & Malling Borough Council,9/15/2021,0021037456/1,21037456, 2550.00,SWS Countryside & Landscape,01567200,,Health & Safety - Trees,Countryside/Woodland Mgt,B22LG000044045,210056461
http://statistics.data.gov.uk/id/local-authority/29UP,Tonbridge & Malling Borough Council,9/15/2021,0021037457/1,21037457, 1000.00,Tonbridge Lions Club,01291000,,Arts Support,Events Development,B41TJ000044040,
http://statistics.data.gov.uk/id/local-authority/29UP,Tonbridge & Malling Borough Council,9/15/2021,0021037458/1,21037458, 600.00,REDACTED PERSONAL DATA,01649000,,Licences,Events Development,B41TJ000048011,
http://statistics.data.gov.uk/id/local-authority/29UP,Tonbridge & Malling Borough Council,9/15/2021,0021037459/1,21037459, 70.00,Fenland Leisure Products Ltd,01675100,,Maintenance of Play Equipment,Open Spaces & Amenity Areas,B22LE000020503,210056480
http://statistics.data.gov.uk/id/local-authority/29UP,Tonbridge & Malling Borough Council,9/15/2021,0021037460/1,21037460, 940.00,Trevor May Contractors Ltd,00856100,,Maintenance of Play Equipment,Open Spaces & Amenity Areas,B22LE000020503,210056308
http://statistics.data.gov.uk/id/local-authority/29UP,Tonbridge & Malling Borough Council,9/15/2021,0021037461/1,21037461, 49.53,Scottish Water Business Stream Ltd,01641100,,Sewerage Charges,Leybourne Lakes Country Park,B22LK000024003,
http://statistics.data.gov.uk/id/local-authority/29UP,Tonbridge & Malling Borough Council,9/15/2021,0021037464/1,21037464, 145.00,David Hodgkinson Photographer,01068900,,Youth Initiatives,Youth Partnerships,B33PG000048124,210056483
http://statistics.data.gov.uk/id/local-authority/29UP,Tonbridge & Malling Borough Council,9/15/2021,0022025746/3,22025746, 495.00,KH Recruitment Ltd,01738900,,Temporary Staff,St Scene & Leis Sals&Overheads,D01AGDG3011300,
http://statistics.data.gov.uk/id/local-authority/29UP,Tonbridge & Malling Borough Council,9/15/2021,0022025747/1,22025747, 834.00,Peabody South East LTD,01680900,,Other Expenses,Housing Assistance,P03AD000009908,
http://statistics.data.gov.uk/id/local-authority/29UP,Tonbridge & Malling Borough Council,9/15/2021,0022025748/1,22025748, 67061.00,Paramount Independent Property Suppliers,01595300,,Temporary Accommodation,Homelessness,C01AA000044051,
http://statistics.data.gov.uk/id/local-authority/29UP,Tonbridge & Malling Borough Council,9/15/2021,0022025749/3,22025749, 180.00,Riley's Removals,01695900,,Homelessness Reduction Initiat,Homelessness,C01AA000048019,
http://statistics.data.gov.uk/id/local-authority/29UP,Tonbridge & Malling Borough Council,9/15/2021,0022025751/1,22025751, 317.97,TwoFold Limited,00518000,,Maintenance - General,Technical Sals&Overheads,D01AE000040135,
http://statistics.data.gov.uk/id/local-authority/29UP,Tonbridge & Malling Borough Council,9/15/2021,0022025751/2,22025751, 363.38,TwoFold Limited,00518000,,Maintenance - General,St Scene & Leis Sals&Overheads,D01AG000040135,
http://statistics.data.gov.uk/id/local-authority/29UP,Tonbridge & Malling Borough Council,9/15/2021,0022025751/3,22025751, 635.94,TwoFold Limited,00518000,,Maintenance - General,Planning Sals&Overheads,D01AJ000040135,
http://statistics.data.gov.uk/id/local-authority/29UP,Tonbridge & Malling Borough Council,9/15/2021,0022025751/4,22025751, 136.57,TwoFold Limited,00518000,,Maintenance - General,Env Hlth & Hsg Sals&Overheads,D01AV000040135,
http://statistics.data.gov.uk/id/local-authority/29UP,Tonbridge & Malling Borough Council,9/15/2021,0022025752/1,22025752, 48.27,Viridor Waste Management Ltd,00682900,,Trade Refuse Charges,Cleaning & Security,D21FD000044008,
http://statistics.data.gov.uk/id/local-authority/29UP,Tonbridge & Malling Borough Council,9/15/2021,0022025753/1,22025753, 80.34,British Gas,01148500,,Electricity,Homelessness,C01AAMAUN21002,
http://statistics.data.gov.uk/id/local-authority/29UP,Tonbridge & Malling Borough Council,9/15/2021,0022025754/1,22025754, 4575.00,Connells Residential Lettings,01668100,,Temporary Accommodation,Homelessness,C01AASYRI44051,
http://statistics.data.gov.uk/id/local-authority/29UP,Tonbridge & Malling Borough Council,9/15/2021,0022025755/1,22025755, 30.00,Headcorn Surgery,01815400,,Professional Fees,Homelessness,C01AA000044001,
http://statistics.data.gov.uk/id/local-authority/29UP,Tonbridge & Malling Borough Council,9/15/2021,0022025756/1,22025756, 81.00,RAC Motoring Services,01815300,,Transport Insurance,Leybourne Lakes Country Park,B22LK000035001,
http://statistics.data.gov.uk/id/local-authority/29UP,Tonbridge & Malling Borough Council,9/15/2021,0022025756/2,22025756, 243.00,RAC Motoring Services,01815300,,Transport Insurance,Parking On-Street,E10HD000035001,
http://statistics.data.gov.uk/id/local-authority/29UP,Tonbridge & Malling Borough Council,9/15/2021,0022025756/3,22025756, 162.00,RAC Motoring Services,01815300,,Transport Insurance,Parking On-Street,E10HD000035001,
http://statistics.data.gov.uk/id/local-authority/29UP,Tonbridge & Malling Borough Council,9/15/2021,0022025757/3,22025757, 795.00,Southern Lightning Engineers Ltd,00094000,,Storage of Furniture,Homelessness,C01AA000044052,
http://statistics.data.gov.uk/id/local-authority/29UP,Tonbridge & Malling Borough Council,9/15/2021,0022025759/3,22025759, 1934.10,Ward Security LTD,01490000,,Dog Warden,Street Scene,H23SD000044100,
http://statistics.data.gov.uk/id/local-authority/29UP,Tonbridge & Malling Borough Council,9/15/2021,0022025760/1,22025760, 9775.00,Waste Consulting LLP,01530700,737059028,Other Expenses,Refuse Collection,H20SA000048010,220003113
http://statistics.data.gov.uk/id/local-authority/29UP,Tonbridge & Malling Borough Council,9/15/2021,0022025761/3,22025761, 797.00,Specialist Hygiene Services,01466100,,Cleaning & Domestic Supplies,Haysden Country Park,B22LC000026001,
http://statistics.data.gov.uk/id/local-authority/29UP,Tonbridge & Malling Borough Council,9/15/2021,0022025761/4,22025761, 797.01,Specialist Hygiene Services,01466100,,Cleaning & Domestic Supplies,Leybourne Lakes Country Park,B22LK000026001,
http://statistics.data.gov.uk/id/local-authority/29UP,Tonbridge & Malling Borough Council,9/15/2021,0022025761/5,22025761, 7159.24,Specialist Hygiene Services,01466100,,Contract Payments,Public Conveniences,H22SC000054001,
http://statistics.data.gov.uk/id/local-authority/29UP,Tonbridge & Malling Borough Council,9/15/2021,0022025762/3,22025762, 1063.08,Specialist Hygiene Services,01466100,,Cleaning & Domestic Supplies,Haysden Country Park,B22LC000026001,
http://statistics.data.gov.uk/id/local-authority/29UP,Tonbridge & Malling Borough Council,9/15/2021,0022025762/4,22025762, 1063.08,Specialist Hygiene Services,01466100,,Cleaning & Domestic Supplies,Leybourne Lakes Country Park,B22LK000026001,
http://statistics.data.gov.uk/id/local-authority/29UP,Tonbridge & Malling Borough Council,9/15/2021,0022025762/5,22025762, 7159.24,Specialist Hygiene Services,01466100,,Contract Payments,Public Conveniences,H22SC000054001,
http://statistics.data.gov.uk/id/local-authority/29UP,Tonbridge & Malling Borough Council,9/15/2021,0022025763/3,22025763, 28.60,REDACTED PERSONAL DATA,01698500,,Purchases,Environmental Protection,H32SN000040101,
http://statistics.data.gov.uk/id/local-authority/29UP,Tonbridge & Malling Borough Council,9/15/2021,0022025764/1,22025764, 300.00,Kent County Council,00322500,,Healthy Living Initiatives,Public Health - Healthy Living,H40SY000048145,
http://statistics.data.gov.uk/id/local-authority/29UP,Tonbridge & Malling Borough Council,9/15/2021,0022025765/1,22025765, 2168.40,Lucy and Martin Recycling LTD,01694200,,Vehicle Licences,Dry Recycling,H34SR000030105,
http://statistics.data.gov.uk/id/local-authority/29UP,Tonbridge & Malling Borough Council,9/15/2021,0022025767/3,22025767, 763.31,G2 Recruitment Solutions,01786000,,Temporary Staff,Env Hlth & Hsg Sals&Overheads,D01AVDV0711300,
http://statistics.data.gov.uk/id/local-authority/29UP,Tonbridge & Malling Borough Council,9/15/2021,0022025768/3,22025768, 763.31,G2 Recruitment Solutions,01786000,,Temporary Staff,Env Hlth & Hsg Sals&Overheads,D01AVDV0711300,
http://statistics.data.gov.uk/id/local-authority/29UP,Tonbridge & Malling Borough Council,9/15/2021,0022025769/3,22025769, 711.74,G2 Recruitment Solutions,01786000,,Temporary Staff,Env Hlth & Hsg Sals&Overheads,D01AVDV0711300,
http://statistics.data.gov.uk/id/local-authority/29UP,Tonbridge & Malling Borough Council,9/15/2021,0022025770/3,22025770, 1239.50,Vivid Resourcing,01773700,,Temporary Staff,Env Hlth & Hsg Sals&Overheads,D01AVDV0711300,
http://statistics.data.gov.uk/id/local-authority/29UP,Tonbridge & Malling Borough Council,9/15/2021,0022025771/3,22025771, 1041.52,Vivid Resourcing,01773700,,Temporary Staff,Env Hlth & Hsg Sals&Overheads,D01AVDV0711300,
http://statistics.data.gov.uk/id/local-authority/29UP,Tonbridge & Malling Borough Council,9/15/2021,0031018158/1,31018158, 214.60,Countrystyle Group,00835900,781981681,Plastic Recycling,Dry Recycling,H34SR000054019,
http://statistics.data.gov.uk/id/local-authority/29UP,Tonbridge & Malling Borough Council,9/15/2021,0031018159/1,31018159, 83700.47,Duke Contractors Ltd,00082900,,Contract Payments,Car Park Imp Rolling Programme,P01AB000009904,310042657
http://statistics.data.gov.uk/id/local-authority/29UP,Tonbridge & Malling Borough Council,9/15/2021,0031018159/2,31018159, 12000.00,Duke Contractors Ltd,00082900,,Contract Payments,Car Park Imp Rolling Programme,P01AB000009904,310042657
http://statistics.data.gov.uk/id/local-authority/29UP,Tonbridge & Malling Borough Council,9/15/2021,0031018159/3,31018159, 15026.94,Duke Contractors Ltd,00082900,,Contract Payments,Car Park Imp Rolling Programme,P01AB000009904,310042657
http://statistics.data.gov.uk/id/local-authority/29UP,Tonbridge & Malling Borough Council,9/15/2021,0031018160/1,31018160, 800.00,Arnold & Court Ltd,01411300,,Bridge Maintenance,Open Spaces & Amenity Areas,B22LE000020505,210056382
http://statistics.data.gov.uk/id/local-authority/29UP,Tonbridge & Malling Borough Council,9/15/2021,0031018160/2,31018160, 120.00,Arnold & Court Ltd,01411300,,Bridge Maintenance,Open Spaces & Amenity Areas,B22LE000020505,210056382
http://statistics.data.gov.uk/id/local-authority/29UP,Tonbridge & Malling Borough Council,9/15/2021,0031018161/1,31018161, 160.00,Arnold & Court Ltd,01411300,,Contract Payments,TRSG Riverside Rivetment,P05DD000009904,310042692
http://statistics.data.gov.uk/id/local-authority/29UP,Tonbridge & Malling Borough Council,9/15/2021,0031018161/2,31018161, 450.00,Arnold & Court Ltd,01411300,,Contract Payments,TRSG Riverside Rivetment,P05DD000009904,310042692
http://statistics.data.gov.uk/id/local-authority/29UP,Tonbridge & Malling Borough Council,9/15/2021,0031018161/3,31018161, 1600.00,Arnold & Court Ltd,01411300,,Contract Payments,TRSG Riverside Rivetment,P05DD000009904,310042692
http://statistics.data.gov.uk/id/local-authority/29UP,Tonbridge & Malling Borough Council,9/15/2021,0031018162/1,31018162, 200.00,Arnold & Court Ltd,01411300,,Premises Repairs & Maintenance,Parking Off-Street,E10HA000020601,310042705
http://statistics.data.gov.uk/id/local-authority/29UP,Tonbridge & Malling Borough Council,9/15/2021,0031018162/2,31018162, 200.00,Arnold & Court Ltd,01411300,,Premises Repairs & Maintenance,Parking Off-Street,E10HA000020601,310042705
http://statistics.data.gov.uk/id/local-authority/29UP,Tonbridge & Malling Borough Council,9/15/2021,0031018162/3,31018162, 100.00,Arnold & Court Ltd,01411300,,Premises Repairs & Maintenance,Parking Off-Street,E10HA000020601,310042705
http://statistics.data.gov.uk/id/local-authority/29UP,Tonbridge & Malling Borough Council,9/15/2021,0031018163/3,31018163, 319.00,Arnold & Court Ltd,01411300,,Premises Repairs & Maintenance,Parking Off-Street,E10HAE01620601,
http://statistics.data.gov.uk/id/local-authority/29UP,Tonbridge & Malling Borough Council,9/15/2021,0031018163/4,31018163, 105.30,Arnold & Court Ltd,01411300,,Premises Repairs & Maintenance,Parking Off-Street,E10HAE02320601,
http://statistics.data.gov.uk/id/local-authority/29UP,Tonbridge & Malling Borough Council,9/15/2021,0031018163/5,31018163, 105.70,Arnold & Court Ltd,01411300,,Premises Repairs & Maintenance,Parking Off-Street,E10HAE02320601,
http://statistics.data.gov.uk/id/local-authority/29UP,Tonbridge & Malling Borough Council,9/15/2021,0031018164/1,31018164, 6800.00,Arnold & Court Ltd,01411300,,Re-opening High Streets,Eco Dev & Reg Gen Bus Support,D52TDCV1948076,310042710
http://statistics.data.gov.uk/id/local-authority/29UP,Tonbridge & Malling Borough Council,9/15/2021,0031018165/1,31018165, 1557.36,CDER Group,01773300,,Adjudication & Enforcement Ser,Parking Off-Street,E10HA000044230,
http://statistics.data.gov.uk/id/local-authority/29UP,Tonbridge & Malling Borough Council,9/15/2021,0032009248/1,32009248, 660.00,G2 Recruitment Solutions,01786000,,Temporary Staff,Planning Sals&Overheads,D01AJDJ0111300,320003308
http://statistics.data.gov.uk/id/local-authority/29UP,Tonbridge & Malling Borough Council,9/15/2021,0032009249/3,32009249, 1400.00,The Oyster Partnership,01196400,,Temporary Staff,Planning Sals&Overheads,D01AJDJ0111300,
http://statistics.data.gov.uk/id/local-authority/29UP,Tonbridge & Malling Borough Council,9/15/2021,0032009250/3,32009250, 1120.00,The Oyster Partnership,01196400,,Temporary Staff,Planning Sals&Overheads,D01AJDJ0111300,
http://statistics.data.gov.uk/id/local-authority/29UP,Tonbridge & Malling Borough Council,9/15/2021,0032009251/1,32009251, 301.89,KM Media Group Ltd,00053900,,Advertising General,Development Management,A01ABZ99944216,320003330
http://statistics.data.gov.uk/id/local-authority/29UP,Tonbridge & Malling Borough Council,9/15/2021,0041033438/1,41033438, 56.72,WorldPay Ltd,01402000,991280207,Credit Card Commission,Banking Arrangements,D43QK000044082,
http://statistics.data.gov.uk/id/local-authority/29UP,Tonbridge & Malling Borough Council,9/15/2021,0041033438/2,41033438, 80.00,WorldPay Ltd,01402000,991280207,Credit Card Commission,Banking Arrangements,D43QK000044082,
http://statistics.data.gov.uk/id/local-authority/29UP,Tonbridge & Malling Borough Council,9/15/2021,0041033438/3,41033438, 0.24,WorldPay Ltd,01402000,991280207,Credit Card Commission,Banking Arrangements,D43QK000044082,
http://statistics.data.gov.uk/id/local-authority/29UP,Tonbridge & Malling Borough Council,9/15/2021,0041033439/1,41033439, 80.00,WorldPay Ltd,01402000,991280207,Credit Card Commission,Banking Arrangements,D43QK000044082,
http://statistics.data.gov.uk/id/local-authority/29UP,Tonbridge & Malling Borough Council,9/15/2021,0041033439/2,41033439, 41.76,WorldPay Ltd,01402000,991280207,Credit Card Commission,Banking Arrangements,D43QK000044082,
http://statistics.data.gov.uk/id/local-authority/29UP,Tonbridge & Malling Borough Council,9/15/2021,0041033439/3,41033439, 0.96,WorldPay Ltd,01402000,991280207,Credit Card Commission,Banking Arrangements,D43QK000044082,
http://statistics.data.gov.uk/id/local-authority/29UP,Tonbridge & Malling Borough Council,9/15/2021,0041033440/1,41033440, 80.00,WorldPay Ltd,01402000,991280207,Credit Card Commission,Banking Arrangements,D43QK000044082,
http://statistics.data.gov.uk/id/local-authority/29UP,Tonbridge & Malling Borough Council,9/15/2021,0041033440/2,41033440, 149.68,WorldPay Ltd,01402000,991280207,Credit Card Commission,Banking Arrangements,D43QK000044082,
http://statistics.data.gov.uk/id/local-authority/29UP,Tonbridge & Malling Borough Council,9/15/2021,0041033441/1,41033441, 8500.00,Link Asset Services,01039400,,Professional Fees,Treasury Management,D43QT000044001,410031921
http://statistics.data.gov.uk/id/local-authority/29UP,Tonbridge & Malling Borough Council,9/15/2021,0041033442/3,41033442, 108.36,Adelante Software Limited,01393800,812115871,Credit Card Commission,Banking Arrangements,D43QK000044082,
http://statistics.data.gov.uk/id/local-authority/29UP,Tonbridge & Malling Borough Council,9/15/2021,0041033451/3,41033451, 1192.50,Morgan Hunt UK Ltd,01086900,,Temporary Staff,Finance Sals&Overheads,D01AFDF1111300,
http://statistics.data.gov.uk/id/local-authority/29UP,Tonbridge & Malling Borough Council,9/15/2021,0041033452/3,41033452, 568.75,Morgan Hunt UK Ltd,01086900,,Temporary Staff,Finance Sals&Overheads,D01AFDF1111300,
http://statistics.data.gov.uk/id/local-authority/29UP,Tonbridge & Malling Borough Council,9/15/2021,0041033453/3,41033453, 1452.50,Greenhalgh Kerr,01590200,,Bailiffs Commission,Local Revenue & NNDR Collect,D41QA000044075,
http://statistics.data.gov.uk/id/local-authority/29UP,Tonbridge & Malling Borough Council,9/15/2021,0041033453/4,41033453, 20.00,Greenhalgh Kerr,01590200,,Bailiffs Commission,Local Revenue & NNDR Collect,D41QA000044075,
http://statistics.data.gov.uk/id/local-authority/29UP,Tonbridge & Malling Borough Council,9/15/2021,0041033453/5,41033453, 3.00,Greenhalgh Kerr,01590200,,Bailiffs Commission,Local Revenue & NNDR Collect,D41QA000044075,
http://statistics.data.gov.uk/id/local-authority/29UP,Tonbridge & Malling Borough Council,9/15/2021,0041033454/3,41033454, 595.73,Morgan Hunt UK Ltd,01086900,,Temporary Staff,Finance Sals&Overheads,D01AFDF1111300,
http://statistics.data.gov.uk/id/local-authority/29UP,Tonbridge & Malling Borough Council,9/15/2021,0041033455/3,41033455, 1669.88,Maidstone Borough Council,01173700,,Bailiffs Commission,Local Revenue & NNDR Collect,D41QA000044075,
http://statistics.data.gov.uk/id/local-authority/29UP,Tonbridge & Malling Borough Council,9/15/2021,0041033456/3,41033456, 752.54,Rundle & Co Ltd,00087200,,Bailiffs Commission,Local Revenue & NNDR Collect,D41QA000044075,
http://statistics.data.gov.uk/id/local-authority/29UP,Tonbridge & Malling Borough Council,9/15/2021,0041033457/3,41033457, 529.77,Rundle & Co Ltd,00087200,,Bailiffs Commission,Local Revenue & NNDR Collect,D41QA000044075,
http://statistics.data.gov.uk/id/local-authority/29UP,Tonbridge & Malling Borough Council,9/15/2021,0041033458/3,41033458, 147.00,Dun & Bradstreet Limited,01118900,,Contract Services,Finance Sals&Overheads,D01AFDF0244005,
http://statistics.data.gov.uk/id/local-authority/29UP,Tonbridge & Malling Borough Council,9/15/2021,0041033459/1,41033459, 3.20,KCS,00054200,,Stationery,Finance Sals&Overheads,D01AF000043003,410032037
http://statistics.data.gov.uk/id/local-authority/29UP,Tonbridge & Malling Borough Council,9/15/2021,0041033459/2,41033459, 1.80,KCS,00054200,,Stationery,Finance Sals&Overheads,D01AF000043003,410032037
http://statistics.data.gov.uk/id/local-authority/29UP,Tonbridge & Malling Borough Council,9/15/2021,0041033459/3,41033459, 39.15,KCS,00054200,,Stationery,Finance Sals&Overheads,D01AF000043003,410032037
http://statistics.data.gov.uk/id/local-authority/29UP,Tonbridge & Malling Borough Council,9/15/2021,0051008591/1,51008591, 1195.00,C I E H.,00181500,,Ext Fees/Prof & Tech,Training,D10DCDV0913561,510010512
http://statistics.data.gov.uk/id/local-authority/29UP,Tonbridge & Malling Borough Council,9/15/2021,0051008592/3,51008592, 182.00,Cantium Business Solutions Ltd,01698600,,Occuptional Health Medicals,Health Care,D10DBDJ0013311,
http://statistics.data.gov.uk/id/local-authority/29UP,Tonbridge & Malling Borough Council,9/15/2021,0051008593/1,51008593, 240.00,St John Ambulance Supplies,01228000,,Ext Fees/Health & Safety,Training,D10DCDJ0313566,510010514
http://statistics.data.gov.uk/id/local-authority/29UP,Tonbridge & Malling Borough Council,9/17/2021,0041033475/1,41033475, 7.99,National Westminster Bank Plc,00894500,,Purchases,Admin & Prop Sals&Overheads,D01AA000040101,
http://statistics.data.gov.uk/id/local-authority/29UP,Tonbridge & Malling Borough Council,9/17/2021,0041033475/10,41033475, 199.96,National Westminster Bank Plc,00894500,,Purchases,Cleaning & Security,D21FD000040101,
http://statistics.data.gov.uk/id/local-authority/29UP,Tonbridge & Malling Borough Council,9/17/2021,0041033475/11,41033475, 23.28,National Westminster Bank Plc,00894500,,Purchases,Cleaning & Security,D21FD000040101,
http://statistics.data.gov.uk/id/local-authority/29UP,Tonbridge & Malling Borough Council,9/17/2021,0041033475/12,41033475, 243.10,National Westminster Bank Plc,00894500,,Purchases,Cleaning & Security,D21FD000040101,
http://statistics.data.gov.uk/id/local-authority/29UP,Tonbridge & Malling Borough Council,9/17/2021,0041033475/13,41033475, 71.15,National Westminster Bank Plc,00894500,,Purchases,Information Technology,D27KD000040101,
http://statistics.data.gov.uk/id/local-authority/29UP,Tonbridge & Malling Borough Council,9/17/2021,0041033475/14,41033475, 38.41,National Westminster Bank Plc,00894500,,Software Hire & Support,Information Technology,D27KD000044059,
http://statistics.data.gov.uk/id/local-authority/29UP,Tonbridge & Malling Borough Council,9/17/2021,0041033475/15,41033475, 303.33,National Westminster Bank Plc,00894500,,Software Hire & Support,Information Technology,D27KD000044059,
http://statistics.data.gov.uk/id/local-authority/29UP,Tonbridge & Malling Borough Council,9/17/2021,0041033475/16,41033475, 159.87,National Westminster Bank Plc,00894500,,Information & Publicity,Information & Publicity,D32MJ000044076,
http://statistics.data.gov.uk/id/local-authority/29UP,Tonbridge & Malling Borough Council,9/17/2021,0041033475/17,41033475, 1056.00,National Westminster Bank Plc,00894500,,H&CG Fund Council Specific,Eco Dev & Reg Gen Bus Support,D52TD000047027,
http://statistics.data.gov.uk/id/local-authority/29UP,Tonbridge & Malling Borough Council,9/17/2021,0041033475/18,41033475, 261.00,National Westminster Bank Plc,00894500,,H&CG Fund Council Specific,Eco Dev & Reg Gen Bus Support,D52TD000047027,
http://statistics.data.gov.uk/id/local-authority/29UP,Tonbridge & Malling Borough Council,9/17/2021,0041033475/2,41033475, 119.99,National Westminster Bank Plc,00894500,,Purchases,Chief Exec Sals&Overheads,D01ACDC0140101,
http://statistics.data.gov.uk/id/local-authority/29UP,Tonbridge & Malling Borough Council,9/17/2021,0041033475/20,41033475, 497.50,National Westminster Bank Plc,00894500,,H&CG Fund Council Specific,Eco Dev & Reg Gen Bus Support,D52TD000047027,
http://statistics.data.gov.uk/id/local-authority/29UP,Tonbridge & Malling Borough Council,9/17/2021,0041033475/21,41033475, 12.30,National Westminster Bank Plc,00894500,,Sales,TIC Stock Account,K18AX000002002,
http://statistics.data.gov.uk/id/local-authority/29UP,Tonbridge & Malling Borough Council,9/17/2021,0041033475/22,41033475, 28.47,National Westminster Bank Plc,00894500,,Sales,TIC Stock Account,K18AX000002002,
http://statistics.data.gov.uk/id/local-authority/29UP,Tonbridge & Malling Borough Council,9/17/2021,0041033475/23,41033475, 52.45,National Westminster Bank Plc,00894500,,Sales,TIC Stock Account,K18AX000002002,
http://statistics.data.gov.uk/id/local-authority/29UP,Tonbridge & Malling Borough Council,9/17/2021,0041033475/24,41033475, 18.98,National Westminster Bank Plc,00894500,,Sales,TIC Stock Account,K18AX000002002,
http://statistics.data.gov.uk/id/local-authority/29UP,Tonbridge & Malling Borough Council,9/17/2021,0041033475/25,41033475, 35.48,National Westminster Bank Plc,00894500,,Sales,TIC Stock Account,K18AX000002002,
http://statistics.data.gov.uk/id/local-authority/29UP,Tonbridge & Malling Borough Council,9/17/2021,0041033475/5,41033475, 35.00,National Westminster Bank Plc,00894500,,Purchases,Ton Castle Council Chamber,D21FC000040101,
http://statistics.data.gov.uk/id/local-authority/29UP,Tonbridge & Malling Borough Council,9/17/2021,0041033477/1,41033477, 275.00,National Westminster Bank Plc,00069400,,Bank Charges,Banking Arrangements,D43QK000044222,
http://statistics.data.gov.uk/id/local-authority/29UP,Tonbridge & Malling Borough Council,9/17/2021,0041033478/1,41033478, 872.00,Orbit Housing Group,01261900,,Rent Deposit / Rent in Advance,Homelessness,C01AAC84644093,
http://statistics.data.gov.uk/id/local-authority/29UP,Tonbridge & Malling Borough Council,9/17/2021,0041033479/1,41033479, 84.74,Utax UK Ltd,01658500,642302771,Copy Charges,Multi Function Devices,D22GB000040125,
http://statistics.data.gov.uk/id/local-authority/29UP,Tonbridge & Malling Borough Council,9/20/2021,0041033481/1,41033481, 2297.00,H.M. Revenue & Customs,00048400,,Levy Payment,Apprenticeship Scheme,D10DE000013700,
http://statistics.data.gov.uk/id/local-authority/29UP,Tonbridge & Malling Borough Council,9/20/2021,0041033481/2,41033481, 1.00,H.M. Revenue & Customs,00048400,,Levy Payment,Apprenticeship Scheme,D10DE000013700,
http://statistics.data.gov.uk/id/local-authority/29UP,Tonbridge & Malling Borough Council,9/22/2021,0011043181/1,11043181, 2763.00,Orlo (SocialSignIn),01519000,,Information & Publicity,Information & Publicity,D32MJ000044076,110069209
http://statistics.data.gov.uk/id/local-authority/29UP,Tonbridge & Malling Borough Council,9/22/2021,0011043182/3,11043182, 81.00,EDF Energy Customers plc,01035000,,Estate Management Charge,Land Review,D40PS000020400,
http://statistics.data.gov.uk/id/local-authority/29UP,Tonbridge & Malling Borough Council,9/22/2021,0011043182/4,11043182, 52.04,EDF Energy Customers plc,01035000,,Estate Management Charge,Land Review,D40PS000020400,
http://statistics.data.gov.uk/id/local-authority/29UP,Tonbridge & Malling Borough Council,9/22/2021,0011043183/3,11043183, 26.10,EDF Energy Customers plc,01035000,,Estate Management Charge,Land Review,D40PS000020400,
http://statistics.data.gov.uk/id/local-authority/29UP,Tonbridge & Malling Borough Council,9/22/2021,0011043183/4,11043183, 30.24,EDF Energy Customers plc,01035000,,Estate Management Charge,Land Review,D40PS000020400,
http://statistics.data.gov.uk/id/local-authority/29UP,Tonbridge & Malling Borough Council,9/22/2021,0011043184/3,11043184, 202.89,Chubb Fire & Security Ltd,00115400,174605362,BRREP Servicing-IntruderAlarm,Larkfield Leisure Centre,M15HDP20001939,
http://statistics.data.gov.uk/id/local-authority/29UP,Tonbridge & Malling Borough Council,9/22/2021,0011043185/3,11043185, 30.81,EDF Energy Customers plc,01035000,,Estate Management Charge,Land Review,D40PS000020400,
http://statistics.data.gov.uk/id/local-authority/29UP,Tonbridge & Malling Borough Council,9/22/2021,0011043186/3,11043186, 85.00,Security & Electronic Solutions Ltd,01379500,,BRREP Servicing - CCTV,Angel Centre,M15HAP20001952,
http://statistics.data.gov.uk/id/local-authority/29UP,Tonbridge & Malling Borough Council,9/22/2021,0011043187/3,11043187, 97.26,Premier Paper Group,01421800,,Sales - Photo/Printing,Printing,D22GA000093006,
http://statistics.data.gov.uk/id/local-authority/29UP,Tonbridge & Malling Borough Council,9/22/2021,0011043188/3,11043188, 76.00,Spy Alarms Ltd,01608800,,BRREP Servicing-IntruderAlarm,Gibson Building East,M15KGP20001939,
http://statistics.data.gov.uk/id/local-authority/29UP,Tonbridge & Malling Borough Council,9/22/2021,0011043189/3,11043189, 31.80,Viridor Waste Management Ltd,00682900,,Trade Refuse Charges,Cleaning & Security,D21FD000044008,
http://statistics.data.gov.uk/id/local-authority/29UP,Tonbridge & Malling Borough Council,9/22/2021,0011043190/3,11043190, 268.00,Viridor Waste Management Ltd,00682900,,Trade Refuse Charges,Cleaning & Security,D21FD000044008,
http://statistics.data.gov.uk/id/local-authority/29UP,Tonbridge & Malling Borough Council,9/22/2021,0011043191/3,11043191, 160.80,Viridor Waste Management Ltd,00682900,,Trade Refuse Charges,Cleaning & Security,D21FD000044008,
http://statistics.data.gov.uk/id/local-authority/29UP,Tonbridge & Malling Borough Council,9/22/2021,0011043192/3,11043192, 37.16,Viridor Waste Management Ltd,00682900,,Trade Refuse Charges,Cleaning & Security,D21FD000044008,
http://statistics.data.gov.uk/id/local-authority/29UP,Tonbridge & Malling Borough Council,9/22/2021,0011043193/3,11043193, 81.20,Viridor Waste Management Ltd,00682900,,Trade Refuse Charges,Cleaning & Security,D21FD000044008,
http://statistics.data.gov.uk/id/local-authority/29UP,Tonbridge & Malling Borough Council,9/22/2021,0011043194/3,11043194, 37.16,Viridor Waste Management Ltd,00682900,,Trade Refuse Charges,Cleaning & Security,D21FD000044008,
http://statistics.data.gov.uk/id/local-authority/29UP,Tonbridge & Malling Borough Council,9/22/2021,0011043195/1,11043195, 156.88,Atlas Facilities Managment Limited ,01075900,,Miscellaneous Services,Cleaning & Security,D21FDDD1044015,
http://statistics.data.gov.uk/id/local-authority/29UP,Tonbridge & Malling Borough Council,9/22/2021,0011043196/1,11043196, 435.34,Castle Water,01696500,,Water Charges (Metered),Buildings,D21FEDD6024001,
http://statistics.data.gov.uk/id/local-authority/29UP,Tonbridge & Malling Borough Council,9/22/2021,0011043197/1,11043197, 182.75,Antalis,01556800,317187204,Purchases - Paper,Printing,D22GA000040102,
http://statistics.data.gov.uk/id/local-authority/29UP,Tonbridge & Malling Borough Council,9/22/2021,0011043198/1,11043198, 192.00,Premier Paper Group,01421800,,Purchases - Paper,Printing,D22GA000040102,
http://statistics.data.gov.uk/id/local-authority/29UP,Tonbridge & Malling Borough Council,9/22/2021,0011043199/1,11043199, 285.00,Bell Equine Veterinary Clinic,01816400,,Professional Fees,Licences - Fee Paying,H27SH000044001,
http://statistics.data.gov.uk/id/local-authority/29UP,Tonbridge & Malling Borough Council,9/22/2021,0011043201/1,11043201, 115.74,KCS,00054200,,Gas,Buildings,D21FEDD6021003,
http://statistics.data.gov.uk/id/local-authority/29UP,Tonbridge & Malling Borough Council,9/22/2021,0011043202/3,11043202, 376.92,KCS,00054200,,Gas,Buildings,D21FEDD6021003,
http://statistics.data.gov.uk/id/local-authority/29UP,Tonbridge & Malling Borough Council,9/22/2021,0011043203/3,11043203, 95.79,KCS,00054200,,Gas,Buildings,D21FEDD6021003,
http://statistics.data.gov.uk/id/local-authority/29UP,Tonbridge & Malling Borough Council,9/22/2021,0011043204/3,11043204, 325.31,Initial Washroom Hygiene,00048300,,Laundry - Roller Towels,Cleaning & Security,D21FD000042003,
http://statistics.data.gov.uk/id/local-authority/29UP,Tonbridge & Malling Borough Council,9/22/2021,0011043205/3,11043205, 822.33,KCS,00054200,,Electricity,Buildings,D21FEDD5021002,
http://statistics.data.gov.uk/id/local-authority/29UP,Tonbridge & Malling Borough Council,9/22/2021,0011043206/3,11043206, 1020.44,KCS,00054200,,Electricity,Buildings,D21FEDD6021002,
http://statistics.data.gov.uk/id/local-authority/29UP,Tonbridge & Malling Borough Council,9/22/2021,0011043207/3,11043207, 2967.11,KCS,00054200,,Electricity,Buildings,D21FEDD1021002,
http://statistics.data.gov.uk/id/local-authority/29UP,Tonbridge & Malling Borough Council,9/22/2021,0011043208/3,11043208, 79.00,BML Building Services Ltd,01505000,,BRREP Servicing - Pumping Stn,Ton Sportsgrnd Bldgs / Toilets,M15HCP20001931,
http://statistics.data.gov.uk/id/local-authority/29UP,Tonbridge & Malling Borough Council,9/22/2021,0011043209/3,11043209, 525.00,Driven to perfection,01541000,,Mayors Transport Allowance,Mayoral & Other Member Support,D29LX000034111,
http://statistics.data.gov.uk/id/local-authority/29UP,Tonbridge & Malling Borough Council,9/22/2021,0011043210/3,11043210, 361.77,KCS,00054200,,Gas,Buildings,D21FEDD1021003,
http://statistics.data.gov.uk/id/local-authority/29UP,Tonbridge & Malling Borough Council,9/22/2021,0011043211/3,11043211, 634.30,Bevan Brittan LLP,01096600,,Legal Fees,Legal Sals&Overheads,D01ARDR0044002,
http://statistics.data.gov.uk/id/local-authority/29UP,Tonbridge & Malling Borough Council,9/22/2021,0011043212/7,11043212, 840.00,Venn Group Ltd,00914300,,Temporary Staff,Legal Sals&Overheads,D01ARDR0011300,
http://statistics.data.gov.uk/id/local-authority/29UP,Tonbridge & Malling Borough Council,9/22/2021,0011043216/1,11043216, 483.00,Clearway Environmental Services (UK) lTD,01811200,,BRREP Response - General,Land Review,M15MAP50001997,110069152
http://statistics.data.gov.uk/id/local-authority/29UP,Tonbridge & Malling Borough Council,9/22/2021,0011043217/1,11043217, 79.00,BML Building Services Ltd,01505000,,BRREP Window/door repairs,Tonbridge Castle / CAB,M15KFP20001919,110069192
http://statistics.data.gov.uk/id/local-authority/29UP,Tonbridge & Malling Borough Council,9/22/2021,0011043218/1,11043218, 6900.00,Coolburn Air Conditioning Ltd,01137900,,BRREP Servicing - air handling,Larkfield Leisure Centre,M15HDP20001936,110069082
http://statistics.data.gov.uk/id/local-authority/29UP,Tonbridge & Malling Borough Council,9/22/2021,0011043219/1,11043219, 3300.00,Coolburn Air Conditioning Ltd,01137900,,BRREP Servicing - air handling,Larkfield Leisure Centre,M15HDP20001936,110069179
http://statistics.data.gov.uk/id/local-authority/29UP,Tonbridge & Malling Borough Council,9/22/2021,0011043220/1,11043220, 266.10,Marine And Industrial Pump Services,00062800,,BRREP Servicing - pool plant,Tonbridge Swimming Pool,M15HBP20001910,110069207
http://statistics.data.gov.uk/id/local-authority/29UP,Tonbridge & Malling Borough Council,9/22/2021,0011043221/1,11043221, 270.00,Marine And Industrial Pump Services,00062800,,BRREP Servicing - pool plant,Tonbridge Swimming Pool,M15HBP20001910,110069206
http://statistics.data.gov.uk/id/local-authority/29UP,Tonbridge & Malling Borough Council,9/22/2021,0011043222/1,11043222, 403.50,Marine And Industrial Pump Services,00062800,,BRREP Plant renewals,Tonbridge Swimming Pool,M15HBP20001909,110069212
http://statistics.data.gov.uk/id/local-authority/29UP,Tonbridge & Malling Borough Council,9/22/2021,0011043223/1,11043223, 180.06,Scottish Water Business Stream Ltd,01641100,,Sewerage Charges,Buildings,D21FE000024003,
http://statistics.data.gov.uk/id/local-authority/29UP,Tonbridge & Malling Borough Council,9/22/2021,0011043224/1,11043224, 718.56,Scottish Water Business Stream Ltd,01641100,,Sewerage Charges,Buildings,D21FE000024003,
http://statistics.data.gov.uk/id/local-authority/29UP,Tonbridge & Malling Borough Council,9/22/2021,0011043225/1,11043225, 29.78,Scottish Water Business Stream Ltd,01641100,,Sewerage Charges,Buildings,D21FE000024003,
http://statistics.data.gov.uk/id/local-authority/29UP,Tonbridge & Malling Borough Council,9/22/2021,0011043226/1,11043226, 344.42,Scottish Water Business Stream Ltd,01641100,,Sewerage Charges,Buildings,D21FE000024003,
http://statistics.data.gov.uk/id/local-authority/29UP,Tonbridge & Malling Borough Council,9/22/2021,0011043227/1,11043227, 95.00,Spy Alarms Ltd,01608800,,BRREP Servicing-IntruderAlarm,Gibson Building West,M15KBP20001939,
http://statistics.data.gov.uk/id/local-authority/29UP,Tonbridge & Malling Borough Council,9/22/2021,0011043228/1,11043228, 957.00,Spy Alarms Ltd,01608800,,BRREP Servicing-IntruderAlarm,Gibson Building East,M15KGP20001939,
http://statistics.data.gov.uk/id/local-authority/29UP,Tonbridge & Malling Borough Council,9/22/2021,0011043229/1,11043229, 89.16,Antalis,01556800,317187204,Purchases - Paper,Printing,D22GA000040102,
http://statistics.data.gov.uk/id/local-authority/29UP,Tonbridge & Malling Borough Council,9/22/2021,0011043230/1,11043230, 329.76,Castle Water,01696500,,Water Charges (Metered),Buildings,D21FE000024001,
http://statistics.data.gov.uk/id/local-authority/29UP,Tonbridge & Malling Borough Council,9/22/2021,0011043231/1,11043231, 133.61,KCS,00054200,,Electricity,Buildings,D21FE000021002,
http://statistics.data.gov.uk/id/local-authority/29UP,Tonbridge & Malling Borough Council,9/22/2021,0011043232/1,11043232, 409.74,KCS,00054200,,Electricity,Buildings,D21FE000021002,
http://statistics.data.gov.uk/id/local-authority/29UP,Tonbridge & Malling Borough Council,9/22/2021,0011043233/1,11043233, 271.99,KCS,00054200,,Electricity,Buildings,D21FE000021002,
http://statistics.data.gov.uk/id/local-authority/29UP,Tonbridge & Malling Borough Council,9/22/2021,0011043234/1,11043234, 327.17,KCS,00054200,,Electricity,Buildings,D21FE000021002,
http://statistics.data.gov.uk/id/local-authority/29UP,Tonbridge & Malling Borough Council,9/22/2021,0011043235/1,11043235, 79.50,KCS,00054200,,Electricity,Buildings,D21FE000021002,
http://statistics.data.gov.uk/id/local-authority/29UP,Tonbridge & Malling Borough Council,9/22/2021,0011043236/1,11043236, 39.27,KCS,00054200,,Electricity,Buildings,D21FE000021002,
http://statistics.data.gov.uk/id/local-authority/29UP,Tonbridge & Malling Borough Council,9/22/2021,0011043237/1,11043237, 120.08,KCS,00054200,,Electricity,Buildings,D21FE000021002,
http://statistics.data.gov.uk/id/local-authority/29UP,Tonbridge & Malling Borough Council,9/22/2021,0011043238/1,11043238, 11593.00,Wallis a Division of Kier Construction L,00806300,683800816,Contract Payments,Homeless Accommodation,P03AX000009904,
http://statistics.data.gov.uk/id/local-authority/29UP,Tonbridge & Malling Borough Council,9/22/2021,0011043239/1,11043239, 2785.47,Atac Solutions LTD,01558800,,BRREP LeybourneCP SewageDigest,Pleasure Grounds & Open Spaces,M15HHP20001961,110069049
http://statistics.data.gov.uk/id/local-authority/29UP,Tonbridge & Malling Borough Council,9/22/2021,0011043240/1,11043240, 3824.11,Broadwater Technologies,01534500,,BRREP Servicing - pool plant,Larkfield Leisure Centre,M15HDP20001910,110069211
http://statistics.data.gov.uk/id/local-authority/29UP,Tonbridge & Malling Borough Council,9/22/2021,0011043241/1,11043241, 349.13,DORMA UK Ltd,00413500,549361128,BRREP Servicing-entrance doors,Tonbridge Castle / CAB,M15KFP20001927,110069109
http://statistics.data.gov.uk/id/local-authority/29UP,Tonbridge & Malling Borough Council,9/22/2021,0011043242/1,11043242, 155.44,Chubb Fire & Security Ltd,00115400,174605362,BRREP Servicing-IntruderAlarm,Tonbridge Swimming Pool,M15HBP20001939,110069210
http://statistics.data.gov.uk/id/local-authority/29UP,Tonbridge & Malling Borough Council,9/22/2021,0011043243/1,11043243, 718.00,Hadene Engineering Ltd,00041900,,BRREP Servicing - boilers,Larkfield Leisure Centre,M15HDP20001929,110069200
http://statistics.data.gov.uk/id/local-authority/29UP,Tonbridge & Malling Borough Council,9/22/2021,0011043244/1,11043244, 79.00,BML Building Services Ltd,01505000,,BRREP Window/door repairs,Tonbridge Castle / CAB,M15KFP20001919,110069195
http://statistics.data.gov.uk/id/local-authority/29UP,Tonbridge & Malling Borough Council,9/22/2021,0012008119/1,12008119, 14341.69,Phoenix Software Ltd,00077400,755349015,Software Hire & Support,Information Technology,D27KD000044059,410032038
http://statistics.data.gov.uk/id/local-authority/29UP,Tonbridge & Malling Borough Council,9/22/2021,0012008120/1,12008120, 99.00,Nexus Data Systems Ltd,01057000,,Software Hire & Support,Information Technology,D27KD000044059,410032042
http://statistics.data.gov.uk/id/local-authority/29UP,Tonbridge & Malling Borough Council,9/22/2021,0012008121/10,12008121, 3.00,O2 UK Ltd,01268000,,Mobile Telephones,Chief Exec Sals&Overheads,D01ACDC0245013,
http://statistics.data.gov.uk/id/local-authority/29UP,Tonbridge & Malling Borough Council,9/22/2021,0012008121/11,12008121, 3.00,O2 UK Ltd,01268000,,Mobile Telephones,Technical Sals&Overheads,D01AEDE0045013,
http://statistics.data.gov.uk/id/local-authority/29UP,Tonbridge & Malling Borough Council,9/22/2021,0012008121/12,12008121, 6.00,O2 UK Ltd,01268000,,Mobile Telephones,Technical Sals&Overheads,D01AEDE0145013,
http://statistics.data.gov.uk/id/local-authority/29UP,Tonbridge & Malling Borough Council,9/22/2021,0012008121/13,12008121, 9.00,O2 UK Ltd,01268000,,Mobile Telephones,Technical Sals&Overheads,D01AEDE0245013,
http://statistics.data.gov.uk/id/local-authority/29UP,Tonbridge & Malling Borough Council,9/22/2021,0012008121/14,12008121, 39.00,O2 UK Ltd,01268000,,Mobile Telephones,Technical Sals&Overheads,D01AEDE0445013,
http://statistics.data.gov.uk/id/local-authority/29UP,Tonbridge & Malling Borough Council,9/22/2021,0012008121/15,12008121, 3.00,O2 UK Ltd,01268000,,Mobile Telephones,Technical Sals&Overheads,D01AEDE0545013,
http://statistics.data.gov.uk/id/local-authority/29UP,Tonbridge & Malling Borough Council,9/22/2021,0012008121/16,12008121, 12.00,O2 UK Ltd,01268000,,Mobile Telephones,Finance Sals&Overheads,D01AFDF0045013,
http://statistics.data.gov.uk/id/local-authority/29UP,Tonbridge & Malling Borough Council,9/22/2021,0012008121/17,12008121, 9.00,O2 UK Ltd,01268000,,Mobile Telephones,Finance Sals&Overheads,D01AFDF0945013,
http://statistics.data.gov.uk/id/local-authority/29UP,Tonbridge & Malling Borough Council,9/22/2021,0012008121/18,12008121, 12.00,O2 UK Ltd,01268000,,Mobile Telephones,St Scene & Leis Sals&Overheads,D01AGDG0045013,
http://statistics.data.gov.uk/id/local-authority/29UP,Tonbridge & Malling Borough Council,9/22/2021,0012008121/19,12008121, 6.00,O2 UK Ltd,01268000,,Mobile Telephones,St Scene & Leis Sals&Overheads,D01AGDG0145013,
http://statistics.data.gov.uk/id/local-authority/29UP,Tonbridge & Malling Borough Council,9/22/2021,0012008121/20,12008121, 9.00,O2 UK Ltd,01268000,,Mobile Telephones,St Scene & Leis Sals&Overheads,D01AGDG0445013,
http://statistics.data.gov.uk/id/local-authority/29UP,Tonbridge & Malling Borough Council,9/22/2021,0012008121/21,12008121, 30.40,O2 UK Ltd,01268000,,Mobile Telephones,St Scene & Leis Sals&Overheads,D01AGDG2045013,
http://statistics.data.gov.uk/id/local-authority/29UP,Tonbridge & Malling Borough Council,9/22/2021,0012008121/22,12008121, 9.00,O2 UK Ltd,01268000,,Mobile Telephones,Planning Sals&Overheads,D01AJDJ0045013,
http://statistics.data.gov.uk/id/local-authority/29UP,Tonbridge & Malling Borough Council,9/22/2021,0012008121/23,12008121, 3.20,O2 UK Ltd,01268000,,Mobile Telephones,Planning Sals&Overheads,D01AJDJ0145013,
http://statistics.data.gov.uk/id/local-authority/29UP,Tonbridge & Malling Borough Council,9/22/2021,0012008121/24,12008121, 6.00,O2 UK Ltd,01268000,,Mobile Telephones,Legal Sals&Overheads,D01ARDR0045013,
http://statistics.data.gov.uk/id/local-authority/29UP,Tonbridge & Malling Borough Council,9/22/2021,0012008121/25,12008121, 12.00,O2 UK Ltd,01268000,,Mobile Telephones,Legal Sals&Overheads,D01ARDR0445013,
http://statistics.data.gov.uk/id/local-authority/29UP,Tonbridge & Malling Borough Council,9/22/2021,0012008121/26,12008121, 3.00,O2 UK Ltd,01268000,,Mobile Telephones,Legal Sals&Overheads,D01ARDR0745013,
http://statistics.data.gov.uk/id/local-authority/29UP,Tonbridge & Malling Borough Council,9/22/2021,0012008121/27,12008121, 3.00,O2 UK Ltd,01268000,,Mobile Telephones,Env Hlth & Hsg Sals&Overheads,D01AVDV0045013,
http://statistics.data.gov.uk/id/local-authority/29UP,Tonbridge & Malling Borough Council,9/22/2021,0012008121/28,12008121, 9.00,O2 UK Ltd,01268000,,Mobile Telephones,Env Hlth & Hsg Sals&Overheads,D01AVDV0145013,
http://statistics.data.gov.uk/id/local-authority/29UP,Tonbridge & Malling Borough Council,9/22/2021,0012008121/29,12008121, 6.00,O2 UK Ltd,01268000,,Mobile Telephones,Env Hlth & Hsg Sals&Overheads,D01AVDV0345013,
http://statistics.data.gov.uk/id/local-authority/29UP,Tonbridge & Malling Borough Council,9/22/2021,0012008121/3,12008121, 3.00,O2 UK Ltd,01268000,,Telephones - General,Open Spaces & Amenity Areas,B22LE000045010,
http://statistics.data.gov.uk/id/local-authority/29UP,Tonbridge & Malling Borough Council,9/22/2021,0012008121/30,12008121, 9.00,O2 UK Ltd,01268000,,Mobile Telephones,Customer Services,D23CS000045013,
http://statistics.data.gov.uk/id/local-authority/29UP,Tonbridge & Malling Borough Council,9/22/2021,0012008121/31,12008121, 3.00,O2 UK Ltd,01268000,,Mobile Telephones,Tonbridge Gateway,D23TG000045013,
http://statistics.data.gov.uk/id/local-authority/29UP,Tonbridge & Malling Borough Council,9/22/2021,0012008121/32,12008121, 624.00,O2 UK Ltd,01268000,,Leased Lines & Modems,Information Technology,D27KD000045011,
http://statistics.data.gov.uk/id/local-authority/29UP,Tonbridge & Malling Borough Council,9/22/2021,0012008121/33,12008121, 3.00,O2 UK Ltd,01268000,,Mobile Telephones,Mayoral & Other Member Support,D29LX000045013,
http://statistics.data.gov.uk/id/local-authority/29UP,Tonbridge & Malling Borough Council,9/22/2021,0012008121/34,12008121, 3.00,O2 UK Ltd,01268000,,Emergency Out of Hours Recharg,Refuse Collection,H20SA000045030,
http://statistics.data.gov.uk/id/local-authority/29UP,Tonbridge & Malling Borough Council,9/22/2021,0012008121/35,12008121, 3.00,O2 UK Ltd,01268000,,Emergency Out of Hours Recharg,Street Scene,H23SD000045030,
http://statistics.data.gov.uk/id/local-authority/29UP,Tonbridge & Malling Borough Council,9/22/2021,0012008121/4,12008121, 6.00,O2 UK Ltd,01268000,,Telephones - General,Leybourne Lakes Country Park,B22LK000045010,
http://statistics.data.gov.uk/id/local-authority/29UP,Tonbridge & Malling Borough Council,9/22/2021,0012008121/5,12008121, 6.00,O2 UK Ltd,01268000,,Mobile Telephones,Admin & Prop Sals&Overheads,D01AADA0045013,
http://statistics.data.gov.uk/id/local-authority/29UP,Tonbridge & Malling Borough Council,9/22/2021,0012008121/6,12008121, 6.00,O2 UK Ltd,01268000,,Mobile Telephones,Admin & Prop Sals&Overheads,D01AADA1045013,
http://statistics.data.gov.uk/id/local-authority/29UP,Tonbridge & Malling Borough Council,9/22/2021,0012008121/7,12008121, 3.00,O2 UK Ltd,01268000,,Mobile Telephones,Admin & Prop Sals&Overheads,D01AADA1245013,
http://statistics.data.gov.uk/id/local-authority/29UP,Tonbridge & Malling Borough Council,9/22/2021,0012008121/8,12008121, 3.00,O2 UK Ltd,01268000,,Mobile Telephones,Chief Exec Sals&Overheads,D01ACDC0045013,
http://statistics.data.gov.uk/id/local-authority/29UP,Tonbridge & Malling Borough Council,9/22/2021,0012008121/9,12008121, 3.00,O2 UK Ltd,01268000,,Mobile Telephones,Chief Exec Sals&Overheads,D01ACDC0145013,
http://statistics.data.gov.uk/id/local-authority/29UP,Tonbridge & Malling Borough Council,9/22/2021,0012008122/1,12008122, 529.90,CCS Media Ltd,00018000,,Purchases,Information Technology,D27KD000040101,410032032
http://statistics.data.gov.uk/id/local-authority/29UP,Tonbridge & Malling Borough Council,9/22/2021,0012008122/2,12008122, 2.00,CCS Media Ltd,00018000,,Delivery Expenses,Information Technology,D27KD000044069,410032032
http://statistics.data.gov.uk/id/local-authority/29UP,Tonbridge & Malling Borough Council,9/22/2021,0012008123/1,12008123, 219.99,CCS Media Ltd,00018000,,Toner Cartridges,Information Technology,D27KD000043018,410032040
http://statistics.data.gov.uk/id/local-authority/29UP,Tonbridge & Malling Borough Council,9/22/2021,0012008123/2,12008123, 2.00,CCS Media Ltd,00018000,,Delivery Expenses,Information Technology,D27KD000044069,410032040
http://statistics.data.gov.uk/id/local-authority/29UP,Tonbridge & Malling Borough Council,9/22/2021,0012008124/1,12008124, 74.99,CCS Media Ltd,00018000,,Toner Cartridges,Information Technology,D27KD000043018,410032040
http://statistics.data.gov.uk/id/local-authority/29UP,Tonbridge & Malling Borough Council,9/22/2021,0012008124/2,12008124, 69.99,CCS Media Ltd,00018000,,Toner Cartridges,Information Technology,D27KD000043018,410032040
http://statistics.data.gov.uk/id/local-authority/29UP,Tonbridge & Malling Borough Council,9/22/2021,0012008124/3,12008124, 74.99,CCS Media Ltd,00018000,,Toner Cartridges,Information Technology,D27KD000043018,410032040
http://statistics.data.gov.uk/id/local-authority/29UP,Tonbridge & Malling Borough Council,9/22/2021,0012008124/4,12008124, 74.99,CCS Media Ltd,00018000,,Toner Cartridges,Information Technology,D27KD000043018,410032040
http://statistics.data.gov.uk/id/local-authority/29UP,Tonbridge & Malling Borough Council,9/22/2021,0012008124/5,12008124, 3.00,CCS Media Ltd,00018000,,Delivery Expenses,Information Technology,D27KD000044069,410032040
http://statistics.data.gov.uk/id/local-authority/29UP,Tonbridge & Malling Borough Council,9/22/2021,0012008125/1,12008125, 293.93,CCS Media Ltd,00018000,,Purchases,Information Technology,D27KD000040101,410032041
http://statistics.data.gov.uk/id/local-authority/29UP,Tonbridge & Malling Borough Council,9/22/2021,0012008125/2,12008125, 112.47,CCS Media Ltd,00018000,,Purchases,Information Technology,D27KD000040101,410032041
http://statistics.data.gov.uk/id/local-authority/29UP,Tonbridge & Malling Borough Council,9/22/2021,0012008125/3,12008125, 2.00,CCS Media Ltd,00018000,,Delivery Expenses,Information Technology,D27KD000044069,410032041
http://statistics.data.gov.uk/id/local-authority/29UP,Tonbridge & Malling Borough Council,9/22/2021,0021037465/1,21037465, 39.07,Castle Water,01696500,,Water Charges (Metered),Cemetery,B26MP000024001,
http://statistics.data.gov.uk/id/local-authority/29UP,Tonbridge & Malling Borough Council,9/22/2021,0021037469/1,21037469, 2077.00,Premier Education Shirly Sports Ltd,01816200,,Events Support,Events Development,B41TJ000044041,
http://statistics.data.gov.uk/id/local-authority/29UP,Tonbridge & Malling Borough Council,9/22/2021,0021037470/1,21037470, 300.00,RiverWalkMusic,01816100,,Events Support,Events Development,B41TJ000044041,
http://statistics.data.gov.uk/id/local-authority/29UP,Tonbridge & Malling Borough Council,9/22/2021,0021037471/1,21037471, 20.42,REDACTED PERSONAL DATA,01065500,,Maintenance of Grounds,Haysden Country Park,B22LC000020402,
http://statistics.data.gov.uk/id/local-authority/29UP,Tonbridge & Malling Borough Council,9/22/2021,0021037472/1,21037472, 137.10,Castle Water,01696500,,Water Charges (Metered),Leybourne Lakes Country Park,B22LK000024001,
http://statistics.data.gov.uk/id/local-authority/29UP,Tonbridge & Malling Borough Council,9/22/2021,0021037473/1,21037473, 58.00,Landscape Services Ltd,00057600,,Maintenance of Grounds,Cemetery,B26MP000020402,210056466
http://statistics.data.gov.uk/id/local-authority/29UP,Tonbridge & Malling Borough Council,9/22/2021,0021037474/1,21037474, 488.00,Landscape Services Ltd,00057600,,Maintenance of Grounds,Sports Grounds,B13ET000020402,210056394
http://statistics.data.gov.uk/id/local-authority/29UP,Tonbridge & Malling Borough Council,9/22/2021,0021037475/1,21037475, 400.00,Weddle and Co,00714900,,Re-opening High Streets,Eco Dev & Reg Gen Bus Support,D52TDCV1948076,210056454
http://statistics.data.gov.uk/id/local-authority/29UP,Tonbridge & Malling Borough Council,9/22/2021,0021037476/1,21037476, 77.68,KCC - L.A.S.E.R Commercial Services ,00184300,,Electricity,Cemetery,B26MP000021002,
http://statistics.data.gov.uk/id/local-authority/29UP,Tonbridge & Malling Borough Council,9/22/2021,0021037477/1,21037477, 432.00,TMS Protection Ltd,01744300,,Gates / Security,Leybourne Lakes Country Park,B22LK000044017,210056302
http://statistics.data.gov.uk/id/local-authority/29UP,Tonbridge & Malling Borough Council,9/22/2021,0021037478/1,21037478, 92.00,Toilets+ Ltd,01039000,,Maintenance of Grounds,Leybourne Lakes Country Park,B22LK000020402,
http://statistics.data.gov.uk/id/local-authority/29UP,Tonbridge & Malling Borough Council,9/22/2021,0021037479/1,21037479, 885.32,PPL PRS Ltd,01703400,,Licences,Events Development,B41TJ000048011,210056456
http://statistics.data.gov.uk/id/local-authority/29UP,Tonbridge & Malling Borough Council,9/22/2021,0021037480/1,21037480, 272.50,Verity Rae Martin LTD,01619000,,Partnership Fees,Youth Partnerships,B33PG000044048,210056450
http://statistics.data.gov.uk/id/local-authority/29UP,Tonbridge & Malling Borough Council,9/22/2021,0022025750/1,22025750, 868.00,Smart Property Professionals,01815100,,Temporary Accommodation,Homelessness,C01AA000044051,
http://statistics.data.gov.uk/id/local-authority/29UP,Tonbridge & Malling Borough Council,9/22/2021,0022025772/3,22025772, 618.75,KH Recruitment Ltd,01738900,,Temporary Staff,St Scene & Leis Sals&Overheads,D01AGDG3011300,
http://statistics.data.gov.uk/id/local-authority/29UP,Tonbridge & Malling Borough Council,9/22/2021,0022025774/1,22025774, 9258.27,Coldwell & Shawyer Ltd,01740300,,Other Expenses,Disabled Facilities Grant Mand,P03AC000009908,
http://statistics.data.gov.uk/id/local-authority/29UP,Tonbridge & Malling Borough Council,9/22/2021,0022025775/1,22025775, 1333.19,Peabody South East LTD,01680900,,Other Expenses,Disabled Facilities Grant Mand,P03AC000009908,
http://statistics.data.gov.uk/id/local-authority/29UP,Tonbridge & Malling Borough Council,9/22/2021,0022025776/1,22025776, 10364.40,Acorn Maintenance Services,01036000,,Other Expenses,Disabled Facilities Grant Mand,P03AC000009908,
http://statistics.data.gov.uk/id/local-authority/29UP,Tonbridge & Malling Borough Council,9/22/2021,0022025777/1,22025777, 1243.73,Peabody South East LTD,01680900,,Other Expenses,Disabled Facilities Grant Mand,P03AC000009908,
http://statistics.data.gov.uk/id/local-authority/29UP,Tonbridge & Malling Borough Council,9/22/2021,0022025778/1,22025778, 3897.57,Coldwell & Shawyer Ltd,01740300,,Other Expenses,Disabled Facilities Grant Mand,P03AC000009908,
http://statistics.data.gov.uk/id/local-authority/29UP,Tonbridge & Malling Borough Council,9/22/2021,0022025779/1,22025779, 755.53,Peabody South East LTD,01680900,,Other Expenses,Disabled Facilities Grant Mand,P03AC000009908,
http://statistics.data.gov.uk/id/local-authority/29UP,Tonbridge & Malling Borough Council,9/22/2021,0022025780/1,22025780, 7963.02,Adaptec Mobilty Ltd,01785800,,Other Expenses,Disabled Facilities Grant Mand,P03AC000009908,
http://statistics.data.gov.uk/id/local-authority/29UP,Tonbridge & Malling Borough Council,9/22/2021,0022025781/1,22025781, 1146.67,Peabody South East LTD,01680900,,Other Expenses,Disabled Facilities Grant Mand,P03AC000009908,
http://statistics.data.gov.uk/id/local-authority/29UP,Tonbridge & Malling Borough Council,9/22/2021,0022025782/3,22025782, 1440.00,The Oyster Partnership,01196400,,Temporary Staff,Planning Sals&Overheads,D01AJDJ0111300,
http://statistics.data.gov.uk/id/local-authority/29UP,Tonbridge & Malling Borough Council,9/22/2021,0022025783/1,22025783, 763.31,G2 Recruitment Solutions,01786000,,Temporary Staff,Env Hlth & Hsg Sals&Overheads,D01AVDV0711300,
http://statistics.data.gov.uk/id/local-authority/29UP,Tonbridge & Malling Borough Council,9/22/2021,0022025785/1,22025785, 2687.28,Vivid Resourcing,01773700,,Temporary Staff,Env Hlth & Hsg Sals&Overheads,D01AVDV0711300,
http://statistics.data.gov.uk/id/local-authority/29UP,Tonbridge & Malling Borough Council,9/22/2021,0022025786/1,22025786, 1239.50,Vivid Resourcing,01773700,,Temporary Staff,Env Hlth & Hsg Sals&Overheads,D01AVDV0711300,
http://statistics.data.gov.uk/id/local-authority/29UP,Tonbridge & Malling Borough Council,9/22/2021,0022025787/1,22025787, 1239.84,Vivid Resourcing,01773700,,Temporary Staff,Env Hlth & Hsg Sals&Overheads,D01AVDV0711300,
http://statistics.data.gov.uk/id/local-authority/29UP,Tonbridge & Malling Borough Council,9/22/2021,0022025788/1,22025788, 1239.84,Vivid Resourcing,01773700,,Temporary Staff,Env Hlth & Hsg Sals&Overheads,D01AVDV0711300,
http://statistics.data.gov.uk/id/local-authority/29UP,Tonbridge & Malling Borough Council,9/22/2021,0022025789/1,22025789, 2250.20,Vivid Resourcing,01773700,,Temporary Staff,Env Hlth & Hsg Sals&Overheads,D01AVDV0711300,
http://statistics.data.gov.uk/id/local-authority/29UP,Tonbridge & Malling Borough Council,9/22/2021,0022025790/1,22025790, 2459.55,Gregory (Kent) LTD,01310800,,Other Expenses,Disabled Facilities Grant Mand,P03AC000009908,
http://statistics.data.gov.uk/id/local-authority/29UP,Tonbridge & Malling Borough Council,9/22/2021,0022025791/1,22025791, 108.79,Castle Water,01696500,,Water Charges (Metered),Public Conveniences,H22SCH00424001,
http://statistics.data.gov.uk/id/local-authority/29UP,Tonbridge & Malling Borough Council,9/22/2021,0022025792/1,22025792, 128.00,Experts2clean,01816300,,Professional Fees,Homelessness,C01AA000044001,
http://statistics.data.gov.uk/id/local-authority/29UP,Tonbridge & Malling Borough Council,9/22/2021,0022025793/1,22025793, 128.00,Experts2clean,01816300,,Professional Fees,Homelessness,C01AA000044001,
http://statistics.data.gov.uk/id/local-authority/29UP,Tonbridge & Malling Borough Council,9/22/2021,0022025795/1,22025795, 108.40,KCC - L.A.S.E.R Commercial Services ,00184300,,Electricity,Cemetery,B26MP000021002,
http://statistics.data.gov.uk/id/local-authority/29UP,Tonbridge & Malling Borough Council,9/22/2021,0022025796/1,22025796, 5436.00,Premier Property Providers,01785400,,Temporary Accommodation,Homelessness,C01AA000044051,
http://statistics.data.gov.uk/id/local-authority/29UP,Tonbridge & Malling Borough Council,9/22/2021,0022025797/1,22025797, 38.00,Streamline (Kent) Limited,01043100,,Public Transport,Homelessness,C01AA000033001,
http://statistics.data.gov.uk/id/local-authority/29UP,Tonbridge & Malling Borough Council,9/22/2021,0022025798/1,22025798, 434.00,Countrystyle Group,00835900,781981681,Plastic Recycling,Dry Recycling,H34SR000054019,
http://statistics.data.gov.uk/id/local-authority/29UP,Tonbridge & Malling Borough Council,9/22/2021,0022025799/1,22025799, 1610.00,Haymarket Media Group Ltd,00299600,,Subscriptions,Env Hlth & Hsg Sals&Overheads,D01AVDV0347002,
http://statistics.data.gov.uk/id/local-authority/29UP,Tonbridge & Malling Borough Council,9/22/2021,0031018168/1,31018168, 320.00,Chroma Vision Ltd,00891600,,Maintenance - General,Security Services Management,E09GA000040135,310042706
http://statistics.data.gov.uk/id/local-authority/29UP,Tonbridge & Malling Borough Council,9/22/2021,0031018169/1,31018169, 21.88,KelticLimited,01000400,,Uniforms,Parking Off-Street,E10HA000042002,310042715
http://statistics.data.gov.uk/id/local-authority/29UP,Tonbridge & Malling Borough Council,9/22/2021,0031018169/10,31018169, 35.37,KelticLimited,01000400,,Uniforms,Parking On-Street,E10HD000042002,310042715
http://statistics.data.gov.uk/id/local-authority/29UP,Tonbridge & Malling Borough Council,9/22/2021,0031018169/11,31018169, 46.17,KelticLimited,01000400,,Uniforms,Parking On-Street,E10HD000042002,310042715
http://statistics.data.gov.uk/id/local-authority/29UP,Tonbridge & Malling Borough Council,9/22/2021,0031018169/12,31018169, 18.96,KelticLimited,01000400,,Uniforms,Parking On-Street,E10HD000042002,310042715
http://statistics.data.gov.uk/id/local-authority/29UP,Tonbridge & Malling Borough Council,9/22/2021,0031018169/13,31018169, 34.11,KelticLimited,01000400,,Uniforms,Parking On-Street,E10HD000042002,310042715
http://statistics.data.gov.uk/id/local-authority/29UP,Tonbridge & Malling Borough Council,9/22/2021,0031018169/14,31018169, 32.82,KelticLimited,01000400,,Uniforms,Parking On-Street,E10HD000042002,310042715
http://statistics.data.gov.uk/id/local-authority/29UP,Tonbridge & Malling Borough Council,9/22/2021,0031018169/2,31018169, 22.74,KelticLimited,01000400,,Uniforms,Parking Off-Street,E10HA000042002,310042715
http://statistics.data.gov.uk/id/local-authority/29UP,Tonbridge & Malling Borough Council,9/22/2021,0031018169/3,31018169, 30.78,KelticLimited,01000400,,Uniforms,Parking Off-Street,E10HA000042002,310042715
http://statistics.data.gov.uk/id/local-authority/29UP,Tonbridge & Malling Borough Council,9/22/2021,0031018169/4,31018169, 12.64,KelticLimited,01000400,,Uniforms,Parking Off-Street,E10HA000042002,310042715
http://statistics.data.gov.uk/id/local-authority/29UP,Tonbridge & Malling Borough Council,9/22/2021,0031018169/5,31018169, 23.58,KelticLimited,01000400,,Uniforms,Parking Off-Street,E10HA000042002,310042715
http://statistics.data.gov.uk/id/local-authority/29UP,Tonbridge & Malling Borough Council,9/22/2021,0031018169/6,31018169, 35.98,KelticLimited,01000400,,Uniforms,Parking Off-Street,E10HA000042002,310042715
http://statistics.data.gov.uk/id/local-authority/29UP,Tonbridge & Malling Borough Council,9/22/2021,0031018169/7,31018169, 19.98,KelticLimited,01000400,,Uniforms,Parking Off-Street,E10HA000042002,310042715
http://statistics.data.gov.uk/id/local-authority/29UP,Tonbridge & Malling Borough Council,9/22/2021,0031018169/8,31018169, 29.97,KelticLimited,01000400,,Uniforms,Parking On-Street,E10HD000042002,310042715
http://statistics.data.gov.uk/id/local-authority/29UP,Tonbridge & Malling Borough Council,9/22/2021,0031018169/9,31018169, 53.97,KelticLimited,01000400,,Uniforms,Parking On-Street,E10HD000042002,310042715
http://statistics.data.gov.uk/id/local-authority/29UP,Tonbridge & Malling Borough Council,9/22/2021,0031018171/1,31018171, 15.90,KelticLimited,01000400,,Uniforms,Parking Off-Street,E10HA000042002,310042719
http://statistics.data.gov.uk/id/local-authority/29UP,Tonbridge & Malling Borough Council,9/22/2021,0031018171/10,31018171, 22.74,KelticLimited,01000400,,Uniforms,Parking On-Street,E10HD000042002,310042719
http://statistics.data.gov.uk/id/local-authority/29UP,Tonbridge & Malling Borough Council,9/22/2021,0031018171/11,31018171, 23.85,KelticLimited,01000400,,Uniforms,Parking On-Street,E10HD000042002,310042719
http://statistics.data.gov.uk/id/local-authority/29UP,Tonbridge & Malling Borough Council,9/22/2021,0031018171/12,31018171, 23.85,KelticLimited,01000400,,Uniforms,Parking On-Street,E10HD000042002,310042719
http://statistics.data.gov.uk/id/local-authority/29UP,Tonbridge & Malling Borough Council,9/22/2021,0031018171/2,31018171, 15.90,KelticLimited,01000400,,Uniforms,Parking Off-Street,E10HA000042002,310042719
http://statistics.data.gov.uk/id/local-authority/29UP,Tonbridge & Malling Borough Council,9/22/2021,0031018171/3,31018171, 15.16,KelticLimited,01000400,,Uniforms,Parking Off-Street,E10HA000042002,310042719
http://statistics.data.gov.uk/id/local-authority/29UP,Tonbridge & Malling Borough Council,9/22/2021,0031018171/4,31018171, 22.74,KelticLimited,01000400,,Uniforms,Parking Off-Street,E10HA000042002,310042719
http://statistics.data.gov.uk/id/local-authority/29UP,Tonbridge & Malling Borough Council,9/22/2021,0031018171/5,31018171, 15.90,KelticLimited,01000400,,Uniforms,Parking Off-Street,E10HA000042002,310042719
http://statistics.data.gov.uk/id/local-authority/29UP,Tonbridge & Malling Borough Council,9/22/2021,0031018171/6,31018171, 23.70,KelticLimited,01000400,,Uniforms,Parking Off-Street,E10HA000042002,310042719
http://statistics.data.gov.uk/id/local-authority/29UP,Tonbridge & Malling Borough Council,9/22/2021,0031018171/7,31018171, 35.55,KelticLimited,01000400,,Uniforms,Parking On-Street,E10HD000042002,310042719
http://statistics.data.gov.uk/id/local-authority/29UP,Tonbridge & Malling Borough Council,9/22/2021,0031018171/8,31018171, 23.85,KelticLimited,01000400,,Uniforms,Parking On-Street,E10HD000042002,310042719
http://statistics.data.gov.uk/id/local-authority/29UP,Tonbridge & Malling Borough Council,9/22/2021,0031018171/9,31018171, 15.16,KelticLimited,01000400,,Uniforms,Parking On-Street,E10HD000042002,310042719
http://statistics.data.gov.uk/id/local-authority/29UP,Tonbridge & Malling Borough Council,9/22/2021,0031018172/3,31018172, 114.30,Arnold & Court Ltd,01411300,,Maintenance of Grounds,Haysden Country Park,B22LCCARP20402,
http://statistics.data.gov.uk/id/local-authority/29UP,Tonbridge & Malling Borough Council,9/22/2021,0031018172/4,31018172, 57.14,Arnold & Court Ltd,01411300,,Premises Repairs & Maintenance,Parking Off-Street,E10HAE01320601,
http://statistics.data.gov.uk/id/local-authority/29UP,Tonbridge & Malling Borough Council,9/22/2021,0031018172/5,31018172, 288.56,Arnold & Court Ltd,01411300,,Purchases,Parking On-Street,E10HD000040101,
http://statistics.data.gov.uk/id/local-authority/29UP,Tonbridge & Malling Borough Council,9/22/2021,0031018173/3,31018173, 171.44,Arnold & Court Ltd,01411300,,Premises Repairs & Maintenance,Parking Off-Street,E10HA000020601,
http://statistics.data.gov.uk/id/local-authority/29UP,Tonbridge & Malling Borough Council,9/22/2021,0031018173/4,31018173, 418.56,Arnold & Court Ltd,01411300,,Premises Repairs & Maintenance,Parking Off-Street,E10HAE02320601,
http://statistics.data.gov.uk/id/local-authority/29UP,Tonbridge & Malling Borough Council,9/22/2021,0031018174/3,31018174, 136.28,Arnold & Court Ltd,01411300,,Maintenance of Grounds,Haysden Country Park,B22LCCARP20402,
http://statistics.data.gov.uk/id/local-authority/29UP,Tonbridge & Malling Borough Council,9/22/2021,0031018174/4,31018174, 186.28,Arnold & Court Ltd,01411300,,Maintenance of Grounds,Countryside/Woodland Mgt,B22LGCARP20402,
http://statistics.data.gov.uk/id/local-authority/29UP,Tonbridge & Malling Borough Council,9/22/2021,0031018174/5,31018174, 134.30,Arnold & Court Ltd,01411300,,Premises Repairs & Maintenance,Parking Off-Street,E10HAE02320601,
http://statistics.data.gov.uk/id/local-authority/29UP,Tonbridge & Malling Borough Council,9/22/2021,0031018174/6,31018174, 70.14,Arnold & Court Ltd,01411300,,Purchases,Parking On-Street,E10HD000040101,
http://statistics.data.gov.uk/id/local-authority/29UP,Tonbridge & Malling Borough Council,9/22/2021,0031018175/3,31018175, 68.45,Door to Door Mobile Tyres,01591400,234388105,Winter Maintenance,Parking Off-Street,E10HA000020701,
http://statistics.data.gov.uk/id/local-authority/29UP,Tonbridge & Malling Borough Council,9/22/2021,0031018176/1,31018176, 16.67,REDACTED PERSONAL DATA,01576900,,Purchases,Parking Off-Street,E10HA000040101,
http://statistics.data.gov.uk/id/local-authority/29UP,Tonbridge & Malling Borough Council,9/22/2021,0031018176/2,31018176, 4.13,REDACTED PERSONAL DATA,01576900,,Purchases,Parking Off-Street,E10HA000040101,
http://statistics.data.gov.uk/id/local-authority/29UP,Tonbridge & Malling Borough Council,9/22/2021,0031018176/3,31018176, 4.00,REDACTED PERSONAL DATA,01576900,,Purchases,Parking Off-Street,E10HA000040101,
http://statistics.data.gov.uk/id/local-authority/29UP,Tonbridge & Malling Borough Council,9/22/2021,0031018177/1,31018177, 41.65,REDACTED PERSONAL DATA,01344100,,Purchases,Security Services Management,E09GA000040101,
http://statistics.data.gov.uk/id/local-authority/29UP,Tonbridge & Malling Borough Council,9/22/2021,0031018179/1,31018179, 20.67,REDACTED PERSONAL DATA,01209500,,Purchases,Parking Off-Street,E10HA000040101,
http://statistics.data.gov.uk/id/local-authority/29UP,Tonbridge & Malling Borough Council,9/22/2021,0032009255/1,32009255, 660.00,G2 Recruitment Solutions,01786000,,Temporary Staff,Planning Sals&Overheads,D01AJDJ0111300,320003308
http://statistics.data.gov.uk/id/local-authority/29UP,Tonbridge & Malling Borough Council,9/22/2021,0032009256/1,32009256, 218.61,KM Media Group Ltd,00053900,,Advertising General,Development Management,A01ABZ99944216,320003331
http://statistics.data.gov.uk/id/local-authority/29UP,Tonbridge & Malling Borough Council,9/22/2021,0041033483/1,41033483, 1075.50,L A Directories Ltd,01689700,,Reference Books & Publications,Housing Benefits,C05CL000043010,410032036
http://statistics.data.gov.uk/id/local-authority/29UP,Tonbridge & Malling Borough Council,9/22/2021,0041033484/1,41033484, 980.00,K P R Midlink Ltd,01027200,,Purchases,Finance Sals&Overheads,D01AF000040101,410032031
http://statistics.data.gov.uk/id/local-authority/29UP,Tonbridge & Malling Borough Council,9/22/2021,0041033486/1,41033486, 68.00,National Westminster Bank Plc,00069400,,Direct Debit / Bank Charges,Local Revenue & NNDR Collect,D41QA000044079,
http://statistics.data.gov.uk/id/local-authority/29UP,Tonbridge & Malling Borough Council,9/22/2021,0041033487/1,41033487, 200.74,National Westminster Bank Plc,00069400,,Direct Debit / Bank Charges,Local Revenue & NNDR Collect,D41QA000044079,
http://statistics.data.gov.uk/id/local-authority/29UP,Tonbridge & Malling Borough Council,9/22/2021,0051008594/1,51008594, 240.00,St John Ambulance Supplies,01228000,,Ext Fees/Health & Safety,Training,D10DCDA0513566,510010515
http://statistics.data.gov.uk/id/local-authority/29UP,Tonbridge & Malling Borough Council,9/22/2021,0051008595/3,51008595, 160.00,The Institute of Licensing (Events),01463600,,Ext Fees/Prof & Tech,Training,D10DCDR0413561,
http://statistics.data.gov.uk/id/local-authority/29UP,Tonbridge & Malling Borough Council,9/22/2021,0051008596/1,51008596, 165.00,The Institute of Licensing (Events),01463600,,Ext Fees/Prof & Tech,Training,D10DCDR0413561,
http://statistics.data.gov.uk/id/local-authority/29UP,Tonbridge & Malling Borough Council,9/22/2021,0051008598/1,51008598, 1120.00,The Play Inspection Company,01242100,,Ext Fees/Prof & Tech,Training,D10DCDG0113561,510010503
http://statistics.data.gov.uk/id/local-authority/29UP,Tonbridge & Malling Borough Council,9/23/2021,0041033493/1,41033493, 15.00,WorldPay ,01568000,,Credit Card Commission,Banking Arrangements,D43QK000044082,
http://statistics.data.gov.uk/id/local-authority/29UP,Tonbridge & Malling Borough Council,9/23/2021,0041033494/1,41033494, 183.92,WorldPay ,01568000,,Credit Card Commission,Banking Arrangements,D43QK000044082,
http://statistics.data.gov.uk/id/local-authority/29UP,Tonbridge & Malling Borough Council,9/23/2021,0041033495/1,41033495, 826.88,WorldPay ,01568000,,Credit Card Commission,Banking Arrangements,D43QK000044082,
http://statistics.data.gov.uk/id/local-authority/29UP,Tonbridge & Malling Borough Council,9/24/2021,0041033498/1,41033498, 20.03,WorldPay Ltd,01402000,991280207,Credit Card Commission,Banking Arrangements,D43QK000044082,
http://statistics.data.gov.uk/id/local-authority/29UP,Tonbridge & Malling Borough Council,9/29/2021,0011043245/1,11043245, 2778.40,Reach Publishing Services Ltd,01806900,,Re-opening High Streets,Eco Dev & Reg Gen Bus Support,D52TDCV1948076,110069176
http://statistics.data.gov.uk/id/local-authority/29UP,Tonbridge & Malling Borough Council,9/29/2021,0011043246/1,11043246, 1970.00,Matt Stephens,01802100,,Meeting Expenses,Committee Administration,D29LL000048020,
http://statistics.data.gov.uk/id/local-authority/29UP,Tonbridge & Malling Borough Council,9/29/2021,0011043249/1,11043249, 1650.00,KH Recruitment Ltd,01738900,,Temporary Staff,Admin & Prop Sals&Overheads,D01AADA1211300,
http://statistics.data.gov.uk/id/local-authority/29UP,Tonbridge & Malling Borough Council,9/29/2021,0011043250/1,11043250, 10412.00,Bevan Brittan LLP,01096600,,Legal Fees,Legal Sals&Overheads,D01ARDR0044002,
http://statistics.data.gov.uk/id/local-authority/29UP,Tonbridge & Malling Borough Council,9/29/2021,0011043251/1,11043251, 840.00,Venn Group Ltd,00914300,,Temporary Staff,Legal Sals&Overheads,D01ARDR0011300,
http://statistics.data.gov.uk/id/local-authority/29UP,Tonbridge & Malling Borough Council,9/29/2021,0011043252/1,11043252, 505.43,Yellow Publications ,01486000,,Purchases,TIC Stock Account,K18AX000001002,
http://statistics.data.gov.uk/id/local-authority/29UP,Tonbridge & Malling Borough Council,9/29/2021,0011043253/1,11043253, 161.99,Prosec General Security Ltd,00810600,,Office Security,Ton Castle Council Chamber,D21FC000044047,
http://statistics.data.gov.uk/id/local-authority/29UP,Tonbridge & Malling Borough Council,9/29/2021,0011043253/2,11043253, 818.08,Prosec General Security Ltd,00810600,,Office Security,Cleaning & Security,D21FD000044047,
http://statistics.data.gov.uk/id/local-authority/29UP,Tonbridge & Malling Borough Council,9/29/2021,0011043253/3,11043253, 2814.75,Prosec General Security Ltd,00810600,,Office Security,Tonbridge Gateway,D23TG000044047,
http://statistics.data.gov.uk/id/local-authority/29UP,Tonbridge & Malling Borough Council,9/29/2021,0011043256/1,11043256, 518.90,The Bradley Group Ltd,01671800,,BRREP Fire Safety Risk Assess,Larkfield Leisure Centre,M15HDP30001999,110069187
http://statistics.data.gov.uk/id/local-authority/29UP,Tonbridge & Malling Borough Council,9/29/2021,0011043257/1,11043257, 1191.78,KCS,00054200,,Estate Management Charge,Land Review,D40PS000020400,
http://statistics.data.gov.uk/id/local-authority/29UP,Tonbridge & Malling Borough Council,9/29/2021,0011043258/1,11043258, 183.50,KCS,00054200,,Estate Management Charge,Land Review,D40PS000020400,
http://statistics.data.gov.uk/id/local-authority/29UP,Tonbridge & Malling Borough Council,9/29/2021,0011043259/1,11043259, 560.15,KCS,00054200,,Estate Management Charge,Land Review,D40PS000020400,
http://statistics.data.gov.uk/id/local-authority/29UP,Tonbridge & Malling Borough Council,9/29/2021,0011043260/1,11043260, 405.14,Castle Water,01696500,,Estate Management Charge,Land Review,D40PS000020400,
http://statistics.data.gov.uk/id/local-authority/29UP,Tonbridge & Malling Borough Council,9/29/2021,0011043261/1,11043261, 201.81,KCS,00054200,,Estate Management Charge,Land Review,D40PS000020400,
http://statistics.data.gov.uk/id/local-authority/29UP,Tonbridge & Malling Borough Council,9/29/2021,0011043262/1,11043262, 1761.54,Royal Mail,00086200,,Purchases,Mailsort Stock Account,K37BR000001002,
http://statistics.data.gov.uk/id/local-authority/29UP,Tonbridge & Malling Borough Council,9/29/2021,0011043263/1,11043263, 1090.56,Royal Mail,00086200,,Postages - Business Reply,Electoral Registration,D31MF000045003,
http://statistics.data.gov.uk/id/local-authority/29UP,Tonbridge & Malling Borough Council,9/29/2021,0011043263/2,11043263, 55.11,Royal Mail,00086200,,Purchases,Business Reply Stock Account,K14AT000001002,
http://statistics.data.gov.uk/id/local-authority/29UP,Tonbridge & Malling Borough Council,9/29/2021,0011043265/1,11043265, 54.95,Scottish Water Business Stream Ltd,01641100,,Estate Management Charge,Land Review,D40PS000020400,
http://statistics.data.gov.uk/id/local-authority/29UP,Tonbridge & Malling Borough Council,9/29/2021,0012008070/1,12008070, 2590.00,Frontier Software Plc,00231900,,Consultancy Fees,Information Technology,D27KD000044011,410032004
http://statistics.data.gov.uk/id/local-authority/29UP,Tonbridge & Malling Borough Council,9/29/2021,0012008126/3,12008126, 694.92,SureCloud Limited,01155300,,Consultancy Fees,Information Technology,D27KD000044011,
http://statistics.data.gov.uk/id/local-authority/29UP,Tonbridge & Malling Borough Council,9/29/2021,0012008127/1,12008127, 575.07,NEC Software Solutions UK Ltd,01073900,202159745,Software Hire & Support,Information Technology,D27KD000044059,410032025
http://statistics.data.gov.uk/id/local-authority/29UP,Tonbridge & Malling Borough Council,9/29/2021,0012008127/2,12008127, 756.11,NEC Software Solutions UK Ltd,01073900,202159745,Software Hire & Support,Information Technology,D27KD000044059,410032025
http://statistics.data.gov.uk/id/local-authority/29UP,Tonbridge & Malling Borough Council,9/29/2021,0012008128/3,12008128, 159.90,British Telecommunications Plc,00012800,,Telephones - Rentals,General Admin Telephones,D24GT000045005,
http://statistics.data.gov.uk/id/local-authority/29UP,Tonbridge & Malling Borough Council,9/29/2021,0012008129/1,12008129, 94.50,Phoenix Software Ltd,00077400,755349015,Software Hire & Support,Information Technology,D27KD000044059,410032050
http://statistics.data.gov.uk/id/local-authority/29UP,Tonbridge & Malling Borough Council,9/29/2021,0012008129/2,12008129, 27.81,Phoenix Software Ltd,00077400,755349015,Software Hire & Support,Information Technology,D27KD000044059,410032050
http://statistics.data.gov.uk/id/local-authority/29UP,Tonbridge & Malling Borough Council,9/29/2021,0012008130/3,12008130, 29.43,KCS,00054200,,Leasing Charges,Multi Function Devices,D22GB000044038,
http://statistics.data.gov.uk/id/local-authority/29UP,Tonbridge & Malling Borough Council,9/29/2021,0012008131/1,12008131, 2913.47,Cisilion Ltd,00708800,,Maintenance - Ancillary Equip,Information Technology,D27KD000040137,410032023
http://statistics.data.gov.uk/id/local-authority/29UP,Tonbridge & Malling Borough Council,9/29/2021,0012008132/1,12008132, 66.10,CCS Media Ltd,00018000,,Purchases,Information Technology,D27KD000040101,410032044
http://statistics.data.gov.uk/id/local-authority/29UP,Tonbridge & Malling Borough Council,9/29/2021,0021037481/1,21037481, 345.00,David Hodgkinson Photographer,01068900,,Marketing,Events Development,B41TJ000044215,210056493
http://statistics.data.gov.uk/id/local-authority/29UP,Tonbridge & Malling Borough Council,9/29/2021,0021037482/1,21037482, 805.17,Landscape Services Ltd,00057600,,Grounds Maintenance Contract,Cemetery,B26MP000050103,
http://statistics.data.gov.uk/id/local-authority/29UP,Tonbridge & Malling Borough Council,9/29/2021,0021037483/3,21037483, 66.58,KCC - L.A.S.E.R Commercial Services ,00184300,,Electricity,Leybourne Lakes Country Park,B22LK000021002,
http://statistics.data.gov.uk/id/local-authority/29UP,Tonbridge & Malling Borough Council,9/29/2021,0021037484/3,21037484, 121.63,KCC - L.A.S.E.R Commercial Services ,00184300,,Electricity,Tonbridge Castle Grounds,B22LB000021002,
http://statistics.data.gov.uk/id/local-authority/29UP,Tonbridge & Malling Borough Council,9/29/2021,0021037485/1,21037485, 86.35,REDACTED PERSONAL DATA,01714400,,"Petrol, Diesel & Oil",Patrolling,B22LF000030106,
http://statistics.data.gov.uk/id/local-authority/29UP,Tonbridge & Malling Borough Council,9/29/2021,0021037486/1,21037486, 2650.00,Blackbox AV Ltd,01791400,,Maintenance of Grounds,Sports Grounds,B13ET000020402,210056170
http://statistics.data.gov.uk/id/local-authority/29UP,Tonbridge & Malling Borough Council,9/29/2021,0021037486/2,21037486, 135.00,Blackbox AV Ltd,01791400,,Maintenance of Grounds,Sports Grounds,B13ET000020402,210056170
http://statistics.data.gov.uk/id/local-authority/29UP,Tonbridge & Malling Borough Council,9/29/2021,0021037486/3,21037486, 195.00,Blackbox AV Ltd,01791400,,Maintenance of Grounds,Sports Grounds,B13ET000020402,210056170
http://statistics.data.gov.uk/id/local-authority/29UP,Tonbridge & Malling Borough Council,9/29/2021,0021037486/4,21037486, 2185.00,Blackbox AV Ltd,01791400,,Maintenance of Grounds,Sports Grounds,B13ET000020402,210056170
http://statistics.data.gov.uk/id/local-authority/29UP,Tonbridge & Malling Borough Council,9/29/2021,0021037487/1,21037487, 1865.00,Blackbox AV Ltd,01791400,,Maintenance of Grounds,Sports Grounds,B13ET000020402,210056225
http://statistics.data.gov.uk/id/local-authority/29UP,Tonbridge & Malling Borough Council,9/29/2021,0021037488/1,21037488, 90.00,Broxap Ltd,00312300,,Maintenance of Grounds,Sports Grounds,B13ET000020402,210056381
http://statistics.data.gov.uk/id/local-authority/29UP,Tonbridge & Malling Borough Council,9/29/2021,0021037488/2,21037488, 686.00,Broxap Ltd,00312300,,Maintenance of Grounds,Sports Grounds,B13ET000020402,210056381
http://statistics.data.gov.uk/id/local-authority/29UP,Tonbridge & Malling Borough Council,9/29/2021,0021037488/3,21037488, 6.70,Broxap Ltd,00312300,,Maintenance of Grounds,Sports Grounds,B13ET000020402,210056381
http://statistics.data.gov.uk/id/local-authority/29UP,Tonbridge & Malling Borough Council,9/29/2021,0021037489/1,21037489, 325.00,Flash Mobile Welding Services Ltd,01189200,,Purchases,Leybourne Lakes Country Park,B22LK000040101,210056477
http://statistics.data.gov.uk/id/local-authority/29UP,Tonbridge & Malling Borough Council,9/29/2021,0021037490/1,21037490, 46.00,South East Water Ltd,01330300,,Maintenance of Grounds,Leybourne Lakes Country Park,B22LK000020402,210056435
http://statistics.data.gov.uk/id/local-authority/29UP,Tonbridge & Malling Borough Council,9/29/2021,0021037491/1,21037491, 160.00,Weddle and Co,00714900,,Maintenance of Grounds,Open Spaces & Amenity Areas,B22LE000020402,210056485
http://statistics.data.gov.uk/id/local-authority/29UP,Tonbridge & Malling Borough Council,9/29/2021,0022025800/3,22025800, 763.31,G2 Recruitment Solutions,01786000,,Temporary Staff,Env Hlth & Hsg Sals&Overheads,D01AVDV0711300,
http://statistics.data.gov.uk/id/local-authority/29UP,Tonbridge & Malling Borough Council,9/29/2021,0022025801/3,22025801, 495.00,KH Recruitment Ltd,01738900,,Temporary Staff,St Scene & Leis Sals&Overheads,D01AGDG3011300,
http://statistics.data.gov.uk/id/local-authority/29UP,Tonbridge & Malling Borough Council,9/29/2021,0022025802/3,22025802, 422.00,Countrystyle Group,00835900,781981681,Plastic Recycling,Dry Recycling,H34SR000054019,
http://statistics.data.gov.uk/id/local-authority/29UP,Tonbridge & Malling Borough Council,9/29/2021,0022025803/1,22025803, 1239.50,Vivid Resourcing,01773700,,Temporary Staff,Env Hlth & Hsg Sals&Overheads,D01AVDV0711300,
http://statistics.data.gov.uk/id/local-authority/29UP,Tonbridge & Malling Borough Council,9/29/2021,0022025804/1,22025804, 360.00,Peabody South East LTD,01680900,,Other Expenses,Disabled Facilities Grant Mand,P03AC000009908,
http://statistics.data.gov.uk/id/local-authority/29UP,Tonbridge & Malling Borough Council,9/29/2021,0022025805/1,22025805, 3937.00,Under My Roof Ltd,01806700,,Temporary Accommodation,Homelessness,C01AA000044051,
http://statistics.data.gov.uk/id/local-authority/29UP,Tonbridge & Malling Borough Council,9/29/2021,0022025806/1,22025806, 3270.00,Higher Elevation LTD,01298700,,Other Expenses,Disabled Facilities Grant Mand,P03AC000009908,
http://statistics.data.gov.uk/id/local-authority/29UP,Tonbridge & Malling Borough Council,9/29/2021,0022025807/1,22025807, 18888.25,Ascendit Lifts Ltd,00446600,,Other Expenses,Disabled Facilities Grant Mand,P03AC000009908,
http://statistics.data.gov.uk/id/local-authority/29UP,Tonbridge & Malling Borough Council,9/29/2021,0022025808/1,22025808, 2525.03,Peabody South East LTD,01680900,,Other Expenses,Disabled Facilities Grant Mand,P03AC000009908,
http://statistics.data.gov.uk/id/local-authority/29UP,Tonbridge & Malling Borough Council,9/29/2021,0031018180/1,31018180, 518.00,Parking and Secure Documents,01814500,,Stationery,Parking Off-Street,E10HA000043003,310042717
http://statistics.data.gov.uk/id/local-authority/29UP,Tonbridge & Malling Borough Council,9/29/2021,0031018180/2,31018180, 777.00,Parking and Secure Documents,01814500,,Stationery,Parking On-Street,E10HD000043003,310042717
http://statistics.data.gov.uk/id/local-authority/29UP,Tonbridge & Malling Borough Council,9/29/2021,0031018182/3,31018182, 180.80,Arnold & Court Ltd,01411300,,Purchases,Parking On-Street,E10HD000040101,
http://statistics.data.gov.uk/id/local-authority/29UP,Tonbridge & Malling Borough Council,9/29/2021,0031018182/4,31018182, 285.70,Arnold & Court Ltd,01411300,,Purchases,Parking On-Street,E10HD000040101,
http://statistics.data.gov.uk/id/local-authority/29UP,Tonbridge & Malling Borough Council,9/29/2021,0031018183/3,31018183, 463.00,Arnold & Court Ltd,01411300,,Repair & Mtce of Fixed Plant,Boro Highways & Emergency Oper,E01AA000020501,
http://statistics.data.gov.uk/id/local-authority/29UP,Tonbridge & Malling Borough Council,9/29/2021,0031018185/1,31018185, 212.92,REDACTED PERSONAL DATA,01344100,,Purchases,Parking Off-Street,E10HA000040101,
http://statistics.data.gov.uk/id/local-authority/29UP,Tonbridge & Malling Borough Council,9/29/2021,0031018185/2,31018185, 40.17,REDACTED PERSONAL DATA,01344100,,Purchases,Boro Drainage & Land Drainage,E20MA000040101,
http://statistics.data.gov.uk/id/local-authority/29UP,Tonbridge & Malling Borough Council,9/29/2021,0031018186/1,31018186, 736.50,CDER Group,01773300,,Adjudication & Enforcement Ser,Parking Off-Street,E10HA000044230,
http://statistics.data.gov.uk/id/local-authority/29UP,Tonbridge & Malling Borough Council,9/29/2021,0031018187/1,31018187, 10.15,B&Q/Screwfix Direct,00141300,,Purchases,Boro Highways & Emergency Oper,E01AA000040101,
http://statistics.data.gov.uk/id/local-authority/29UP,Tonbridge & Malling Borough Council,9/29/2021,0031018188/1,31018188, 114.51,KM Media Group Ltd,00053900,,Advertising General,Parking Off-Street,E10HA000044216,310042721
http://statistics.data.gov.uk/id/local-authority/29UP,Tonbridge & Malling Borough Council,9/29/2021,0032009257/1,32009257, 660.00,G2 Recruitment Solutions,01786000,,Temporary Staff,Planning Sals&Overheads,D01AJDJ0111300,320003308
http://statistics.data.gov.uk/id/local-authority/29UP,Tonbridge & Malling Borough Council,9/29/2021,0032009258/3,32009258, 1480.00,The Oyster Partnership,01196400,,Temporary Staff,Planning Sals&Overheads,D01AJDJ0111300,
http://statistics.data.gov.uk/id/local-authority/29UP,Tonbridge & Malling Borough Council,9/29/2021,0041033499/10,41033499, 153.36,Contract Security Services Ltd,00964700,,Cash Collection,Parking Off-Street,E10HAE00144007,
http://statistics.data.gov.uk/id/local-authority/29UP,Tonbridge & Malling Borough Council,9/29/2021,0041033499/11,41033499, 153.36,Contract Security Services Ltd,00964700,,Cash Collection,Parking Off-Street,E10HAE00144007,
http://statistics.data.gov.uk/id/local-authority/29UP,Tonbridge & Malling Borough Council,9/29/2021,0041033499/12,41033499, 153.36,Contract Security Services Ltd,00964700,,Cash Collection,Parking Off-Street,E10HAE00144007,
http://statistics.data.gov.uk/id/local-authority/29UP,Tonbridge & Malling Borough Council,9/29/2021,0041033499/13,41033499, 153.36,Contract Security Services Ltd,00964700,,Cash Collection,Parking Off-Street,E10HAE00144007,
http://statistics.data.gov.uk/id/local-authority/29UP,Tonbridge & Malling Borough Council,9/29/2021,0041033499/14,41033499, 153.36,Contract Security Services Ltd,00964700,,Cash Collection,Parking Off-Street,E10HAE00144007,
http://statistics.data.gov.uk/id/local-authority/29UP,Tonbridge & Malling Borough Council,9/29/2021,0041033499/15,41033499, 153.36,Contract Security Services Ltd,00964700,,Cash Collection,Parking Off-Street,E10HAE00144007,
http://statistics.data.gov.uk/id/local-authority/29UP,Tonbridge & Malling Borough Council,9/29/2021,0041033499/16,41033499, 102.24,Contract Security Services Ltd,00964700,,Cash Collection,Parking Off-Street,E10HAE00144007,
http://statistics.data.gov.uk/id/local-authority/29UP,Tonbridge & Malling Borough Council,9/29/2021,0041033499/17,41033499, 25.56,Contract Security Services Ltd,00964700,,Cash Collection,Parking Off-Street,E10HAE00344007,
http://statistics.data.gov.uk/id/local-authority/29UP,Tonbridge & Malling Borough Council,9/29/2021,0041033499/18,41033499, 153.36,Contract Security Services Ltd,00964700,,Cash Collection,Parking Off-Street,E10HAE00444007,
http://statistics.data.gov.uk/id/local-authority/29UP,Tonbridge & Malling Borough Council,9/29/2021,0041033499/19,41033499, 76.68,Contract Security Services Ltd,00964700,,Cash Collection,Parking Off-Street,E10HAE00444007,
http://statistics.data.gov.uk/id/local-authority/29UP,Tonbridge & Malling Borough Council,9/29/2021,0041033499/20,41033499, 153.36,Contract Security Services Ltd,00964700,,Cash Collection,Parking Off-Street,E10HAE00444007,
http://statistics.data.gov.uk/id/local-authority/29UP,Tonbridge & Malling Borough Council,9/29/2021,0041033499/21,41033499, 153.36,Contract Security Services Ltd,00964700,,Cash Collection,Parking Off-Street,E10HAE00444007,
http://statistics.data.gov.uk/id/local-authority/29UP,Tonbridge & Malling Borough Council,9/29/2021,0041033499/22,41033499, 102.24,Contract Security Services Ltd,00964700,,Cash Collection,Parking Off-Street,E10HAE00544007,
http://statistics.data.gov.uk/id/local-authority/29UP,Tonbridge & Malling Borough Council,9/29/2021,0041033499/23,41033499, 102.24,Contract Security Services Ltd,00964700,,Cash Collection,Parking Off-Street,E10HAE00544007,
http://statistics.data.gov.uk/id/local-authority/29UP,Tonbridge & Malling Borough Council,9/29/2021,0041033499/24,41033499, 12.78,Contract Security Services Ltd,00964700,,Cash Collection,Parking Off-Street,E10HAE00644007,
http://statistics.data.gov.uk/id/local-authority/29UP,Tonbridge & Malling Borough Council,9/29/2021,0041033499/25,41033499, 12.78,Contract Security Services Ltd,00964700,,Cash Collection,Parking Off-Street,E10HAE00644007,
http://statistics.data.gov.uk/id/local-authority/29UP,Tonbridge & Malling Borough Council,9/29/2021,0041033499/26,41033499, 76.68,Contract Security Services Ltd,00964700,,Cash Collection,Parking Off-Street,E10HAE01144007,
http://statistics.data.gov.uk/id/local-authority/29UP,Tonbridge & Malling Borough Council,9/29/2021,0041033499/27,41033499, 25.56,Contract Security Services Ltd,00964700,,Cash Collection,Parking Off-Street,E10HAE01244007,
http://statistics.data.gov.uk/id/local-authority/29UP,Tonbridge & Malling Borough Council,9/29/2021,0041033499/28,41033499, 153.36,Contract Security Services Ltd,00964700,,Cash Collection,Parking Off-Street,E10HAE01344007,
http://statistics.data.gov.uk/id/local-authority/29UP,Tonbridge & Malling Borough Council,9/29/2021,0041033499/29,41033499, 153.36,Contract Security Services Ltd,00964700,,Cash Collection,Parking Off-Street,E10HAE01344007,
http://statistics.data.gov.uk/id/local-authority/29UP,Tonbridge & Malling Borough Council,9/29/2021,0041033499/3,41033499, 25.56,Contract Security Services Ltd,00964700,,Cash Collection,Haysden Country Park,B22LC000044007,
http://statistics.data.gov.uk/id/local-authority/29UP,Tonbridge & Malling Borough Council,9/29/2021,0041033499/30,41033499, 25.56,Contract Security Services Ltd,00964700,,Cash Collection,Parking Off-Street,E10HAE01444007,
http://statistics.data.gov.uk/id/local-authority/29UP,Tonbridge & Malling Borough Council,9/29/2021,0041033499/31,41033499, 76.68,Contract Security Services Ltd,00964700,,Cash Collection,Parking Off-Street,E10HAE01744007,
http://statistics.data.gov.uk/id/local-authority/29UP,Tonbridge & Malling Borough Council,9/29/2021,0041033499/32,41033499, 76.68,Contract Security Services Ltd,00964700,,Cash Collection,Parking Off-Street,E10HAE01744007,
http://statistics.data.gov.uk/id/local-authority/29UP,Tonbridge & Malling Borough Council,9/29/2021,0041033499/33,41033499, 25.56,Contract Security Services Ltd,00964700,,Cash Collection,Parking Off-Street,E10HAE02044007,
http://statistics.data.gov.uk/id/local-authority/29UP,Tonbridge & Malling Borough Council,9/29/2021,0041033499/34,41033499, 76.68,Contract Security Services Ltd,00964700,,Cash Collection,Parking Off-Street,E10HAE02244007,
http://statistics.data.gov.uk/id/local-authority/29UP,Tonbridge & Malling Borough Council,9/29/2021,0041033499/35,41033499, 153.36,Contract Security Services Ltd,00964700,,Cash Collection,Parking Off-Street,E10HAE02344007,
http://statistics.data.gov.uk/id/local-authority/29UP,Tonbridge & Malling Borough Council,9/29/2021,0041033499/36,41033499, 153.36,Contract Security Services Ltd,00964700,,Cash Collection,Parking Off-Street,E10HAE02344007,
http://statistics.data.gov.uk/id/local-authority/29UP,Tonbridge & Malling Borough Council,9/29/2021,0041033499/37,41033499, 76.68,Contract Security Services Ltd,00964700,,Cash Collection,Parking Off-Street,E10HAE04544007,
http://statistics.data.gov.uk/id/local-authority/29UP,Tonbridge & Malling Borough Council,9/29/2021,0041033499/38,41033499, 51.12,Contract Security Services Ltd,00964700,,Cash Collection,Parking Off-Street,E10HAE04544007,
http://statistics.data.gov.uk/id/local-authority/29UP,Tonbridge & Malling Borough Council,9/29/2021,0041033499/39,41033499, 6.39,Contract Security Services Ltd,00964700,,Cash Collection,Parking On-Street,E10HD000044007,
http://statistics.data.gov.uk/id/local-authority/29UP,Tonbridge & Malling Borough Council,9/29/2021,0041033499/4,41033499, 51.12,Contract Security Services Ltd,00964700,,Cash Collection,Haysden Country Park,B22LC000044007,
http://statistics.data.gov.uk/id/local-authority/29UP,Tonbridge & Malling Borough Council,9/29/2021,0041033499/40,41033499, 6.39,Contract Security Services Ltd,00964700,,Cash Collection,Parking On-Street,E10HD000044007,
http://statistics.data.gov.uk/id/local-authority/29UP,Tonbridge & Malling Borough Council,9/29/2021,0041033499/41,41033499, 6.39,Contract Security Services Ltd,00964700,,Cash Collection,Parking On-Street,E10HD000044007,
http://statistics.data.gov.uk/id/local-authority/29UP,Tonbridge & Malling Borough Council,9/29/2021,0041033499/42,41033499, 6.39,Contract Security Services Ltd,00964700,,Cash Collection,Parking On-Street,E10HD000044007,
http://statistics.data.gov.uk/id/local-authority/29UP,Tonbridge & Malling Borough Council,9/29/2021,0041033499/43,41033499, 25.56,Contract Security Services Ltd,00964700,,Cash Collection,Parking On-Street,E10HD000044007,
http://statistics.data.gov.uk/id/local-authority/29UP,Tonbridge & Malling Borough Council,9/29/2021,0041033499/44,41033499, 25.56,Contract Security Services Ltd,00964700,,Cash Collection,Parking On-Street,E10HD000044007,
http://statistics.data.gov.uk/id/local-authority/29UP,Tonbridge & Malling Borough Council,9/29/2021,0041033499/45,41033499, 25.56,Contract Security Services Ltd,00964700,,Cash Collection,Parking On-Street,E10HD000044007,
http://statistics.data.gov.uk/id/local-authority/29UP,Tonbridge & Malling Borough Council,9/29/2021,0041033499/46,41033499, 25.56,Contract Security Services Ltd,00964700,,Cash Collection,Parking On-Street,E10HD000044007,
http://statistics.data.gov.uk/id/local-authority/29UP,Tonbridge & Malling Borough Council,9/29/2021,0041033499/5,41033499, 51.12,Contract Security Services Ltd,00964700,,Cash Collection,Haysden Country Park,B22LC000044007,
http://statistics.data.gov.uk/id/local-authority/29UP,Tonbridge & Malling Borough Council,9/29/2021,0041033499/6,41033499, 51.12,Contract Security Services Ltd,00964700,,Cash Collection,Leybourne Lakes Country Park,B22LK000044007,
http://statistics.data.gov.uk/id/local-authority/29UP,Tonbridge & Malling Borough Council,9/29/2021,0041033499/7,41033499, 51.12,Contract Security Services Ltd,00964700,,Cash Collection,Leybourne Lakes Country Park,B22LK000044007,
http://statistics.data.gov.uk/id/local-authority/29UP,Tonbridge & Malling Borough Council,9/29/2021,0041033499/8,41033499, 153.36,Contract Security Services Ltd,00964700,,Cash Collection,Parking Off-Street,E10HAE00144007,
http://statistics.data.gov.uk/id/local-authority/29UP,Tonbridge & Malling Borough Council,9/29/2021,0041033499/9,41033499, 153.36,Contract Security Services Ltd,00964700,,Cash Collection,Parking Off-Street,E10HAE00144007,
http://statistics.data.gov.uk/id/local-authority/29UP,Tonbridge & Malling Borough Council,9/29/2021,0041033500/10,41033500, 153.36,Contract Security Services Ltd,00964700,,Cash Collection,Parking Off-Street,E10HAE00144007,
http://statistics.data.gov.uk/id/local-authority/29UP,Tonbridge & Malling Borough Council,9/29/2021,0041033500/11,41033500, 153.36,Contract Security Services Ltd,00964700,,Cash Collection,Parking Off-Street,E10HAE00144007,
http://statistics.data.gov.uk/id/local-authority/29UP,Tonbridge & Malling Borough Council,9/29/2021,0041033500/12,41033500, 153.36,Contract Security Services Ltd,00964700,,Cash Collection,Parking Off-Street,E10HAE00144007,
http://statistics.data.gov.uk/id/local-authority/29UP,Tonbridge & Malling Borough Council,9/29/2021,0041033500/13,41033500, 153.36,Contract Security Services Ltd,00964700,,Cash Collection,Parking Off-Street,E10HAE00144007,
http://statistics.data.gov.uk/id/local-authority/29UP,Tonbridge & Malling Borough Council,9/29/2021,0041033500/14,41033500, 153.36,Contract Security Services Ltd,00964700,,Cash Collection,Parking Off-Street,E10HAE00144007,
http://statistics.data.gov.uk/id/local-authority/29UP,Tonbridge & Malling Borough Council,9/29/2021,0041033500/15,41033500, 153.36,Contract Security Services Ltd,00964700,,Cash Collection,Parking Off-Street,E10HAE00144007,
http://statistics.data.gov.uk/id/local-authority/29UP,Tonbridge & Malling Borough Council,9/29/2021,0041033500/16,41033500, 102.24,Contract Security Services Ltd,00964700,,Cash Collection,Parking Off-Street,E10HAE00144007,
http://statistics.data.gov.uk/id/local-authority/29UP,Tonbridge & Malling Borough Council,9/29/2021,0041033500/17,41033500, 25.56,Contract Security Services Ltd,00964700,,Cash Collection,Parking Off-Street,E10HAE00344007,
http://statistics.data.gov.uk/id/local-authority/29UP,Tonbridge & Malling Borough Council,9/29/2021,0041033500/18,41033500, 153.36,Contract Security Services Ltd,00964700,,Cash Collection,Parking Off-Street,E10HAE00444007,
http://statistics.data.gov.uk/id/local-authority/29UP,Tonbridge & Malling Borough Council,9/29/2021,0041033500/19,41033500, 76.68,Contract Security Services Ltd,00964700,,Cash Collection,Parking Off-Street,E10HAE00444007,
http://statistics.data.gov.uk/id/local-authority/29UP,Tonbridge & Malling Borough Council,9/29/2021,0041033500/20,41033500, 153.36,Contract Security Services Ltd,00964700,,Cash Collection,Parking Off-Street,E10HAE00444007,
http://statistics.data.gov.uk/id/local-authority/29UP,Tonbridge & Malling Borough Council,9/29/2021,0041033500/21,41033500, 153.36,Contract Security Services Ltd,00964700,,Cash Collection,Parking Off-Street,E10HAE00444007,
http://statistics.data.gov.uk/id/local-authority/29UP,Tonbridge & Malling Borough Council,9/29/2021,0041033500/22,41033500, 102.24,Contract Security Services Ltd,00964700,,Cash Collection,Parking Off-Street,E10HAE00544007,
http://statistics.data.gov.uk/id/local-authority/29UP,Tonbridge & Malling Borough Council,9/29/2021,0041033500/23,41033500, 102.24,Contract Security Services Ltd,00964700,,Cash Collection,Parking Off-Street,E10HAE00544007,
http://statistics.data.gov.uk/id/local-authority/29UP,Tonbridge & Malling Borough Council,9/29/2021,0041033500/24,41033500, 12.78,Contract Security Services Ltd,00964700,,Cash Collection,Parking Off-Street,E10HAE00644007,
http://statistics.data.gov.uk/id/local-authority/29UP,Tonbridge & Malling Borough Council,9/29/2021,0041033500/25,41033500, 12.78,Contract Security Services Ltd,00964700,,Cash Collection,Parking Off-Street,E10HAE00644007,
http://statistics.data.gov.uk/id/local-authority/29UP,Tonbridge & Malling Borough Council,9/29/2021,0041033500/26,41033500, 76.68,Contract Security Services Ltd,00964700,,Cash Collection,Parking Off-Street,E10HAE01144007,
http://statistics.data.gov.uk/id/local-authority/29UP,Tonbridge & Malling Borough Council,9/29/2021,0041033500/27,41033500, 25.56,Contract Security Services Ltd,00964700,,Cash Collection,Parking Off-Street,E10HAE01244007,
http://statistics.data.gov.uk/id/local-authority/29UP,Tonbridge & Malling Borough Council,9/29/2021,0041033500/28,41033500, 153.36,Contract Security Services Ltd,00964700,,Cash Collection,Parking Off-Street,E10HAE01344007,
http://statistics.data.gov.uk/id/local-authority/29UP,Tonbridge & Malling Borough Council,9/29/2021,0041033500/29,41033500, 153.36,Contract Security Services Ltd,00964700,,Cash Collection,Parking Off-Street,E10HAE01344007,
http://statistics.data.gov.uk/id/local-authority/29UP,Tonbridge & Malling Borough Council,9/29/2021,0041033500/3,41033500, 25.56,Contract Security Services Ltd,00964700,,Cash Collection,Haysden Country Park,B22LC000044007,
http://statistics.data.gov.uk/id/local-authority/29UP,Tonbridge & Malling Borough Council,9/29/2021,0041033500/30,41033500, 25.56,Contract Security Services Ltd,00964700,,Cash Collection,Parking Off-Street,E10HAE01444007,
http://statistics.data.gov.uk/id/local-authority/29UP,Tonbridge & Malling Borough Council,9/29/2021,0041033500/31,41033500, 76.68,Contract Security Services Ltd,00964700,,Cash Collection,Parking Off-Street,E10HAE01744007,
http://statistics.data.gov.uk/id/local-authority/29UP,Tonbridge & Malling Borough Council,9/29/2021,0041033500/32,41033500, 76.68,Contract Security Services Ltd,00964700,,Cash Collection,Parking Off-Street,E10HAE01744007,
http://statistics.data.gov.uk/id/local-authority/29UP,Tonbridge & Malling Borough Council,9/29/2021,0041033500/33,41033500, 25.56,Contract Security Services Ltd,00964700,,Cash Collection,Parking Off-Street,E10HAE02044007,
http://statistics.data.gov.uk/id/local-authority/29UP,Tonbridge & Malling Borough Council,9/29/2021,0041033500/34,41033500, 76.68,Contract Security Services Ltd,00964700,,Cash Collection,Parking Off-Street,E10HAE02244007,
http://statistics.data.gov.uk/id/local-authority/29UP,Tonbridge & Malling Borough Council,9/29/2021,0041033500/35,41033500, 153.36,Contract Security Services Ltd,00964700,,Cash Collection,Parking Off-Street,E10HAE02344007,
http://statistics.data.gov.uk/id/local-authority/29UP,Tonbridge & Malling Borough Council,9/29/2021,0041033500/36,41033500, 153.36,Contract Security Services Ltd,00964700,,Cash Collection,Parking Off-Street,E10HAE02344007,
http://statistics.data.gov.uk/id/local-authority/29UP,Tonbridge & Malling Borough Council,9/29/2021,0041033500/37,41033500, 12.78,Contract Security Services Ltd,00964700,,Cash Collection,Parking Off-Street,E10HAE04244007,
http://statistics.data.gov.uk/id/local-authority/29UP,Tonbridge & Malling Borough Council,9/29/2021,0041033500/38,41033500, 76.68,Contract Security Services Ltd,00964700,,Cash Collection,Parking Off-Street,E10HAE04544007,
http://statistics.data.gov.uk/id/local-authority/29UP,Tonbridge & Malling Borough Council,9/29/2021,0041033500/39,41033500, 51.12,Contract Security Services Ltd,00964700,,Cash Collection,Parking Off-Street,E10HAE04544007,
http://statistics.data.gov.uk/id/local-authority/29UP,Tonbridge & Malling Borough Council,9/29/2021,0041033500/4,41033500, 51.12,Contract Security Services Ltd,00964700,,Cash Collection,Haysden Country Park,B22LC000044007,
http://statistics.data.gov.uk/id/local-authority/29UP,Tonbridge & Malling Borough Council,9/29/2021,0041033500/40,41033500, 6.39,Contract Security Services Ltd,00964700,,Cash Collection,Parking On-Street,E10HD000044007,
http://statistics.data.gov.uk/id/local-authority/29UP,Tonbridge & Malling Borough Council,9/29/2021,0041033500/41,41033500, 6.39,Contract Security Services Ltd,00964700,,Cash Collection,Parking On-Street,E10HD000044007,
http://statistics.data.gov.uk/id/local-authority/29UP,Tonbridge & Malling Borough Council,9/29/2021,0041033500/42,41033500, 6.39,Contract Security Services Ltd,00964700,,Cash Collection,Parking On-Street,E10HD000044007,
http://statistics.data.gov.uk/id/local-authority/29UP,Tonbridge & Malling Borough Council,9/29/2021,0041033500/43,41033500, 6.39,Contract Security Services Ltd,00964700,,Cash Collection,Parking On-Street,E10HD000044007,
http://statistics.data.gov.uk/id/local-authority/29UP,Tonbridge & Malling Borough Council,9/29/2021,0041033500/44,41033500, 25.56,Contract Security Services Ltd,00964700,,Cash Collection,Parking On-Street,E10HD000044007,
http://statistics.data.gov.uk/id/local-authority/29UP,Tonbridge & Malling Borough Council,9/29/2021,0041033500/45,41033500, 25.56,Contract Security Services Ltd,00964700,,Cash Collection,Parking On-Street,E10HD000044007,
http://statistics.data.gov.uk/id/local-authority/29UP,Tonbridge & Malling Borough Council,9/29/2021,0041033500/46,41033500, 25.56,Contract Security Services Ltd,00964700,,Cash Collection,Parking On-Street,E10HD000044007,
http://statistics.data.gov.uk/id/local-authority/29UP,Tonbridge & Malling Borough Council,9/29/2021,0041033500/47,41033500, 25.56,Contract Security Services Ltd,00964700,,Cash Collection,Parking On-Street,E10HD000044007,
http://statistics.data.gov.uk/id/local-authority/29UP,Tonbridge & Malling Borough Council,9/29/2021,0041033500/5,41033500, 51.12,Contract Security Services Ltd,00964700,,Cash Collection,Haysden Country Park,B22LC000044007,
http://statistics.data.gov.uk/id/local-authority/29UP,Tonbridge & Malling Borough Council,9/29/2021,0041033500/6,41033500, 51.12,Contract Security Services Ltd,00964700,,Cash Collection,Leybourne Lakes Country Park,B22LK000044007,
http://statistics.data.gov.uk/id/local-authority/29UP,Tonbridge & Malling Borough Council,9/29/2021,0041033500/7,41033500, 51.12,Contract Security Services Ltd,00964700,,Cash Collection,Leybourne Lakes Country Park,B22LK000044007,
http://statistics.data.gov.uk/id/local-authority/29UP,Tonbridge & Malling Borough Council,9/29/2021,0041033500/8,41033500, 153.36,Contract Security Services Ltd,00964700,,Cash Collection,Parking Off-Street,E10HAE00144007,
http://statistics.data.gov.uk/id/local-authority/29UP,Tonbridge & Malling Borough Council,9/29/2021,0041033500/9,41033500, 153.36,Contract Security Services Ltd,00964700,,Cash Collection,Parking Off-Street,E10HAE00144007,
http://statistics.data.gov.uk/id/local-authority/29UP,Tonbridge & Malling Borough Council,9/29/2021,0041033501/10,41033501, 19.17,Contract Security Services Ltd,00964700,,Cash Collection,Parking Off-Street,E10HAE00144007,
http://statistics.data.gov.uk/id/local-authority/29UP,Tonbridge & Malling Borough Council,9/29/2021,0041033501/11,41033501, 19.17,Contract Security Services Ltd,00964700,,Cash Collection,Parking Off-Street,E10HAE00144007,
http://statistics.data.gov.uk/id/local-authority/29UP,Tonbridge & Malling Borough Council,9/29/2021,0041033501/12,41033501, 19.17,Contract Security Services Ltd,00964700,,Cash Collection,Parking Off-Street,E10HAE00144007,
http://statistics.data.gov.uk/id/local-authority/29UP,Tonbridge & Malling Borough Council,9/29/2021,0041033501/13,41033501, 19.17,Contract Security Services Ltd,00964700,,Cash Collection,Parking Off-Street,E10HAE00144007,
http://statistics.data.gov.uk/id/local-authority/29UP,Tonbridge & Malling Borough Council,9/29/2021,0041033501/14,41033501, 19.17,Contract Security Services Ltd,00964700,,Cash Collection,Parking Off-Street,E10HAE00144007,
http://statistics.data.gov.uk/id/local-authority/29UP,Tonbridge & Malling Borough Council,9/29/2021,0041033501/15,41033501, 19.17,Contract Security Services Ltd,00964700,,Cash Collection,Parking Off-Street,E10HAE00144007,
http://statistics.data.gov.uk/id/local-authority/29UP,Tonbridge & Malling Borough Council,9/29/2021,0041033501/16,41033501, 19.17,Contract Security Services Ltd,00964700,,Cash Collection,Parking Off-Street,E10HAE00444007,
http://statistics.data.gov.uk/id/local-authority/29UP,Tonbridge & Malling Borough Council,9/29/2021,0041033501/17,41033501, 6.39,Contract Security Services Ltd,00964700,,Cash Collection,Parking Off-Street,E10HAE00444007,
http://statistics.data.gov.uk/id/local-authority/29UP,Tonbridge & Malling Borough Council,9/29/2021,0041033501/18,41033501, 19.17,Contract Security Services Ltd,00964700,,Cash Collection,Parking Off-Street,E10HAE00444007,
http://statistics.data.gov.uk/id/local-authority/29UP,Tonbridge & Malling Borough Council,9/29/2021,0041033501/19,41033501, 19.17,Contract Security Services Ltd,00964700,,Cash Collection,Parking Off-Street,E10HAE00444007,
